Workbook

Sheet summary
B2: TAB: VALUATION SUMMARY
B4: =cmo!D4 -> PHHMC 2007-5 | E4: =cmo!D5 -> 270000000
E5: Total amount | I5: NPV amount | M5: Index of the first non-zero value | Q5: Index of the last non-zero value
B6: Price, test | C6: =_xll.AC.data._get( W10, "X", 0) -> tranche-name | D6: balance-initial | E6: loss-total | F6: amortization-total | G6: coupon-total | H6: payout-total | I6: loss-npv | J6: amortization-npv | K6: coupon-npv | L6: payout-npv | M6: loss-start | N6: amortization-start | O6: coupon-start | P6: payout-start | Q6: loss-end | R6: amortization-end | S6: coupon-end | T6: payout-end | V6: Parameter | W6: Value
C7: B1-B6 | D7: 20,000,000 | E7: 13.26 | F7: 0.74 | G7: 0.01 | H7: 0.91 | I7: 13.18 | J7: 0.74 | K7: 0.01 | L7: 0.91 | M7: 0 | N7: 0 | O7: 0 | P7: 0 | Q7: 4 | R7: 0 | S7: 0 | T7: 4 | V7: field | W7: summary
C8: A1 | D8: 50,000,000 | E8: 0.34 | F8: 13.66 | G8: 0.01 | H8: 62.62 | I8: 0.33 | J8: 13.49 | K8: 0.01 | L8: 62.13 | M8: 0 | N8: 0 | O8: 0 | P8: 0 | Q8: 23 | R8: 23 | S8: 0 | T8: 23 | V8: tranches | W8: =_xll.AC.data.list_x(cmo!B11:B17, 0, 1) -> java.util.ArrayList@Sun, 24 Jun 2018 12:50:59:682..6782663858498218361
C9: A2 | D9: 20,000,000 | E9: 0.40 | F9: 13.60 | G9: 0.01 | H9: 72.89 | I9: 0.38 | J9: 13.41 | K9: 0.01 | L9: 72.32 | M9: 0 | N9: 0 | O9: 0 | P9: 0 | Q9: 30 | R9: 30 | S9: 0 | T9: 30 | V9: parameters | W9: =_xll.AC.data.map(V7:V8, W7:W8) -> java.util.LinkedHashMap@Sun, 24 Jun 2018 12:50:59:713..8289899477103308335
C10: A3 | D10: 60,000,000 | E10: 0.40 | F10: 13.60 | G10: 0.01 | H10: 72.89 | I10: 0.38 | J10: 13.41 | K10: 0.01 | L10: 72.32 | M10: 0 | N10: 0 | O10: 0 | P10: 0 | Q10: 30 | R10: 30 | S10: 0 | T10: 30 | V10: summary | W10: =_xll.AC.finance.cmo.get(calc!$C$11, W9) -> java.util.ArrayList@Sun, 24 Jun 2018 12:54:18:058..7662674348735870177
C11: A4 | D11: 100,000,000 | E11: 2.37 | F11: 8.21 | G11: 0.01 | H11: -45.54 | I11: 2.20 | J11: 8.05 | K11: 0.01 | L11: -43.02 | M11: 0 | N11: 0 | O11: 0 | P11: 0 | Q11: 59 | R11: 59 | S11: 0 | T11: 59 | V11: =_xll.AC.data.size(W10, 1) -> 8 | W11: =_xll.AC.data.size(W10, 2) -> 18
C12: A5.1 | D12: 10,000,000 | E12: 0.04 | F12: 13.96 | G12: 0.01 | H12: 115.16 | I12: 0.04 | J12: 13.89 | K12: 0.01 | L12: 114.58 | M12: 0 | N12: 0 | O12: 0 | P12: 0 | Q12: 1 | R12: 1 | S12: 0 | T12: 1
C13: A5.2 | D13: 10,000,000 | E13: 42.33 | F13: -247.76 | G13: 31.87 | H13: -17113.66 | I13: 38.66 | J13: -246.95 | K13: 27.82 | L13: -16866.23 | M13: 0 | N13: 1 | O13: 0 | P13: 1 | Q13: 59 | R13: 22 | S13: 59 | T13: 22

Sheet cmo
B2: TAB: CMO TRANCHE STRUCTURE
B4: Name | D4: PHHMC 2007-5 | H4: mean | I4: stdev
B5: Total balance | D5: =SUM(C11:C17) -> 270000000 | F5: loss rate | H5: -4 | I5: 0.3
B6: Coupon rate | D6: 0.01 | F6: amortization rate | H6: -4 | I6: 0.3
B7: Period length (in month) | D7: 3
B8: Number of periods | D8: 60
B10: Tranche Name | C10: Outstanding Balance | D10: Loss Parent | E10: Loss Rank | F10: Loss Weight | G10: Amortization Parent | H10: Amortization Rank | I10: Amortization Weight | K10: =B10 -> Tranche Name | L10: =C10 -> Outstanding Balance | M10: Loss Parent | N10: Loss Rank | O10: Loss Weight | P10: Amortization Parent | Q10: Amortization Rank | R10: Amortization Weight
B11: B1-B6 | C11: 20000000 | D11: root | E11: 1 | G11: root | H11: 5
B12: A1 | C12: 50000000 | D12: =$B$18 -> A1-A5 | G12: =B19 -> A1-A3 | I12: 0.461
B13: A2 | C13: 20000000 | D13: =$B$18 -> A1-A5 | G13: =B20 -> A2-A3
B14: A3 | C14: 60000000 | D14: A1-A5 | G14: =B20 -> A2-A3
B15: A4 | C15: 100000000 | D15: A1-A5 | G15: root | H15: 3
B16: A5.1 | C16: 10000000 | D16: A1-A5 | G16: root | H16: 1
B17: A5.2 | C17: 10000000 | D17: A1-A5 | G17: root | H17: 4
B18: A1-A5 | C18: =SUM(C12:C17) -> 250000000 | D18: root | E18: 2
B19: A1-A3 | C19: =SUM(C12:C14) -> 130000000 | G19: root | H19: 2
B20: A2-A3 | C20: =SUM(C13:C14) -> 80000000 | G20: =B19 -> A1-A3 | I20: 0.539

Sheet #1, $
B2: TAB: TRANCHE CASH FLOWS, IN $ | E2: =cmo!D4 -> PHHMC 2007-5
B4: =config!B11 -> field | C4: =config!B20 -> tranche-balances | E4: =_xll.AC.data.map($B$4:$B$5, C4:C5) -> java.util.LinkedHashMap@Sun, 24 Jun 2018 12:50:59:714..8049974222014660387 | H4: =$C$4 -> tranche-balances | J4: =_xll.AC.data.map($B$4:$B$5, H4:H5) -> java.util.LinkedHashMap@Sun, 24 Jun 2018 12:50:59:715..6135572671227377768 | M4: =$C$4 -> tranche-balances | O4: =_xll.AC.data.map($B$4:$B$5, M4:M5) -> java.util.LinkedHashMap@Sun, 24 Jun 2018 12:50:59:714..6780898330333176502 | R4: =$C$4 -> tranche-balances | T4: =_xll.AC.data.map($B$4:$B$5, R4:R5) -> java.util.LinkedHashMap@Sun, 24 Jun 2018 12:50:59:715..2485336566858311935 | W4: =$C$4 -> tranche-balances | Y4: =_xll.AC.data.map($B$4:$B$5, W4:W5) -> java.util.LinkedHashMap@Sun, 24 Jun 2018 12:50:59:715..4562315236088951072
B5: tranche-name | C5: root | E5: =_xll.AC.finance.cmo.get(calc!$C$11, E4) -> java.util.ArrayList@Sun, 24 Jun 2018 12:54:18:058..2846595548600205527 | H5: =cmo!B11 -> B1-B6 | J5: =_xll.AC.finance.cmo.get(calc!$C$11, J4) -> java.util.ArrayList@Sun, 24 Jun 2018 12:54:18:057..8570943505577536692 | M5: =cmo!B16 -> A5.1 | O5: =_xll.AC.finance.cmo.get(calc!$C$11, O4) -> java.util.ArrayList@Sun, 24 Jun 2018 12:54:18:053..4677961734121925276 | R5: =cmo!B17 -> A5.2 | T5: =_xll.AC.finance.cmo.get(calc!$C$11, T4) -> java.util.ArrayList@Sun, 24 Jun 2018 12:54:18:052..7735105709803203858 | W5: =cmo!B19 -> A1-A3 | Y5: =_xll.AC.finance.cmo.get(calc!$C$11, Y4) -> java.util.ArrayList@Sun, 24 Jun 2018 12:54:18:052..4556521178850083531
E6: =_xll.AC.data.size(E5, 1) -> 4 | F6: =_xll.AC.data.size(E5, 2) -> 60
D7: =SUM(D10:D500) -> 46609803.9 | E7: =SUM(E10:E500) -> 1250174498 | F7: =SUM(F10:F500) -> 2529825502 | I7: =SUM(I10:I500) -> 200000 | J7: 265172840.5 | K7: 14827159.49 | N7: =SUM(N10:N500) -> 100000 | O7: 371866.3804 | P7: 139628133.6 | S7: =SUM(S10:S500) -> 318668271.2 | T7: 423312729.9 | U7: -2477601413 | X7: =SUM(X10:X500) -> 1300000 | Y7: 48928409.56 | Z7: 1704740902
B8: Period | C8: Balance | D8: Coupon | E8: Losses | F8: Amortization | H8: =C8 -> Balance | I8: =D8 -> Coupon | J8: =E8 -> Losses | K8: =F8 -> Amortization | M8: =H8 -> Balance | N8: =I8 -> Coupon | O8: =J8 -> Losses | P8: =K8 -> Amortization | R8: =M8 -> Balance | S8: =N8 -> Coupon | T8: =O8 -> Losses | U8: =P8 -> Amortization | W8: =R8 -> Balance | X8: =S8 -> Coupon | Y8: =T8 -> Losses | Z8: =U8 -> Amortization
B9: 0 | C9: =cmo!D5 -> 270000000 | H9: =VLOOKUP(H5, cmo!$B$11:$C$20, 2, FALSE) -> 20000000 | M9: =VLOOKUP(M5, cmo!$B$11:$C$20, 2, FALSE) -> 10000000 | R9: =VLOOKUP(R5, cmo!$B$11:$C$20, 2, FALSE) -> 10000000 | W9: =VLOOKUP(W5, cmo!$B$11:$C$20, 2, FALSE) -> 130000000
B10: 1 | C10: =_xll.AC.data._get(E5, "", 1) -> 256510761.4 | D10: 2700000 | E10: 72419767.12 | F10: 116429573 | H10: =_xll.AC.data._get(J5, "", 1) -> 0 | I10: 200000 | J10: 235518521.5 | K10: 14827159.49 | M10: =_xll.AC.data._get(O5, "", 1) -> 0 | N10: 100000 | O10: 308274.5556 | P10: 133908501.8 | R10: =_xll.AC.data._get(T5, "", 1) -> 692347782.8 | S10: 100000 | T10: 308274.5556 | U10: -2656232093 | W10: =_xll.AC.data._get(Y5, "", 1) -> 0 | X10: 1300000 | Y10: 4007569.223 | Z10: 1258459436
B11: =B10+1 -> 2 | C11: 243626070.1 | D11: 2565107.614 | E11: 68801665.2 | F11: 111584013.3 | H11: 0 | I11: 0 | J11: 9828809.315 | K11: 0 | M11: 0 | N11: 0 | O11: 63591.82479 | P11: 5719631.781 | R11: 665585844.5 | S11: 6923477.828 | T11: 1092031.101 | U11: 124818587.7 | W11: 0 | X11: 0 | Y11: 7571472.072 | Z11: 16764311.62
B12: =B11+1 -> 3 | C12: 231320354.3 | D12: 2436260.701 | E12: 65345715.78 | F12: 106934305.3 | H12: 0 | I12: 0 | J12: 9335102.254 | K12: 0 | M12: 0 | N12: 0 | O12: 0 | P12: 0 | R12: 678047735.1 | S12: 6655858.445 | T12: -30555.06823 | U12: -29435157.54 | W12: 0 | X12: 0 | Y12: 7083218.202 | Z12: 209483139
B13: 4 | C13: 219569087.5 | D13: 2313203.543 | E13: 62045059.96 | F13: 102472675.4 | H13: 0 | I13: 0 | J13: 8863579.994 | K13: 0 | M13: 0 | N13: 0 | O13: 0 | P13: 0 | R13: 669184155.1 | S13: 6780477.351 | T13: -177271.5999 | U13: 0 | W13: 0 | X13: 0 | Y13: -2246822.673 | Z13: 14638953.63
B14: 5 | C14: 208348746.5 | D14: 2195690.875 | E14: 58893119.19 | F14: 98191654.6 | H14: 0 | I14: 0 | J14: 1626827.42 | K14: 0 | M14: 0 | N14: 0 | O14: 0 | P14: 0 | R14: 666604331.2 | S14: 6691841.551 | T14: 15737252.08 | U14: -1.11758709e-08 | W14: 0 | X14: 0 | Y14: 2924735.421 | Z14: 14027379.23
B15: 6 | C15: 197636771.5 | D15: 2083487.465 | E15: 55883584.08 | F15: 94084066.48 | H15: 0 | I15: 0 | J15: 0 | K15: 0 | M15: 0 | N15: 0 | O15: 0 | P15: 0 | R15: 662612646.6 | S15: 6666043.312 | T15: 24298389.73 | U15: 1.11758709e-08 | W15: 0 | X15: 0 | Y15: 3727071.051 | Z15: 13440580.93
B16: 7 | C16: 187411527.2 | D16: 1976367.715 | E16: 53010403.57 | F16: 90143016.08 | H16: 0 | I16: 0 | J16: 0 | K16: 0 | M16: 0 | N16: 0 | O16: 0 | P16: 0 | R16: 658826189.2 | S16: 6626126.466 | T16: 23055203.95 | U16: 1.11758709e-08 | W16: 0 | X16: 0 | Y16: 3371632.085 | Z16: 12877573.73
B17: 8 | C17: 177652266.2 | D17: 1874115.272 | E17: 50267774.65 | F17: 86361878.8 | H17: 0 | I17: 0 | J17: 0 | K17: 0 | M17: 0 | N17: 0 | O17: 0 | P17: 0 | R17: 655235633.9 | S17: 6588261.892 | T17: 21868411.1 | U17: 1.11758709e-08 | W17: 0 | X17: 0 | Y17: 3041572.611 | Z17: 12337411.26
B18: 9 | C18: 168339093.2 | D18: 1776522.662 | E18: 47650132.41 | F18: 82734289.91 | H18: 0 | I18: 0 | J18: 0 | K18: 0 | M18: 0 | N18: 0 | O18: 0 | P18: 0 | R18: 651832053 | S18: 6552356.339 | T18: 20735608.97 | U18: 1.676380634e-08 | W18: 0 | X18: 0 | Y18: 2735226.856 | Z18: 11819184.27
B19: 10 | C19: 159452930.7 | D19: 1683390.932 | E19: 45152140.47 | F19: 79254134.48 | H19: 0 | I19: 0 | J19: 0 | K19: 0 | M19: 0 | N19: 0 | O19: 0 | P19: 0 | R19: 648606900.1 | S19: 6518320.53 | T19: 19654494.01 | U19: -1.11758709e-08 | W19: 0 | X19: 0 | Y19: 2451028.799 | Z19: 11322019.21
B20: 11 | C20: 150975486.5 | D20: 1594529.307 | E20: 42768681.89 | F20: 75915537.57 | H20: 0 | I20: 0 | J20: 0 | K20: 0 | M20: 0 | N20: 0 | O20: 0 | P20: 0 | R20: 645551994.2 | S20: 6486069.001 | T20: 18622857.34 | U20: 0 | W20: 0 | X20: 0 | Y20: 2187507.088 | Z20: 10845076.8
B21: 12 | C21: 142889221.8 | D21: 1509754.865 | E21: 40494850.26 | F21: 72712854.99 | H21: 0 | I21: 0 | J21: 0 | K21: 0 | M21: 0 | N21: 0 | O21: 0 | P21: 0 | R21: 642659504.9 | S21: 6455519.942 | T21: 17638580.95 | U21: 0 | W21: 0 | X21: 0 | Y21: 1943280.151 | Z21: 10387550.71
B22: 13 | C22: 135177321.4 | D22: 1428892.218 | E22: 38325941.36 | F22: 69640664.21 | H22: 0 | I22: 0 | J22: 0 | K22: 0 | M22: 0 | N22: 0 | O22: 0 | P22: 0 | R22: 639921937.7 | S22: 6426595.049 | T22: 16699634.07 | U22: 5.587935448e-09 | W22: 0 | X22: 0 | Y22: 1717051.492 | Z22: 9948666.316
B23: 14 | C23: 127823664.2 | D23: 1351773.214 | E23: 36257444.95 | F23: 66693755.8 | H23: 0 | I23: 0 | J23: 0 | K23: 0 | M23: 0 | N23: 0 | O23: 0 | P23: 0 | R23: 637332120.2 | S23: 6399219.377 | T23: 15804069.65 | U23: 0 | W23: 0 | X23: 0 | Y23: 1507605.176 | Z23: 9527679.4
B24: 15 | C24: 120812795.5 | D24: 1278236.642 | E24: 34285037.02 | F24: 63867125.05 | H24: 0 | I24: 0 | J24: 0 | K24: 0 | M24: 0 | N24: 0 | O24: 0 | P24: 0 | R24: 634883189 | S24: 6373321.202 | T24: 14950021.01 | U24: 0 | W24: 0 | X24: 0 | Y24: 1313801.493 | Z24: 9123875.007
B25: 16 | C25: 114129900.1 | D25: 1208127.955 | E25: 32404572.28 | F25: 61155964.04 | H25: 0 | I25: 0 | J25: 0 | K25: 0 | M25: 0 | N25: 0 | O25: 0 | P25: 0 | R25: 632568576.7 | S25: 6348831.89 | T25: 14135698.59 | U25: 0 | W25: 0 | X25: 0 | Y25: 1134572.793 | Z25: 8736566.291
B26: 17 | C26: 107760776.4 | D26: 1141299.001 | E26: 30612076.97 | F26: 58555653.91 | H26: 0 | I26: 0 | J26: 0 | K26: 0 | M26: 0 | N26: 0 | O26: 0 | P26: 0 | R26: 630381999.8 | S26: 6325685.767 | T26: 13359386.88 | U26: 0 | W26: 0 | X26: 0 | Y26: 968919.5043 | Z26: 8365093.416
B27: 18 | C27: 101691812.2 | D27: 1077607.764 | E27: 28903741.97 | F27: 56061757.53 | H27: 0 | I27: 0 | J27: 0 | K27: 0 | M27: 0 | N27: 0 | O27: 0 | P27: 0 | R27: 628317446.8 | S27: 6303819.998 | T27: 12619441.37 | U27: 0 | W27: 0 | X27: 0 | Y27: 815906.3088 | Z27: 8008822.504
B28: 19 | C28: 95909960.14 | D28: 1016918.122 | E28: 27275916.13 | F28: 53670012.33 | H28: 0 | I28: 0 | J28: 0 | K28: 0 | M28: 0 | N28: 0 | O28: 0 | P28: 0 | R28: 626369167 | S28: 6283174.468 | T28: 11914285.78 | U28: -10860398.34 | W28: 0 | X28: 0 | Y28: 674658.4883 | Z28: 7667144.618
B29: 20 | C29: 90402715.61 | D29: 959099.6014 | E29: 25725099.92 | F29: 51376323.51 | H29: 0 | I29: 0 | J29: 0 | K29: 0 | M29: 0 | N29: 0 | O29: 0 | P29: 0 | R29: 617192185.1 | S29: 6263691.67 | T29: 11242409.24 | U29: 44036848.72 | W29: 0 | X29: 0 | Y29: 544358.4311 | Z29: 7339474.787
B30: 21 | C30: 85158094.41 | D30: 904027.1561 | E30: 24247939.3 | F30: 49176757.46 | H30: 0 | I30: 0 | J30: 0 | K30: 0 | M30: 0 | N30: 0 | O30: 0 | P30: 0 | R30: 608434938.4 | S30: 6171921.851 | T30: 10602363.66 | U30: 42151506.4 | W30: 0 | X30: 0 | Y30: 424242.2958 | Z30: 7025251.066
B31: 22 | C31: 80164611.89 | D31: 851580.9441 | E31: 22841219.87 | F31: 47067535.46 | H31: 0 | I31: 0 | J31: 0 | K31: 0 | M31: 0 | N31: 0 | O31: 0 | P31: 0 | R31: 600079489 | S31: 6084349.384 | T31: 9992761.231 | U31: 40343601.82 | W31: 0 | X31: 0 | Y31: 313596.8292 | Z31: 6723933.637
B32: 23 | C32: 75411262.69 | D32: 801646.1189 | E32: 21501861.2 | F32: 45045027.57 | H32: 0 | I32: 0 | J32: 0 | K32: 0 | M32: 0 | N32: 0 | O32: 0 | P32: 0 | R32: 594187334.9 | S32: 6000794.89 | T32: 9412271.95 | U32: 27276646.19 | W32: 0 | X32: 0 | Y32: 211756.3349 | Z32: 5395655.409
B33: 24 | C33: 70887501.39 | D33: 754112.6269 | E33: 20226911.41 | F33: 43105746.79 | H33: 0 | I33: 0 | J33: 0 | K33: 0 | M33: 0 | N33: 0 | O33: 0 | P33: 0 | R33: 586584591.7 | S33: 5941873.349 | T33: 8866458.246 | U33: -3078981.914 | W33: 0 | X33: 0 | Y33: 138012.3213 | Z33: 3078981.914
B34: 25 | C34: 66583223.85 | D34: 708875.0139 | E34: 19013542.01 | F34: 41246343.47 | H34: 0 | I34: 0 | J34: 0 | K34: 0 | M34: 0 | N34: 0 | O34: 0 | P34: 0 | R34: 579334146.8 | S34: 5865845.917 | T34: 8359179.77 | U34: -2946167.391 | W34: 0 | X34: 0 | Y34: 110568.3192 | Z34: 2946167.391
B35: 26 | C35: 62488749.38 | D35: 665832.2385 | E35: 17859042.83 | F35: 39463599.85 | H35: 0 | I35: 0 | J35: 0 | K35: 0 | M35: 0 | N35: 0 | O35: 0 | P35: 0 | R35: 572420843.8 | S35: 5793341.468 | T35: 7874372.371 | U35: -2818828.561 | W35: 0 | X35: 0 | Y35: 86521.99755 | Z35: 2818828.561
B36: 27 | C36: 58594803.51 | D36: 624887.4938 | E36: 16760817.32 | F36: 37754424.87 | H36: 0 | I36: 0 | J36: 0 | K36: 0 | M36: 0 | N36: 0 | O36: 0 | P36: 0 | R36: 565830153.2 | S36: 5724208.438 | T36: 7411224.034 | U36: -2696744.633 | W36: 0 | X36: 0 | Y36: 65545.60488 | Z36: 2696744.633
B37: 28 | C37: 54892501.58 | D37: 585948.0351 | E37: 15716377.87 | F37: 36115849.15 | H37: 0 | I37: 0 | J37: 0 | K37: 0 | M37: 0 | N37: 0 | O37: 0 | P37: 0 | R37: 559548147.8 | S37: 5658301.532 | T37: 6968943.628 | U37: -2579703.511 | W37: 0 | X37: 0 | Y37: 47338.31689 | Z37: 2579703.511
B38: 29 | C38: 51373332.89 | D38: 548925.0158 | E38: 14723341.41 | F38: 34545020.17 | H38: 0 | I38: 0 | J38: 0 | K38: 0 | M38: 0 | N38: 0 | O38: 0 | P38: 0 | R38: 553561477.7 | S38: 5595481.478 | T38: 6546760.865 | U38: -2467501.441 | W38: 0 | X38: 0 | Y38: 31624.33374 | Z38: 2467501.441
B39: 30 | C39: 48029145.55 | D39: 513733.3289 | E39: 13779425.2 | F39: 33039197.58 | H39: 0 | I39: 0 | J39: 0 | K39: 0 | M39: 0 | N39: 0 | O39: 0 | P39: 0 | R39: 547857347.7 | S39: 5535614.777 | T39: 6143926.242 | U39: -2359942.684 | W39: 0 | X39: 0 | Y39: 18151.08641 | Z39: 2359942.684
B40: 31 | C40: 44852131.87 | D40: 480291.4555 | E40: 12882442.72 | F40: 31595748.75 | H40: 0 | I40: 0 | J40: 0 | K40: 0 | M40: 0 | N40: 0 | O40: 0 | P40: 0 | R40: 540966322.9 | S40: 5478573.477 | T40: 5759710.934 | U40: -2256839.196 | W40: 0 | X40: 0 | Y40: 6687.547856 | Z40: 1528253.253
B41: 32 | C41: 41834814.43 | D41: 448521.3187 | E41: 12030299.8 | F41: 30212144.38 | H41: 0 | I41: 0 | J41: 0 | K41: 0 | M41: 0 | N41: 0 | O41: 0 | P41: 0 | R41: 531474974.5 | S41: 5409663.229 | T41: 5393406.678 | U41: -2158010.313 | W41: 0 | X41: 0 | Y41: 0 | Z41: 0
B42: 33 | C42: 38970032.63 | D42: 418348.1443 | E42: 11220990.81 | F42: 28885954.37 | H42: 0 | I42: 0 | J42: 0 | K42: 0 | M42: 0 | N42: 0 | O42: 0 | P42: 0 | R42: 522420345.4 | S42: 5314749.745 | T42: 5044325.609 | U42: -2063282.455 | W42: 0 | X42: 0 | Y42: 0 | Z42: 0
B43: 34 | C43: 36250929.86 | D43: 389700.3263 | E43: 10452595.14 | F43: 27614843.73 | H43: 0 | I43: 0 | J43: 0 | K43: 0 | M43: 0 | N43: 0 | O43: 0 | P43: 0 | R43: 513783776.1 | S43: 5224203.454 | T43: 4711800.09 | U43: -1972488.838 | W43: 0 | X43: 0 | Y43: 0 | Z43: 0
B44: 35 | C44: 33670941.12 | D44: 362509.2986 | E44: 9723273.697 | F44: 26396568.65 | H44: 0 | I44: 0 | J44: 0 | K44: 0 | M44: 0 | N44: 0 | O44: 0 | P44: 0 | R44: 505547379.8 | S44: 5137837.761 | T44: 4395182.5 | U44: -1885469.189 | W44: 0 | X44: 0 | Y44: 0 | Z44: 0
B45: 36 | C45: 31223781.24 | D45: 336709.4112 | E45: 9031265.609 | F45: 25228972.72 | H45: 0 | I45: 0 | J45: 0 | K45: 0 | M45: 0 | N45: 0 | O45: 0 | P45: 0 | R45: 497694011.4 | S45: 5055473.798 | T45: 4093845.014 | U45: -1802069.48 | W45: 0 | X45: 0 | Y45: 0 | Z45: 0
B46: 37 | C46: 28903433.51 | D46: 312237.8124 | E46: 8374885.058 | F46: 24109983.15 | H46: 0 | I46: 0 | J46: 0 | K46: 0 | M46: 0 | N46: 0 | O46: 0 | P46: 0 | R46: 490207238.7 | S46: 4976940.114 | T46: 3807179.348 | U46: -1722141.654 | W46: 0 | X46: 0 | Y46: 0 | Z46: 0
B47: 38 | C47: 26704138.83 | D47: 289034.3351 | E47: 7752518.236 | F47: 23037607.22 | H47: 0 | I47: 0 | J47: 0 | K47: 0 | M47: 0 | N47: 0 | O47: 0 | P47: 0 | R47: 483071314 | S47: 4902072.387 | T47: 3534596.501 | U47: -1645543.373 | W47: 0 | X47: 0 | Y47: 0 | Z47: 0
B48: 39 | C48: 24620385.33 | D48: 267041.3883 | E48: 7162620.427 | F48: 22009928.61 | H48: 0 | I48: 0 | J48: 0 | K48: 0 | M48: 0 | N48: 0 | O48: 0 | P48: 0 | R48: 476271147.2 | S48: 4830713.14 | T48: 3275526.464 | U48: -1572137.758 | W48: 0 | X48: 0 | Y48: 0 | Z48: 0
B49: 40 | C49: 22646898.39 | D49: 246203.8533 | E49: 6603713.23 | F49: 21025103.93 | H49: 0 | I49: 0 | J49: 0 | K49: 0 | M49: 0 | N49: 0 | O49: 0 | P49: 0 | R49: 469792280.8 | S49: 4762711.472 | T49: 3029417.929 | U49: -1501793.138 | W49: 0 | X49: 0 | Y49: 0 | Z49: 0
B50: 41 | C50: 20778631.17 | D50: 226468.9839 | E50: 6074381.879 | F50: 20081359.15 | H50: 0 | I50: 0 | J50: 0 | K50: 0 | M50: 0 | N50: 0 | O50: 0 | P50: 0 | R50: 463620865.2 | S50: 4697922.808 | T50: 2795737.977 | U50: -1434382.796 | W50: 0 | X50: 0 | Y50: 0 | Z50: 0
B51: 42 | C51: 19010755.55 | D51: 207786.3117 | E51: 5573272.706 | F51: 19176986 | H51: 0 | I51: 0 | J51: 0 | K51: 0 | M51: 0 | N51: 0 | O51: 0 | P51: 0 | R51: 457743635.5 | S51: 4636208.652 | T51: 2573971.76 | U51: -1369784.714 | W51: 0 | X51: 0 | Y51: 0 | Z51: 0
B52: 43 | C52: 17338653.48 | D52: 190107.5555 | E52: 5099090.703 | F52: 18310338.33 | H52: 0 | I52: 0 | J52: 0 | K52: 0 | M52: 0 | N52: 0 | O52: 0 | P52: 0 | R52: 452147889.5 | S52: 4577436.355 | T52: 2363622.175 | U52: -1307881.309 | W52: 0 | X52: 0 | Y52: 0 | Z52: 0
B53: 44 | C53: 15757908.8 | D53: 173386.5348 | E53: 4650597.211 | F53: 17479828.23 | H53: 0 | I53: 0 | J53: 0 | K53: 0 | M53: 0 | N53: 0 | O53: 0 | P53: 0 | R53: 446821467.3 | S53: 4521478.895 | T53: 2164209.54 | U53: -1248559.159 | W53: 0 | X53: 0 | Y53: 0 | Z53: 0
B54: 45 | C54: 14264299.55 | D54: 157579.088 | E54: 4226607.725 | F54: 16683921.88 | H54: 0 | I54: 0 | J54: 0 | K54: 0 | M54: 0 | N54: 0 | O54: 0 | P54: 0 | R54: 441752731.9 | S54: 4468214.673 | T54: 1975271.264 | U54: -1191708.706 | W54: 0 | X54: 0 | Y54: 0 | Z54: 0
B55: 46 | C55: 12853790.64 | D55: 142642.9955 | E55: 3825989.819 | F55: 15921134.93 | H55: 0 | I55: 0 | J55: 0 | K55: 0 | M55: 0 | N55: 0 | O55: 0 | P55: 0 | R55: 436930551.2 | S55: 4417527.319 | T55: 1796361.527 | U55: -1137223.924 | W55: 0 | X55: 0 | Y55: 0 | Z55: 0
B56: 47 | C56: 11522527.18 | D56: 128537.9064 | E56: 3447661.202 | F56: 15190027.18 | H56: 0 | I56: 0 | J56: 0 | K56: 0 | M56: 0 | N56: 0 | O56: 0 | P56: 0 | R56: 432344282 | S56: 4369305.512 | T56: 1627050.97 | U56: -1085001.942 | W56: 0 | X56: 0 | Y56: 0 | Z56: 0
B57: 48 | C57: 10266828.32 | D57: 115225.2718 | E57: 3090587.907 | F57: 14489196.18 | H57: 0 | I57: 0 | J57: 0 | K57: 0 | M57: 0 | N57: 0 | O57: 0 | P57: 0 | R57: 427983755.3 | S57: 4323442.82 | T57: 1466926.407 | U57: -1034942.584 | W57: 0 | X57: 0 | Y57: 0 | Z57: 0
B58: 49 | C58: 9083181.764 | D58: 102668.2832 | E58: 2753782.651 | F58: 13817269.08 | H58: 0 | I58: 0 | J58: 0 | K58: 0 | M58: 0 | N58: 0 | O58: 0 | P58: 0 | R58: 423839265.4 | S58: 4279837.553 | T58: 1315590.567 | U58: -986947.7917 | W58: 0 | X58: 0 | Y58: 0 | Z58: 0
B59: 50 | C59: 7968239.248 | D59: 90831.81764 | E59: 2436303.363 | F59: 13172891.85 | H59: 0 | I59: 0 | J59: 0 | K59: 0 | M59: 0 | N59: 0 | O59: 0 | P59: 0 | R59: 419901560.4 | S59: 4238392.654 | T59: 1172661.877 | U59: -940920.8467 | W59: 0 | X59: 0 | Y59: 0 | Z59: 0
B60: 51 | C60: 6918813.105 | D60: 79682.39248 | E60: 2137251.965 | F60: 12554714.04 | H60: 0 | I60: 0 | J60: 0 | K60: 0 | M60: 0 | N60: 0 | O60: 0 | P60: 0 | R60: 416161838.4 | S60: 4199015.604 | T60: 1037774.328 | U60: -896765.2883 | W60: 0 | X60: 0 | Y60: 0 | Z60: 0
B61: 52 | C61: 5931874.567 | D61: 69188.13105 | E61: 1855773.459 | F61: 11961366.08 | H61: 0 | I61: 0 | J61: 0 | K61: 0 | M61: 0 | N61: 0 | O61: 0 | P61: 0 | R61: 412611749.9 | S61: 4161618.384 | T61: 910577.441 | U61: -854383.2912 | W61: 0 | X61: 0 | Y61: 0 | Z61: 0
B62: 53 | C62: 5004554.645 | D62: 59318.74567 | E62: 1591055.462 | F62: 11391423.44 | H62: 0 | I62: 0 | J62: 0 | K62: 0 | M62: 0 | N62: 0 | O62: 0 | P62: 0 | R62: 409243410.7 | S62: 4126117.499 | T62: 790736.4112 | U62: -813673.1031 | W62: 0 | X62: 0 | Y62: 0 | Z62: 0
B63: 54 | C63: 4134149.329 | D63: 50045.54645 | E63: 1342328.452 | F63: 10843345.98 | H63: 0 | I63: 0 | J63: 0 | K63: 0 | M63: 0 | N63: 0 | O63: 0 | P63: 0 | R63: 406049431.3 | S63: 4092434.107 | T63: 677932.5384 | U63: -774524.7127 | W63: 0 | X63: 0 | Y63: 0 | Z63: 0
B64: 55 | C64: 3318132.583 | D64: 41341.49329 | E64: 1108867.154 | F64: 10315367.29 | H64: 0 | I64: 0 | J64: 0 | K64: 0 | M64: 0 | N64: 0 | O64: 0 | P64: 0 | R64: 408068968.1 | S64: 4060494.313 | T64: 571864.1549 | U64: -2835553.614 | W64: 0 | X64: 0 | Y64: 0 | Z64: 0
B65: 56 | C65: 2554184.914 | D65: 33181.32583 | E65: 889994.0331 | F65: 9805273.334 | H65: 0 | I65: 0 | J65: 0 | K65: 0 | M65: 0 | N65: 0 | O65: 0 | P65: 0 | R65: 406604643.8 | S65: 4080689.681 | T65: 464026.2819 | U65: -700376.6667 | W65: 0 | X65: 0 | Y65: 0 | Z65: 0
B66: 57 | C66: 1840257.132 | D66: 25541.84914 | E66: 685086.9505 | F66: 9309901.998 | H66: 0 | I66: 0 | J66: 0 | K66: 0 | M66: 0 | N66: 0 | O66: 0 | P66: 0 | R66: 405225723 | S66: 4066046.438 | T66: 357242.9268 | U66: -664992.9999 | W66: 0 | X66: 0 | Y66: 0 | Z66: 0
B67: 58 | C67: 1174728.858 | D67: 18402.57132 | E67: 493596.2701 | F67: 8823799.56 | H67: 0 | I67: 0 | J67: 0 | K67: 0 | M67: 0 | N67: 0 | O67: 0 | P67: 0 | R67: 403929923.3 | S67: 4052257.23 | T67: 257424.2938 | U67: -630271.3971 | W67: 0 | X67: 0 | Y67: 0 | Z67: 0
B68: 59 | C68: 556902.4829 | D68: 11747.28858 | E68: 315087.3716 | F68: 8334481.883 | H68: 0 | I68: 0 | J68: 0 | K68: 0 | M68: 0 | N68: 0 | O68: 0 | P68: 0 | R68: 402716776.8 | S68: 4039299.233 | T68: 164348.4563 | U68: -595320.1345 | W68: 0 | X68: 0 | Y68: 0 | Z68: 0
B69: 60 | C69: 0 | D69: 5569.024829 | E69: 149373.1412 | F69: 7647261.62 | H69: 0 | I69: 0 | J69: 0 | K69: 0 | M69: 0 | N69: 0 | O69: 0 | P69: 0 | R69: 403819503.5 | S69: 4027167.768 | T69: 77922.21519 | U69: -1670094.208 | W69: 0 | X69: 0 | Y69: 0 | Z69: 0

Sheet #1, %
B2: TAB: TRANCHE CASH FLOWS, IN % | E2: ='#1, $'!E2 -> PHHMC 2007-5
C5: ='#1, $'!C5 -> root | I5: ='#1, $'!H5 -> B1-B6 | N5: ='#1, $'!M5 -> A5.1 | S5: ='#1, $'!R5 -> A5.2 | X5: ='#1, $'!W5 -> A1-A3
F6: =cmo!D8 -> 60
F7: ='#1, $'!F8 -> Amortization
B8: ='#1, $'!B8 -> Period | C8: ='#1, $'!C8 -> Balance | D8: ='#1, $'!D8 -> Coupon | E8: ='#1, $'!E8 -> Losses | F8: planned | G8: prepaid | I8: =C8 -> Balance | J8: =D8 -> Coupon | K8: =E8 -> Losses | L8: =F7 -> Amortization | N8: ='#1, $'!H8 -> Balance | O8: ='#1, $'!I8 -> Coupon | P8: ='#1, $'!J8 -> Losses | Q8: ='#1, $'!K8 -> Amortization | S8: ='#1, $'!M8 -> Balance | T8: ='#1, $'!N8 -> Coupon | U8: ='#1, $'!O8 -> Losses | V8: ='#1, $'!P8 -> Amortization | X8: ='#1, $'!R8 -> Balance | Y8: ='#1, $'!S8 -> Coupon | Z8: ='#1, $'!T8 -> Losses | AA8: ='#1, $'!U8 -> Amortization
B9: ='#1, $'!B9 -> 0 | C9: ='#1, $'!C9/'#1, $'!C$9 -> 1 | I9: ='#1, $'!H9/'#1, $'!$C9 -> 0.07407407407 | N9: ='#1, $'!M9/'#1, $'!$C9 -> 0.03703703704 | S9: ='#1, $'!R9/'#1, $'!$C9 -> 0.03703703704 | X9: ='#1, $'!W9/'#1, $'!$C9 -> 0.4814814815
B10: ='#1, $'!B10 -> 1 | C10: ='#1, $'!C10/'#1, $'!C$9 -> 0.9500398571 | D10: ='#1, $'!D10/'#1, $'!C9 -> 0.01 | E10: ='#1, $'!E10/('#1, $'!C9-'#1, $'!D10) -> 0.2709306664 | F10: =E10 / ((1+E10)^($F$6-B9)-1) -> 1.533016659e-07 | G10: ='#1, $'!F10/('#1, $'!C9-'#1, $'!D10) - F10 -> 0.4355762515 | I10: =IF('#1, $'!H9=0, "", '#1, $'!H10/'#1, $'!$C10) -> 0 | J10: =IF('#1, $'!H9=0, "", '#1, $'!I10/'#1, $'!$D10) -> 0.07407407407 | K10: =IF('#1, $'!H9-'#1, $'!I10=0, "", '#1, $'!J10/('#1, $'!H9-'#1, $'!I10)) -> 11.89487482 | L10: =IF('#1, $'!H9=0, "", '#1, $'!K10/'#1, $'!$F10) -> 0.1273487406 | N10: =IF('#1, $'!M9=0, "", '#1, $'!M10/'#1, $'!$C10) -> 0 | O10: =IF('#1, $'!M9=0, "", '#1, $'!N10/'#1, $'!$D10) -> 0.03703703704 | P10: =IF('#1, $'!M9-'#1, $'!N10=0, "", '#1, $'!O10/('#1, $'!M9-'#1, $'!N10)) -> 0.031138844 | Q10: =IF('#1, $'!M9=0, "", '#1, $'!P10/'#1, $'!$F10) -> 1.150124478 | S10: =IF('#1, $'!R9=0, "", '#1, $'!R10/'#1, $'!$C10) -> 2.699098389 | T10: =IF('#1, $'!R9=0, "", '#1, $'!S10/'#1, $'!$D10) -> 0.03703703704 | U10: =IF('#1, $'!R9-'#1, $'!S10=0, "", '#1, $'!T10/('#1, $'!R9-'#1, $'!S10)) -> 0.031138844 | V10: =IF('#1, $'!R9=0, "", '#1, $'!U10/'#1, $'!$F10) -> -22.81406712 | X10: =IF('#1, $'!W9=0, "", '#1, $'!W10/'#1, $'!$C10) -> 0 | Y10: =IF('#1, $'!W9=0, "", '#1, $'!X10/'#1, $'!$D10) -> 0.4814814815 | Z10: =IF('#1, $'!W9-'#1, $'!X10=0, "", '#1, $'!Y10/('#1, $'!W9-'#1, $'!X10)) -> 0.031138844 | AA10: =IF('#1, $'!W9=0, "", '#1, $'!Z10/'#1, $'!$F10) -> 10.80876107
B11: ='#1, $'!B11 -> 2 | C11: ='#1, $'!C11/'#1, $'!C$9 -> 0.9023187781 | D11: ='#1, $'!D11/'#1, $'!C10 -> 0.01 | E11: ='#1, $'!E11/('#1, $'!C10-'#1, $'!D11) -> 0.2709306664 | F11: =E11 / ((1+E11)^($F$6-B10)-1) -> 1.948358183e-07 | G11: ='#1, $'!F11/('#1, $'!C10-'#1, $'!D11) - F11 -> 0.439400959 | I11: =IF('#1, $'!H10=0, "", '#1, $'!H11/'#1, $'!$C11) ->  | J11: =IF('#1, $'!H10=0, "", '#1, $'!I11/'#1, $'!$D11) ->  | K11: =IF('#1, $'!H10-'#1, $'!I11=0, "", '#1, $'!J11/('#1, $'!H10-'#1, $'!I11)) ->  | L11: =IF('#1, $'!H10=0, "", '#1, $'!K11/'#1, $'!$F11) ->  | N11: =IF('#1, $'!M10=0, "", '#1, $'!M11/'#1, $'!$C11) ->  | O11: =IF('#1, $'!M10=0, "", '#1, $'!N11/'#1, $'!$D11) ->  | P11: =IF('#1, $'!M10-'#1, $'!N11=0, "", '#1, $'!O11/('#1, $'!M10-'#1, $'!N11)) ->  | Q11: =IF('#1, $'!M10=0, "", '#1, $'!P11/'#1, $'!$F11) ->  | S11: =IF('#1, $'!R10=0, "", '#1, $'!R11/'#1, $'!$C11) -> 2.731997623 | T11: =IF('#1, $'!R10=0, "", '#1, $'!S11/'#1, $'!$D11) -> 2.699098389 | U11: =IF('#1, $'!R10-'#1, $'!S11=0, "", '#1, $'!T11/('#1, $'!R10-'#1, $'!S11)) -> 0.001593219109 | V11: =IF('#1, $'!R10=0, "", '#1, $'!U11/'#1, $'!$F11) -> 1.118606366 | X11: =IF('#1, $'!W10=0, "", '#1, $'!W11/'#1, $'!$C11) ->  | Y11: =IF('#1, $'!W10=0, "", '#1, $'!X11/'#1, $'!$D11) ->  | Z11: =IF('#1, $'!W10-'#1, $'!X11=0, "", '#1, $'!Y11/('#1, $'!W10-'#1, $'!X11)) ->  | AA11: =IF('#1, $'!W10=0, "", '#1, $'!Z11/'#1, $'!$F11) -> 
B12: ='#1, $'!B12 -> 3 | C12: ='#1, $'!C12/'#1, $'!C$9 -> 0.856742053 | D12: ='#1, $'!D12/'#1, $'!C11 -> 0.01 | E12: ='#1, $'!E12/('#1, $'!C11-'#1, $'!D12) -> 0.2709306664 | F12: 2.476228646e-07 | G12: ='#1, $'!F12/('#1, $'!C11-'#1, $'!D12) - F12 -> 0.4433613752 | I12: =IF('#1, $'!H11=0, "", '#1, $'!H12/'#1, $'!$C12) ->  | J12: =IF('#1, $'!H11=0, "", '#1, $'!I12/'#1, $'!$D12) ->  | K12: =IF('#1, $'!H11-'#1, $'!I12=0, "", '#1, $'!J12/('#1, $'!H11-'#1, $'!I12)) ->  | L12: =IF('#1, $'!H11=0, "", '#1, $'!K12/'#1, $'!$F12) ->  | N12: =IF('#1, $'!M11=0, "", '#1, $'!M12/'#1, $'!$C12) ->  | O12: =IF('#1, $'!M11=0, "", '#1, $'!N12/'#1, $'!$D12) ->  | P12: =IF('#1, $'!M11-'#1, $'!N12=0, "", '#1, $'!O12/('#1, $'!M11-'#1, $'!N12)) ->  | Q12: =IF('#1, $'!M11=0, "", '#1, $'!P12/'#1, $'!$F12) ->  | S12: =IF('#1, $'!R11=0, "", '#1, $'!R12/'#1, $'!$C12) -> 2.931206539 | T12: =IF('#1, $'!R11=0, "", '#1, $'!S12/'#1, $'!$D12) -> 2.731997623 | U12: =IF('#1, $'!R11-'#1, $'!S12=0, "", '#1, $'!T12/('#1, $'!R11-'#1, $'!S12)) -> -4.637073571e-05 | V12: =IF('#1, $'!R11=0, "", '#1, $'!U12/'#1, $'!$F12) -> -0.2752639339 | X12: =IF('#1, $'!W11=0, "", '#1, $'!W12/'#1, $'!$C12) ->  | Y12: =IF('#1, $'!W11=0, "", '#1, $'!X12/'#1, $'!$D12) ->  | Z12: =IF('#1, $'!W11-'#1, $'!X12=0, "", '#1, $'!Y12/('#1, $'!W11-'#1, $'!X12)) ->  | AA12: =IF('#1, $'!W11=0, "", '#1, $'!Z12/'#1, $'!$F12) -> 
B13: ='#1, $'!B13 -> 4 | C13: ='#1, $'!C13/'#1, $'!C$9 -> 0.8132188426 | D13: ='#1, $'!D13/'#1, $'!C12 -> 0.01 | E13: ='#1, $'!E13/('#1, $'!C12-'#1, $'!D13) -> 0.2709306664 | F13: 3.147115703e-07 | G13: ='#1, $'!F13/('#1, $'!C12-'#1, $'!D13) - F13 -> 0.4474646447 | I13: =IF('#1, $'!H12=0, "", '#1, $'!H13/'#1, $'!$C13) ->  | J13: =IF('#1, $'!H12=0, "", '#1, $'!I13/'#1, $'!$D13) ->  | K13: =IF('#1, $'!H12-'#1, $'!I13=0, "", '#1, $'!J13/('#1, $'!H12-'#1, $'!I13)) ->  | L13: =IF('#1, $'!H12=0, "", '#1, $'!K13/'#1, $'!$F13) ->  | N13: =IF('#1, $'!M12=0, "", '#1, $'!M13/'#1, $'!$C13) ->  | O13: =IF('#1, $'!M12=0, "", '#1, $'!N13/'#1, $'!$D13) ->  | P13: =IF('#1, $'!M12-'#1, $'!N13=0, "", '#1, $'!O13/('#1, $'!M12-'#1, $'!N13)) ->  | Q13: =IF('#1, $'!M12=0, "", '#1, $'!P13/'#1, $'!$F13) ->  | S13: =IF('#1, $'!R12=0, "", '#1, $'!R13/'#1, $'!$C13) -> 3.0477157 | T13: =IF('#1, $'!R12=0, "", '#1, $'!S13/'#1, $'!$D13) -> 2.931206539 | U13: =IF('#1, $'!R12-'#1, $'!S13=0, "", '#1, $'!T13/('#1, $'!R12-'#1, $'!S13)) -> -0.0002640849793 | V13: =IF('#1, $'!R12=0, "", '#1, $'!U13/'#1, $'!$F13) -> 0 | X13: =IF('#1, $'!W12=0, "", '#1, $'!W13/'#1, $'!$C13) ->  | Y13: =IF('#1, $'!W12=0, "", '#1, $'!X13/'#1, $'!$D13) ->  | Z13: =IF('#1, $'!W12-'#1, $'!X13=0, "", '#1, $'!Y13/('#1, $'!W12-'#1, $'!X13)) ->  | AA13: =IF('#1, $'!W12=0, "", '#1, $'!Z13/'#1, $'!$F13) -> 
B14: ='#1, $'!B14 -> 5 | C14: ='#1, $'!C14/'#1, $'!C$9 -> 0.7716620241 | D14: ='#1, $'!D14/'#1, $'!C13 -> 0.01 | E14: ='#1, $'!E14/('#1, $'!C13-'#1, $'!D14) -> 0.2709306664 | F14: 3.999767116e-07 | G14: ='#1, $'!F14/('#1, $'!C13-'#1, $'!D14) - F14 -> 0.4517184218 | I14: =IF('#1, $'!H13=0, "", '#1, $'!H14/'#1, $'!$C14) ->  | J14: =IF('#1, $'!H13=0, "", '#1, $'!I14/'#1, $'!$D14) ->  | K14: =IF('#1, $'!H13-'#1, $'!I14=0, "", '#1, $'!J14/('#1, $'!H13-'#1, $'!I14)) ->  | L14: =IF('#1, $'!H13=0, "", '#1, $'!K14/'#1, $'!$F14) ->  | N14: =IF('#1, $'!M13=0, "", '#1, $'!M14/'#1, $'!$C14) ->  | O14: =IF('#1, $'!M13=0, "", '#1, $'!N14/'#1, $'!$D14) ->  | P14: =IF('#1, $'!M13-'#1, $'!N14=0, "", '#1, $'!O14/('#1, $'!M13-'#1, $'!N14)) ->  | Q14: =IF('#1, $'!M13=0, "", '#1, $'!P14/'#1, $'!$F14) ->  | S14: =IF('#1, $'!R13=0, "", '#1, $'!R14/'#1, $'!$C14) -> 3.199464083 | T14: =IF('#1, $'!R13=0, "", '#1, $'!S14/'#1, $'!$D14) -> 3.0477157 | U14: =IF('#1, $'!R13-'#1, $'!S14=0, "", '#1, $'!T14/('#1, $'!R13-'#1, $'!S14)) -> 0.02375461836 | V14: =IF('#1, $'!R13=0, "", '#1, $'!U14/'#1, $'!$F14) -> -1.138169118e-16 | X14: =IF('#1, $'!W13=0, "", '#1, $'!W14/'#1, $'!$C14) ->  | Y14: =IF('#1, $'!W13=0, "", '#1, $'!X14/'#1, $'!$D14) ->  | Z14: =IF('#1, $'!W13-'#1, $'!X14=0, "", '#1, $'!Y14/('#1, $'!W13-'#1, $'!X14)) ->  | AA14: =IF('#1, $'!W13=0, "", '#1, $'!Z14/'#1, $'!$F14) -> 
B15: ='#1, $'!B15 -> 6 | C15: ='#1, $'!C15/'#1, $'!C$9 -> 0.7319880425 | D15: ='#1, $'!D15/'#1, $'!C14 -> 0.01 | E15: ='#1, $'!E15/('#1, $'!C14-'#1, $'!D15) -> 0.2709306664 | F15: 5.08342872e-07 | G15: ='#1, $'!F15/('#1, $'!C14-'#1, $'!D15) - F15 -> 0.4561309164 | I15: =IF('#1, $'!H14=0, "", '#1, $'!H15/'#1, $'!$C15) ->  | J15: =IF('#1, $'!H14=0, "", '#1, $'!I15/'#1, $'!$D15) ->  | K15: =IF('#1, $'!H14-'#1, $'!I15=0, "", '#1, $'!J15/('#1, $'!H14-'#1, $'!I15)) ->  | L15: =IF('#1, $'!H14=0, "", '#1, $'!K15/'#1, $'!$F15) ->  | N15: =IF('#1, $'!M14=0, "", '#1, $'!M15/'#1, $'!$C15) ->  | O15: =IF('#1, $'!M14=0, "", '#1, $'!N15/'#1, $'!$D15) ->  | P15: =IF('#1, $'!M14-'#1, $'!N15=0, "", '#1, $'!O15/('#1, $'!M14-'#1, $'!N15)) ->  | Q15: =IF('#1, $'!M14=0, "", '#1, $'!P15/'#1, $'!$F15) ->  | S15: =IF('#1, $'!R14=0, "", '#1, $'!R15/'#1, $'!$C15) -> 3.352678966 | T15: =IF('#1, $'!R14=0, "", '#1, $'!S15/'#1, $'!$D15) -> 3.199464083 | U15: =IF('#1, $'!R14-'#1, $'!S15=0, "", '#1, $'!T15/('#1, $'!R14-'#1, $'!S15)) -> 0.03681918472 | V15: =IF('#1, $'!R14=0, "", '#1, $'!U15/'#1, $'!$F15) -> 1.187860104e-16 | X15: =IF('#1, $'!W14=0, "", '#1, $'!W15/'#1, $'!$C15) ->  | Y15: =IF('#1, $'!W14=0, "", '#1, $'!X15/'#1, $'!$D15) ->  | Z15: =IF('#1, $'!W14-'#1, $'!X15=0, "", '#1, $'!Y15/('#1, $'!W14-'#1, $'!X15)) ->  | AA15: =IF('#1, $'!W14=0, "", '#1, $'!Z15/'#1, $'!$F15) -> 
B16: ='#1, $'!B16 -> 7 | C16: ='#1, $'!C16/'#1, $'!C$9 -> 0.6941167674 | D16: ='#1, $'!D16/'#1, $'!C15 -> 0.01 | E16: ='#1, $'!E16/('#1, $'!C15-'#1, $'!D16) -> 0.2709306664 | F16: 6.460688734e-07 | G16: ='#1, $'!F16/('#1, $'!C15-'#1, $'!D16) - F16 -> 0.4607109458 | I16: =IF('#1, $'!H15=0, "", '#1, $'!H16/'#1, $'!$C16) ->  | J16: =IF('#1, $'!H15=0, "", '#1, $'!I16/'#1, $'!$D16) ->  | K16: =IF('#1, $'!H15-'#1, $'!I16=0, "", '#1, $'!J16/('#1, $'!H15-'#1, $'!I16)) ->  | L16: =IF('#1, $'!H15=0, "", '#1, $'!K16/'#1, $'!$F16) ->  | N16: =IF('#1, $'!M15=0, "", '#1, $'!M16/'#1, $'!$C16) ->  | O16: =IF('#1, $'!M15=0, "", '#1, $'!N16/'#1, $'!$D16) ->  | P16: =IF('#1, $'!M15-'#1, $'!N16=0, "", '#1, $'!O16/('#1, $'!M15-'#1, $'!N16)) ->  | Q16: =IF('#1, $'!M15=0, "", '#1, $'!P16/'#1, $'!$F16) ->  | S16: =IF('#1, $'!R15=0, "", '#1, $'!R16/'#1, $'!$C16) -> 3.515398434 | T16: =IF('#1, $'!R15=0, "", '#1, $'!S16/'#1, $'!$D16) -> 3.352678966 | U16: =IF('#1, $'!R15-'#1, $'!S16=0, "", '#1, $'!T16/('#1, $'!R15-'#1, $'!S16)) -> 0.03514585017 | V16: =IF('#1, $'!R15=0, "", '#1, $'!U16/'#1, $'!$F16) -> 1.239793318e-16 | X16: =IF('#1, $'!W15=0, "", '#1, $'!W16/'#1, $'!$C16) ->  | Y16: =IF('#1, $'!W15=0, "", '#1, $'!X16/'#1, $'!$D16) ->  | Z16: =IF('#1, $'!W15-'#1, $'!X16=0, "", '#1, $'!Y16/('#1, $'!W15-'#1, $'!X16)) ->  | AA16: =IF('#1, $'!W15=0, "", '#1, $'!Z16/'#1, $'!$F16) -> 
B17: ='#1, $'!B17 -> 8 | C17: ='#1, $'!C17/'#1, $'!C$9 -> 0.6579713565 | D17: ='#1, $'!D17/'#1, $'!C16 -> 0.01 | E17: ='#1, $'!E17/('#1, $'!C16-'#1, $'!D17) -> 0.2709306664 | F17: 8.211092743e-07 | G17: ='#1, $'!F17/('#1, $'!C16-'#1, $'!D17) - F17 -> 0.4654679913 | I17: =IF('#1, $'!H16=0, "", '#1, $'!H17/'#1, $'!$C17) ->  | J17: =IF('#1, $'!H16=0, "", '#1, $'!I17/'#1, $'!$D17) ->  | K17: =IF('#1, $'!H16-'#1, $'!I17=0, "", '#1, $'!J17/('#1, $'!H16-'#1, $'!I17)) ->  | L17: =IF('#1, $'!H16=0, "", '#1, $'!K17/'#1, $'!$F17) ->  | N17: =IF('#1, $'!M16=0, "", '#1, $'!M17/'#1, $'!$C17) ->  | O17: =IF('#1, $'!M16=0, "", '#1, $'!N17/'#1, $'!$D17) ->  | P17: =IF('#1, $'!M16-'#1, $'!N17=0, "", '#1, $'!O17/('#1, $'!M16-'#1, $'!N17)) ->  | Q17: =IF('#1, $'!M16=0, "", '#1, $'!P17/'#1, $'!$F17) ->  | S17: =IF('#1, $'!R16=0, "", '#1, $'!R17/'#1, $'!$C17) -> 3.688304392 | T17: =IF('#1, $'!R16=0, "", '#1, $'!S17/'#1, $'!$D17) -> 3.515398434 | U17: =IF('#1, $'!R16-'#1, $'!S17=0, "", '#1, $'!T17/('#1, $'!R16-'#1, $'!S17)) -> 0.03352827271 | V17: =IF('#1, $'!R16=0, "", '#1, $'!U17/'#1, $'!$F17) -> 1.294074544e-16 | X17: =IF('#1, $'!W16=0, "", '#1, $'!W17/'#1, $'!$C17) ->  | Y17: =IF('#1, $'!W16=0, "", '#1, $'!X17/'#1, $'!$D17) ->  | Z17: =IF('#1, $'!W16-'#1, $'!X17=0, "", '#1, $'!Y17/('#1, $'!W16-'#1, $'!X17)) ->  | AA17: =IF('#1, $'!W16=0, "", '#1, $'!Z17/'#1, $'!$F17) -> 
B18: ='#1, $'!B18 -> 9 | C18: ='#1, $'!C18/'#1, $'!C$9 -> 0.6234781231 | D18: ='#1, $'!D18/'#1, $'!C17 -> 0.01 | E18: ='#1, $'!E18/('#1, $'!C17-'#1, $'!D18) -> 0.2709306664 | F18: 1.043573814e-06 | G18: ='#1, $'!F18/('#1, $'!C17-'#1, $'!D18) - F18 -> 0.470412262 | I18: =IF('#1, $'!H17=0, "", '#1, $'!H18/'#1, $'!$C18) ->  | J18: =IF('#1, $'!H17=0, "", '#1, $'!I18/'#1, $'!$D18) ->  | K18: =IF('#1, $'!H17-'#1, $'!I18=0, "", '#1, $'!J18/('#1, $'!H17-'#1, $'!I18)) ->  | L18: =IF('#1, $'!H17=0, "", '#1, $'!K18/'#1, $'!$F18) ->  | N18: =IF('#1, $'!M17=0, "", '#1, $'!M18/'#1, $'!$C18) ->  | O18: =IF('#1, $'!M17=0, "", '#1, $'!N18/'#1, $'!$D18) ->  | P18: =IF('#1, $'!M17-'#1, $'!N18=0, "", '#1, $'!O18/('#1, $'!M17-'#1, $'!N18)) ->  | Q18: =IF('#1, $'!M17=0, "", '#1, $'!P18/'#1, $'!$F18) ->  | S18: =IF('#1, $'!R17=0, "", '#1, $'!R18/'#1, $'!$C18) -> 3.872137128 | T18: =IF('#1, $'!R17=0, "", '#1, $'!S18/'#1, $'!$D18) -> 3.688304392 | U18: =IF('#1, $'!R17-'#1, $'!S18=0, "", '#1, $'!T18/('#1, $'!R17-'#1, $'!S18)) -> 0.03196569064 | V18: =IF('#1, $'!R17=0, "", '#1, $'!U18/'#1, $'!$F18) -> 2.026222303e-16 | X18: =IF('#1, $'!W17=0, "", '#1, $'!W18/'#1, $'!$C18) ->  | Y18: =IF('#1, $'!W17=0, "", '#1, $'!X18/'#1, $'!$D18) ->  | Z18: =IF('#1, $'!W17-'#1, $'!X18=0, "", '#1, $'!Y18/('#1, $'!W17-'#1, $'!X18)) ->  | AA18: =IF('#1, $'!W17=0, "", '#1, $'!Z18/'#1, $'!$F18) -> 
B19: ='#1, $'!B19 -> 10 | C19: ='#1, $'!C19/'#1, $'!C$9 -> 0.5905664101 | D19: ='#1, $'!D19/'#1, $'!C18 -> 0.01 | E19: ='#1, $'!E19/('#1, $'!C18-'#1, $'!D19) -> 0.2709306664 | F19: 1.326311347e-06 | G19: ='#1, $'!F19/('#1, $'!C18-'#1, $'!D19) - F19 -> 0.4755547656 | I19: =IF('#1, $'!H18=0, "", '#1, $'!H19/'#1, $'!$C19) ->  | J19: =IF('#1, $'!H18=0, "", '#1, $'!I19/'#1, $'!$D19) ->  | K19: =IF('#1, $'!H18-'#1, $'!I19=0, "", '#1, $'!J19/('#1, $'!H18-'#1, $'!I19)) ->  | L19: =IF('#1, $'!H18=0, "", '#1, $'!K19/'#1, $'!$F19) ->  | N19: =IF('#1, $'!M18=0, "", '#1, $'!M19/'#1, $'!$C19) ->  | O19: =IF('#1, $'!M18=0, "", '#1, $'!N19/'#1, $'!$D19) ->  | P19: =IF('#1, $'!M18-'#1, $'!N19=0, "", '#1, $'!O19/('#1, $'!M18-'#1, $'!N19)) ->  | Q19: =IF('#1, $'!M18=0, "", '#1, $'!P19/'#1, $'!$F19) ->  | S19: =IF('#1, $'!R18=0, "", '#1, $'!R19/'#1, $'!$C19) -> 4.067701341 | T19: =IF('#1, $'!R18=0, "", '#1, $'!S19/'#1, $'!$D19) -> 3.872137128 | U19: =IF('#1, $'!R18-'#1, $'!S19=0, "", '#1, $'!T19/('#1, $'!R18-'#1, $'!S19)) -> 0.03045726912 | V19: =IF('#1, $'!R18=0, "", '#1, $'!U19/'#1, $'!$F19) -> -1.410130963e-16 | X19: =IF('#1, $'!W18=0, "", '#1, $'!W19/'#1, $'!$C19) ->  | Y19: =IF('#1, $'!W18=0, "", '#1, $'!X19/'#1, $'!$D19) ->  | Z19: =IF('#1, $'!W18-'#1, $'!X19=0, "", '#1, $'!Y19/('#1, $'!W18-'#1, $'!X19)) ->  | AA19: =IF('#1, $'!W18=0, "", '#1, $'!Z19/'#1, $'!$F19) -> 
B20: ='#1, $'!B20 -> 11 | C20: ='#1, $'!C20/'#1, $'!C$9 -> 0.5591684684 | D20: ='#1, $'!D20/'#1, $'!C19 -> 0.01 | E20: ='#1, $'!E20/('#1, $'!C19-'#1, $'!D20) -> 0.2709306664 | F20: 1.685652e-06 | G20: ='#1, $'!F20/('#1, $'!C19-'#1, $'!D20) - F20 -> 0.4809073879 | I20: =IF('#1, $'!H19=0, "", '#1, $'!H20/'#1, $'!$C20) ->  | J20: =IF('#1, $'!H19=0, "", '#1, $'!I20/'#1, $'!$D20) ->  | K20: =IF('#1, $'!H19-'#1, $'!I20=0, "", '#1, $'!J20/('#1, $'!H19-'#1, $'!I20)) ->  | L20: =IF('#1, $'!H19=0, "", '#1, $'!K20/'#1, $'!$F20) ->  | N20: =IF('#1, $'!M19=0, "", '#1, $'!M20/'#1, $'!$C20) ->  | O20: =IF('#1, $'!M19=0, "", '#1, $'!N20/'#1, $'!$D20) ->  | P20: =IF('#1, $'!M19-'#1, $'!N20=0, "", '#1, $'!O20/('#1, $'!M19-'#1, $'!N20)) ->  | Q20: =IF('#1, $'!M19=0, "", '#1, $'!P20/'#1, $'!$F20) ->  | S20: =IF('#1, $'!R19=0, "", '#1, $'!R20/'#1, $'!$C20) -> 4.27587292 | T20: =IF('#1, $'!R19=0, "", '#1, $'!S20/'#1, $'!$D20) -> 4.067701341 | U20: =IF('#1, $'!R19-'#1, $'!S20=0, "", '#1, $'!T20/('#1, $'!R19-'#1, $'!S20)) -> 0.02900210745 | V20: =IF('#1, $'!R19=0, "", '#1, $'!U20/'#1, $'!$F20) -> 0 | X20: =IF('#1, $'!W19=0, "", '#1, $'!W20/'#1, $'!$C20) ->  | Y20: =IF('#1, $'!W19=0, "", '#1, $'!X20/'#1, $'!$D20) ->  | Z20: =IF('#1, $'!W19-'#1, $'!X20=0, "", '#1, $'!Y20/('#1, $'!W19-'#1, $'!X20)) ->  | AA20: =IF('#1, $'!W19=0, "", '#1, $'!Z20/'#1, $'!$F20) -> 
B21: ='#1, $'!B21 -> 12 | C21: ='#1, $'!C21/'#1, $'!C$9 -> 0.5292193401 | D21: ='#1, $'!D21/'#1, $'!C20 -> 0.01 | E21: ='#1, $'!E21/('#1, $'!C20-'#1, $'!D21) -> 0.2709306664 | F21: 2.142350431e-06 | G21: ='#1, $'!F21/('#1, $'!C20-'#1, $'!D21) - F21 -> 0.4864829817 | I21: =IF('#1, $'!H20=0, "", '#1, $'!H21/'#1, $'!$C21) ->  | J21: =IF('#1, $'!H20=0, "", '#1, $'!I21/'#1, $'!$D21) ->  | K21: =IF('#1, $'!H20-'#1, $'!I21=0, "", '#1, $'!J21/('#1, $'!H20-'#1, $'!I21)) ->  | L21: =IF('#1, $'!H20=0, "", '#1, $'!K21/'#1, $'!$F21) ->  | N21: =IF('#1, $'!M20=0, "", '#1, $'!M21/'#1, $'!$C21) ->  | O21: =IF('#1, $'!M20=0, "", '#1, $'!N21/'#1, $'!$D21) ->  | P21: =IF('#1, $'!M20-'#1, $'!N21=0, "", '#1, $'!O21/('#1, $'!M20-'#1, $'!N21)) ->  | Q21: =IF('#1, $'!M20=0, "", '#1, $'!P21/'#1, $'!$F21) ->  | S21: =IF('#1, $'!R20=0, "", '#1, $'!R21/'#1, $'!$C21) -> 4.497606585 | T21: =IF('#1, $'!R20=0, "", '#1, $'!S21/'#1, $'!$D21) -> 4.27587292 | U21: =IF('#1, $'!R20-'#1, $'!S21=0, "", '#1, $'!T21/('#1, $'!R20-'#1, $'!S21)) -> 0.02759924622 | V21: =IF('#1, $'!R20=0, "", '#1, $'!U21/'#1, $'!$F21) -> 0 | X21: =IF('#1, $'!W20=0, "", '#1, $'!W21/'#1, $'!$C21) ->  | Y21: =IF('#1, $'!W20=0, "", '#1, $'!X21/'#1, $'!$D21) ->  | Z21: =IF('#1, $'!W20-'#1, $'!X21=0, "", '#1, $'!Y21/('#1, $'!W20-'#1, $'!X21)) ->  | AA21: =IF('#1, $'!W20=0, "", '#1, $'!Z21/'#1, $'!$F21) -> 
B22: ='#1, $'!B22 -> 13 | C22: ='#1, $'!C22/'#1, $'!C$9 -> 0.500656746 | D22: ='#1, $'!D22/'#1, $'!C21 -> 0.01 | E22: ='#1, $'!E22/('#1, $'!C21-'#1, $'!D22) -> 0.2709306664 | F22: 2.722784693e-06 | G22: ='#1, $'!F22/('#1, $'!C21-'#1, $'!D22) - F22 -> 0.4922954672 | I22: =IF('#1, $'!H21=0, "", '#1, $'!H22/'#1, $'!$C22) ->  | J22: =IF('#1, $'!H21=0, "", '#1, $'!I22/'#1, $'!$D22) ->  | K22: =IF('#1, $'!H21-'#1, $'!I22=0, "", '#1, $'!J22/('#1, $'!H21-'#1, $'!I22)) ->  | L22: =IF('#1, $'!H21=0, "", '#1, $'!K22/'#1, $'!$F22) ->  | N22: =IF('#1, $'!M21=0, "", '#1, $'!M22/'#1, $'!$C22) ->  | O22: =IF('#1, $'!M21=0, "", '#1, $'!N22/'#1, $'!$D22) ->  | P22: =IF('#1, $'!M21-'#1, $'!N22=0, "", '#1, $'!O22/('#1, $'!M21-'#1, $'!N22)) ->  | Q22: =IF('#1, $'!M21=0, "", '#1, $'!P22/'#1, $'!$F22) ->  | S22: =IF('#1, $'!R21=0, "", '#1, $'!R22/'#1, $'!$C22) -> 4.733944503 | T22: =IF('#1, $'!R21=0, "", '#1, $'!S22/'#1, $'!$D22) -> 4.497606585 | U22: =IF('#1, $'!R21-'#1, $'!S22=0, "", '#1, $'!T22/('#1, $'!R21-'#1, $'!S22)) -> 0.0262476741 | V22: =IF('#1, $'!R21=0, "", '#1, $'!U22/'#1, $'!$F22) -> 8.023954841e-17 | X22: =IF('#1, $'!W21=0, "", '#1, $'!W22/'#1, $'!$C22) ->  | Y22: =IF('#1, $'!W21=0, "", '#1, $'!X22/'#1, $'!$D22) ->  | Z22: =IF('#1, $'!W21-'#1, $'!X22=0, "", '#1, $'!Y22/('#1, $'!W21-'#1, $'!X22)) ->  | AA22: =IF('#1, $'!W21=0, "", '#1, $'!Z22/'#1, $'!$F22) -> 
B23: ='#1, $'!B23 -> 14 | C23: ='#1, $'!C23/'#1, $'!C$9 -> 0.4734209786 | D23: ='#1, $'!D23/'#1, $'!C22 -> 0.01 | E23: ='#1, $'!E23/('#1, $'!C22-'#1, $'!D23) -> 0.2709306664 | F23: 3.460479987e-06 | G23: ='#1, $'!F23/('#1, $'!C22-'#1, $'!D23) - F23 -> 0.4983599439 | I23: =IF('#1, $'!H22=0, "", '#1, $'!H23/'#1, $'!$C23) ->  | J23: =IF('#1, $'!H22=0, "", '#1, $'!I23/'#1, $'!$D23) ->  | K23: =IF('#1, $'!H22-'#1, $'!I23=0, "", '#1, $'!J23/('#1, $'!H22-'#1, $'!I23)) ->  | L23: =IF('#1, $'!H22=0, "", '#1, $'!K23/'#1, $'!$F23) ->  | N23: =IF('#1, $'!M22=0, "", '#1, $'!M23/'#1, $'!$C23) ->  | O23: =IF('#1, $'!M22=0, "", '#1, $'!N23/'#1, $'!$D23) ->  | P23: =IF('#1, $'!M22-'#1, $'!N23=0, "", '#1, $'!O23/('#1, $'!M22-'#1, $'!N23)) ->  | Q23: =IF('#1, $'!M22=0, "", '#1, $'!P23/'#1, $'!$F23) ->  | S23: =IF('#1, $'!R22=0, "", '#1, $'!R23/'#1, $'!$C23) -> 4.986026054 | T23: =IF('#1, $'!R22=0, "", '#1, $'!S23/'#1, $'!$D23) -> 4.733944503 | U23: =IF('#1, $'!R22-'#1, $'!S23=0, "", '#1, $'!T23/('#1, $'!R22-'#1, $'!S23)) -> 0.02494633451 | V23: =IF('#1, $'!R22=0, "", '#1, $'!U23/'#1, $'!$F23) -> 0 | X23: =IF('#1, $'!W22=0, "", '#1, $'!W23/'#1, $'!$C23) ->  | Y23: =IF('#1, $'!W22=0, "", '#1, $'!X23/'#1, $'!$D23) ->  | Z23: =IF('#1, $'!W22-'#1, $'!X23=0, "", '#1, $'!Y23/('#1, $'!W22-'#1, $'!X23)) ->  | AA23: =IF('#1, $'!W22=0, "", '#1, $'!Z23/'#1, $'!$F23) -> 
B24: ='#1, $'!B24 -> 15 | C24: ='#1, $'!C24/'#1, $'!C$9 -> 0.4474547982 | D24: ='#1, $'!D24/'#1, $'!C23 -> 0.01 | E24: ='#1, $'!E24/('#1, $'!C23-'#1, $'!D24) -> 0.2709306664 | F24: 4.398045355e-06 | G24: ='#1, $'!F24/('#1, $'!C23-'#1, $'!D24) - F24 -> 0.5046928183 | I24: =IF('#1, $'!H23=0, "", '#1, $'!H24/'#1, $'!$C24) ->  | J24: =IF('#1, $'!H23=0, "", '#1, $'!I24/'#1, $'!$D24) ->  | K24: =IF('#1, $'!H23-'#1, $'!I24=0, "", '#1, $'!J24/('#1, $'!H23-'#1, $'!I24)) ->  | L24: =IF('#1, $'!H23=0, "", '#1, $'!K24/'#1, $'!$F24) ->  | N24: =IF('#1, $'!M23=0, "", '#1, $'!M24/'#1, $'!$C24) ->  | O24: =IF('#1, $'!M23=0, "", '#1, $'!N24/'#1, $'!$D24) ->  | P24: =IF('#1, $'!M23-'#1, $'!N24=0, "", '#1, $'!O24/('#1, $'!M23-'#1, $'!N24)) ->  | Q24: =IF('#1, $'!M23=0, "", '#1, $'!P24/'#1, $'!$F24) ->  | S24: =IF('#1, $'!R23=0, "", '#1, $'!R24/'#1, $'!$C24) -> 5.255098902 | T24: =IF('#1, $'!R23=0, "", '#1, $'!S24/'#1, $'!$D24) -> 4.986026054 | U24: =IF('#1, $'!R23-'#1, $'!S24=0, "", '#1, $'!T24/('#1, $'!R23-'#1, $'!S24)) -> 0.0236941319 | V24: =IF('#1, $'!R23=0, "", '#1, $'!U24/'#1, $'!$F24) -> 0 | X24: =IF('#1, $'!W23=0, "", '#1, $'!W24/'#1, $'!$C24) ->  | Y24: =IF('#1, $'!W23=0, "", '#1, $'!X24/'#1, $'!$D24) ->  | Z24: =IF('#1, $'!W23-'#1, $'!X24=0, "", '#1, $'!Y24/('#1, $'!W23-'#1, $'!X24)) ->  | AA24: =IF('#1, $'!W23=0, "", '#1, $'!Z24/'#1, $'!$F24) -> 
B25: ='#1, $'!B25 -> 16 | C25: ='#1, $'!C25/'#1, $'!C$9 -> 0.4227033335 | D25: ='#1, $'!D25/'#1, $'!C24 -> 0.01 | E25: ='#1, $'!E25/('#1, $'!C24-'#1, $'!D25) -> 0.2709306664 | F25: 5.589635297e-06 | G25: ='#1, $'!F25/('#1, $'!C24-'#1, $'!D25) - F25 -> 0.5113119474 | I25: =IF('#1, $'!H24=0, "", '#1, $'!H25/'#1, $'!$C25) ->  | J25: =IF('#1, $'!H24=0, "", '#1, $'!I25/'#1, $'!$D25) ->  | K25: =IF('#1, $'!H24-'#1, $'!I25=0, "", '#1, $'!J25/('#1, $'!H24-'#1, $'!I25)) ->  | L25: =IF('#1, $'!H24=0, "", '#1, $'!K25/'#1, $'!$F25) ->  | N25: =IF('#1, $'!M24=0, "", '#1, $'!M25/'#1, $'!$C25) ->  | O25: =IF('#1, $'!M24=0, "", '#1, $'!N25/'#1, $'!$D25) ->  | P25: =IF('#1, $'!M24-'#1, $'!N25=0, "", '#1, $'!O25/('#1, $'!M24-'#1, $'!N25)) ->  | Q25: =IF('#1, $'!M24=0, "", '#1, $'!P25/'#1, $'!$F25) ->  | S25: =IF('#1, $'!R24=0, "", '#1, $'!R25/'#1, $'!$C25) -> 5.542531592 | T25: =IF('#1, $'!R24=0, "", '#1, $'!S25/'#1, $'!$D25) -> 5.255098902 | U25: =IF('#1, $'!R24-'#1, $'!S25=0, "", '#1, $'!T25/('#1, $'!R24-'#1, $'!S25)) -> 0.0224899378 | V25: =IF('#1, $'!R24=0, "", '#1, $'!U25/'#1, $'!$F25) -> 0 | X25: =IF('#1, $'!W24=0, "", '#1, $'!W25/'#1, $'!$C25) ->  | Y25: =IF('#1, $'!W24=0, "", '#1, $'!X25/'#1, $'!$D25) ->  | Z25: =IF('#1, $'!W24-'#1, $'!X25=0, "", '#1, $'!Y25/('#1, $'!W24-'#1, $'!X25)) ->  | AA25: =IF('#1, $'!W24=0, "", '#1, $'!Z25/'#1, $'!$F25) -> 
B26: ='#1, $'!B26 -> 17 | C26: ='#1, $'!C26/'#1, $'!C$9 -> 0.3991139867 | D26: ='#1, $'!D26/'#1, $'!C25 -> 0.01 | E26: ='#1, $'!E26/('#1, $'!C25-'#1, $'!D26) -> 0.2709306664 | F26: 7.104078622e-06 | G26: ='#1, $'!F26/('#1, $'!C25-'#1, $'!D26) - F26 -> 0.5182368016 | I26: =IF('#1, $'!H25=0, "", '#1, $'!H26/'#1, $'!$C26) ->  | J26: =IF('#1, $'!H25=0, "", '#1, $'!I26/'#1, $'!$D26) ->  | K26: =IF('#1, $'!H25-'#1, $'!I26=0, "", '#1, $'!J26/('#1, $'!H25-'#1, $'!I26)) ->  | L26: =IF('#1, $'!H25=0, "", '#1, $'!K26/'#1, $'!$F26) ->  | N26: =IF('#1, $'!M25=0, "", '#1, $'!M26/'#1, $'!$C26) ->  | O26: =IF('#1, $'!M25=0, "", '#1, $'!N26/'#1, $'!$D26) ->  | P26: =IF('#1, $'!M25-'#1, $'!N26=0, "", '#1, $'!O26/('#1, $'!M25-'#1, $'!N26)) ->  | Q26: =IF('#1, $'!M25=0, "", '#1, $'!P26/'#1, $'!$F26) ->  | S26: =IF('#1, $'!R25=0, "", '#1, $'!R26/'#1, $'!$C26) -> 5.849827931 | T26: =IF('#1, $'!R25=0, "", '#1, $'!S26/'#1, $'!$D26) -> 5.542531592 | U26: =IF('#1, $'!R25-'#1, $'!S26=0, "", '#1, $'!T26/('#1, $'!R25-'#1, $'!S26)) -> 0.02133259646 | V26: =IF('#1, $'!R25=0, "", '#1, $'!U26/'#1, $'!$F26) -> 0 | X26: =IF('#1, $'!W25=0, "", '#1, $'!W26/'#1, $'!$C26) ->  | Y26: =IF('#1, $'!W25=0, "", '#1, $'!X26/'#1, $'!$D26) ->  | Z26: =IF('#1, $'!W25-'#1, $'!X26=0, "", '#1, $'!Y26/('#1, $'!W25-'#1, $'!X26)) ->  | AA26: =IF('#1, $'!W25=0, "", '#1, $'!Z26/'#1, $'!$F26) -> 
B27: ='#1, $'!B27 -> 18 | C27: ='#1, $'!C27/'#1, $'!C$9 -> 0.3766363414 | D27: ='#1, $'!D27/'#1, $'!C26 -> 0.01 | E27: ='#1, $'!E27/('#1, $'!C26-'#1, $'!D27) -> 0.2709306664 | F27: 9.028855519e-06 | G27: ='#1, $'!F27/('#1, $'!C26-'#1, $'!D27) - F27 -> 0.5254886503 | I27: =IF('#1, $'!H26=0, "", '#1, $'!H27/'#1, $'!$C27) ->  | J27: =IF('#1, $'!H26=0, "", '#1, $'!I27/'#1, $'!$D27) ->  | K27: =IF('#1, $'!H26-'#1, $'!I27=0, "", '#1, $'!J27/('#1, $'!H26-'#1, $'!I27)) ->  | L27: =IF('#1, $'!H26=0, "", '#1, $'!K27/'#1, $'!$F27) ->  | N27: =IF('#1, $'!M26=0, "", '#1, $'!M27/'#1, $'!$C27) ->  | O27: =IF('#1, $'!M26=0, "", '#1, $'!N27/'#1, $'!$D27) ->  | P27: =IF('#1, $'!M26-'#1, $'!N27=0, "", '#1, $'!O27/('#1, $'!M26-'#1, $'!N27)) ->  | Q27: =IF('#1, $'!M26=0, "", '#1, $'!P27/'#1, $'!$F27) ->  | S27: =IF('#1, $'!R26=0, "", '#1, $'!R27/'#1, $'!$C27) -> 6.178643426 | T27: =IF('#1, $'!R26=0, "", '#1, $'!S27/'#1, $'!$D27) -> 5.849827931 | U27: =IF('#1, $'!R26-'#1, $'!S27=0, "", '#1, $'!T27/('#1, $'!R26-'#1, $'!S27)) -> 0.0202209303 | V27: =IF('#1, $'!R26=0, "", '#1, $'!U27/'#1, $'!$F27) -> 0 | X27: =IF('#1, $'!W26=0, "", '#1, $'!W27/'#1, $'!$C27) ->  | Y27: =IF('#1, $'!W26=0, "", '#1, $'!X27/'#1, $'!$D27) ->  | Z27: =IF('#1, $'!W26-'#1, $'!X27=0, "", '#1, $'!Y27/('#1, $'!W26-'#1, $'!X27)) ->  | AA27: =IF('#1, $'!W26=0, "", '#1, $'!Z27/'#1, $'!$F27) -> 
B28: ='#1, $'!B28 -> 19 | C28: ='#1, $'!C28/'#1, $'!C$9 -> 0.3552220746 | D28: ='#1, $'!D28/'#1, $'!C27 -> 0.01 | E28: ='#1, $'!E28/('#1, $'!C27-'#1, $'!D28) -> 0.2709306664 | F28: 1.147515297e-05 | G28: ='#1, $'!F28/('#1, $'!C27-'#1, $'!D28) - F28 -> 0.5330907728 | I28: =IF('#1, $'!H27=0, "", '#1, $'!H28/'#1, $'!$C28) ->  | J28: =IF('#1, $'!H27=0, "", '#1, $'!I28/'#1, $'!$D28) ->  | K28: =IF('#1, $'!H27-'#1, $'!I28=0, "", '#1, $'!J28/('#1, $'!H27-'#1, $'!I28)) ->  | L28: =IF('#1, $'!H27=0, "", '#1, $'!K28/'#1, $'!$F28) ->  | N28: =IF('#1, $'!M27=0, "", '#1, $'!M28/'#1, $'!$C28) ->  | O28: =IF('#1, $'!M27=0, "", '#1, $'!N28/'#1, $'!$D28) ->  | P28: =IF('#1, $'!M27-'#1, $'!N28=0, "", '#1, $'!O28/('#1, $'!M27-'#1, $'!N28)) ->  | Q28: =IF('#1, $'!M27=0, "", '#1, $'!P28/'#1, $'!$F28) ->  | S28: =IF('#1, $'!R27=0, "", '#1, $'!R28/'#1, $'!$C28) -> 6.530804164 | T28: =IF('#1, $'!R27=0, "", '#1, $'!S28/'#1, $'!$D28) -> 6.178643426 | U28: =IF('#1, $'!R27-'#1, $'!S28=0, "", '#1, $'!T28/('#1, $'!R27-'#1, $'!S28)) -> 0.01915374492 | V28: =IF('#1, $'!R27=0, "", '#1, $'!U28/'#1, $'!$F28) -> -0.2023550558 | X28: =IF('#1, $'!W27=0, "", '#1, $'!W28/'#1, $'!$C28) ->  | Y28: =IF('#1, $'!W27=0, "", '#1, $'!X28/'#1, $'!$D28) ->  | Z28: =IF('#1, $'!W27-'#1, $'!X28=0, "", '#1, $'!Y28/('#1, $'!W27-'#1, $'!X28)) ->  | AA28: =IF('#1, $'!W27=0, "", '#1, $'!Z28/'#1, $'!$F28) -> 
B29: ='#1, $'!B29 -> 20 | C29: ='#1, $'!C29/'#1, $'!C$9 -> 0.3348248726 | D29: ='#1, $'!D29/'#1, $'!C28 -> 0.01 | E29: ='#1, $'!E29/('#1, $'!C28-'#1, $'!D29) -> 0.2709306664 | F29: 1.458429117e-05 | G29: ='#1, $'!F29/('#1, $'!C28-'#1, $'!D29) - F29 -> 0.5410687004 | I29: =IF('#1, $'!H28=0, "", '#1, $'!H29/'#1, $'!$C29) ->  | J29: =IF('#1, $'!H28=0, "", '#1, $'!I29/'#1, $'!$D29) ->  | K29: =IF('#1, $'!H28-'#1, $'!I29=0, "", '#1, $'!J29/('#1, $'!H28-'#1, $'!I29)) ->  | L29: =IF('#1, $'!H28=0, "", '#1, $'!K29/'#1, $'!$F29) ->  | N29: =IF('#1, $'!M28=0, "", '#1, $'!M29/'#1, $'!$C29) ->  | O29: =IF('#1, $'!M28=0, "", '#1, $'!N29/'#1, $'!$D29) ->  | P29: =IF('#1, $'!M28-'#1, $'!N29=0, "", '#1, $'!O29/('#1, $'!M28-'#1, $'!N29)) ->  | Q29: =IF('#1, $'!M28=0, "", '#1, $'!P29/'#1, $'!$F29) ->  | S29: =IF('#1, $'!R28=0, "", '#1, $'!R29/'#1, $'!$C29) -> 6.827142094 | T29: =IF('#1, $'!R28=0, "", '#1, $'!S29/'#1, $'!$D29) -> 6.530804164 | U29: =IF('#1, $'!R28-'#1, $'!S29=0, "", '#1, $'!T29/('#1, $'!R28-'#1, $'!S29)) -> 0.01812983385 | V29: =IF('#1, $'!R28=0, "", '#1, $'!U29/'#1, $'!$F29) -> 0.8571428571 | X29: =IF('#1, $'!W28=0, "", '#1, $'!W29/'#1, $'!$C29) ->  | Y29: =IF('#1, $'!W28=0, "", '#1, $'!X29/'#1, $'!$D29) ->  | Z29: =IF('#1, $'!W28-'#1, $'!X29=0, "", '#1, $'!Y29/('#1, $'!W28-'#1, $'!X29)) ->  | AA29: =IF('#1, $'!W28=0, "", '#1, $'!Z29/'#1, $'!$F29) -> 
B30: ='#1, $'!B30 -> 21 | C30: ='#1, $'!C30/'#1, $'!C$9 -> 0.3154003497 | D30: ='#1, $'!D30/'#1, $'!C29 -> 0.01 | E30: ='#1, $'!E30/('#1, $'!C29-'#1, $'!D30) -> 0.2709306664 | F30: 1.853589322e-05 | G30: ='#1, $'!F30/('#1, $'!C29-'#1, $'!D30) - F30 -> 0.5494504933 | I30: =IF('#1, $'!H29=0, "", '#1, $'!H30/'#1, $'!$C30) ->  | J30: =IF('#1, $'!H29=0, "", '#1, $'!I30/'#1, $'!$D30) ->  | K30: =IF('#1, $'!H29-'#1, $'!I30=0, "", '#1, $'!J30/('#1, $'!H29-'#1, $'!I30)) ->  | L30: =IF('#1, $'!H29=0, "", '#1, $'!K30/'#1, $'!$F30) ->  | N30: =IF('#1, $'!M29=0, "", '#1, $'!M30/'#1, $'!$C30) ->  | O30: =IF('#1, $'!M29=0, "", '#1, $'!N30/'#1, $'!$D30) ->  | P30: =IF('#1, $'!M29-'#1, $'!N30=0, "", '#1, $'!O30/('#1, $'!M29-'#1, $'!N30)) ->  | Q30: =IF('#1, $'!M29=0, "", '#1, $'!P30/'#1, $'!$F30) ->  | S30: =IF('#1, $'!R29=0, "", '#1, $'!R30/'#1, $'!$C30) -> 7.144769298 | T30: =IF('#1, $'!R29=0, "", '#1, $'!S30/'#1, $'!$D30) -> 6.827142094 | U30: =IF('#1, $'!R29-'#1, $'!S30=0, "", '#1, $'!T30/('#1, $'!R29-'#1, $'!S30)) -> 0.01735190189 | V30: =IF('#1, $'!R29=0, "", '#1, $'!U30/'#1, $'!$F30) -> 0.8571428571 | X30: =IF('#1, $'!W29=0, "", '#1, $'!W30/'#1, $'!$C30) ->  | Y30: =IF('#1, $'!W29=0, "", '#1, $'!X30/'#1, $'!$D30) ->  | Z30: =IF('#1, $'!W29-'#1, $'!X30=0, "", '#1, $'!Y30/('#1, $'!W29-'#1, $'!X30)) ->  | AA30: =IF('#1, $'!W29=0, "", '#1, $'!Z30/'#1, $'!$F30) -> 
B31: ='#1, $'!B31 -> 22 | C31: ='#1, $'!C31/'#1, $'!C$9 -> 0.2969059699 | D31: ='#1, $'!D31/'#1, $'!C30 -> 0.01 | E31: ='#1, $'!E31/('#1, $'!C30-'#1, $'!D31) -> 0.2709306664 | F31: 2.35582718e-05 | G31: ='#1, $'!F31/('#1, $'!C30-'#1, $'!D31) - F31 -> 0.5582670592 | I31: =IF('#1, $'!H30=0, "", '#1, $'!H31/'#1, $'!$C31) ->  | J31: =IF('#1, $'!H30=0, "", '#1, $'!I31/'#1, $'!$D31) ->  | K31: =IF('#1, $'!H30-'#1, $'!I31=0, "", '#1, $'!J31/('#1, $'!H30-'#1, $'!I31)) ->  | L31: =IF('#1, $'!H30=0, "", '#1, $'!K31/'#1, $'!$F31) ->  | N31: =IF('#1, $'!M30=0, "", '#1, $'!M31/'#1, $'!$C31) ->  | O31: =IF('#1, $'!M30=0, "", '#1, $'!N31/'#1, $'!$D31) ->  | P31: =IF('#1, $'!M30-'#1, $'!N31=0, "", '#1, $'!O31/('#1, $'!M30-'#1, $'!N31)) ->  | Q31: =IF('#1, $'!M30=0, "", '#1, $'!P31/'#1, $'!$F31) ->  | S31: =IF('#1, $'!R30=0, "", '#1, $'!R31/'#1, $'!$C31) -> 7.485590898 | T31: =IF('#1, $'!R30=0, "", '#1, $'!S31/'#1, $'!$D31) -> 7.144769298 | U31: =IF('#1, $'!R30-'#1, $'!S31=0, "", '#1, $'!T31/('#1, $'!R30-'#1, $'!S31)) -> 0.01658960979 | V31: =IF('#1, $'!R30=0, "", '#1, $'!U31/'#1, $'!$F31) -> 0.8571428571 | X31: =IF('#1, $'!W30=0, "", '#1, $'!W31/'#1, $'!$C31) ->  | Y31: =IF('#1, $'!W30=0, "", '#1, $'!X31/'#1, $'!$D31) ->  | Z31: =IF('#1, $'!W30-'#1, $'!X31=0, "", '#1, $'!Y31/('#1, $'!W30-'#1, $'!X31)) ->  | AA31: =IF('#1, $'!W30=0, "", '#1, $'!Z31/'#1, $'!$F31) -> 
B32: ='#1, $'!B32 -> 23 | C32: ='#1, $'!C32/'#1, $'!C$9 -> 0.2793009729 | D32: ='#1, $'!D32/'#1, $'!C31 -> 0.01 | E32: ='#1, $'!E32/('#1, $'!C31-'#1, $'!D32) -> 0.2709306664 | F32: 2.994163545e-05 | G32: ='#1, $'!F32/('#1, $'!C31-'#1, $'!D32) - F32 -> 0.5675525212 | I32: =IF('#1, $'!H31=0, "", '#1, $'!H32/'#1, $'!$C32) ->  | J32: =IF('#1, $'!H31=0, "", '#1, $'!I32/'#1, $'!$D32) ->  | K32: =IF('#1, $'!H31-'#1, $'!I32=0, "", '#1, $'!J32/('#1, $'!H31-'#1, $'!I32)) ->  | L32: =IF('#1, $'!H31=0, "", '#1, $'!K32/'#1, $'!$F32) ->  | N32: =IF('#1, $'!M31=0, "", '#1, $'!M32/'#1, $'!$C32) ->  | O32: =IF('#1, $'!M31=0, "", '#1, $'!N32/'#1, $'!$D32) ->  | P32: =IF('#1, $'!M31-'#1, $'!N32=0, "", '#1, $'!O32/('#1, $'!M31-'#1, $'!N32)) ->  | Q32: =IF('#1, $'!M31=0, "", '#1, $'!P32/'#1, $'!$F32) ->  | S32: =IF('#1, $'!R31=0, "", '#1, $'!R32/'#1, $'!$C32) -> 7.879291683 | T32: =IF('#1, $'!R31=0, "", '#1, $'!S32/'#1, $'!$D32) -> 7.485590898 | U32: =IF('#1, $'!R31-'#1, $'!S32=0, "", '#1, $'!T32/('#1, $'!R31-'#1, $'!S32)) -> 0.0158434767 | V32: =IF('#1, $'!R31=0, "", '#1, $'!U32/'#1, $'!$F32) -> 0.6055417803 | X32: =IF('#1, $'!W31=0, "", '#1, $'!W32/'#1, $'!$C32) ->  | Y32: =IF('#1, $'!W31=0, "", '#1, $'!X32/'#1, $'!$D32) ->  | Z32: =IF('#1, $'!W31-'#1, $'!X32=0, "", '#1, $'!Y32/('#1, $'!W31-'#1, $'!X32)) ->  | AA32: =IF('#1, $'!W31=0, "", '#1, $'!Z32/'#1, $'!$F32) -> 
B33: ='#1, $'!B33 -> 24 | C33: ='#1, $'!C33/'#1, $'!C$9 -> 0.2625463014 | D33: ='#1, $'!D33/'#1, $'!C32 -> 0.01 | E33: ='#1, $'!E33/('#1, $'!C32-'#1, $'!D33) -> 0.2709306664 | F33: 3.805488212e-05 | G33: ='#1, $'!F33/('#1, $'!C32-'#1, $'!D33) - F33 -> 0.577344644 | I33: =IF('#1, $'!H32=0, "", '#1, $'!H33/'#1, $'!$C33) ->  | J33: =IF('#1, $'!H32=0, "", '#1, $'!I33/'#1, $'!$D33) ->  | K33: =IF('#1, $'!H32-'#1, $'!I33=0, "", '#1, $'!J33/('#1, $'!H32-'#1, $'!I33)) ->  | L33: =IF('#1, $'!H32=0, "", '#1, $'!K33/'#1, $'!$F33) ->  | N33: =IF('#1, $'!M32=0, "", '#1, $'!M33/'#1, $'!$C33) ->  | O33: =IF('#1, $'!M32=0, "", '#1, $'!N33/'#1, $'!$D33) ->  | P33: =IF('#1, $'!M32-'#1, $'!N33=0, "", '#1, $'!O33/('#1, $'!M32-'#1, $'!N33)) ->  | Q33: =IF('#1, $'!M32=0, "", '#1, $'!P33/'#1, $'!$F33) ->  | S33: =IF('#1, $'!R32=0, "", '#1, $'!R33/'#1, $'!$C33) -> 8.274866235 | T33: =IF('#1, $'!R32=0, "", '#1, $'!S33/'#1, $'!$D33) -> 7.879291683 | U33: =IF('#1, $'!R32-'#1, $'!S33=0, "", '#1, $'!T33/('#1, $'!R32-'#1, $'!S33)) -> 0.01507271849 | V33: =IF('#1, $'!R32=0, "", '#1, $'!U33/'#1, $'!$F33) -> -0.07142857143 | X33: =IF('#1, $'!W32=0, "", '#1, $'!W33/'#1, $'!$C33) ->  | Y33: =IF('#1, $'!W32=0, "", '#1, $'!X33/'#1, $'!$D33) ->  | Z33: =IF('#1, $'!W32-'#1, $'!X33=0, "", '#1, $'!Y33/('#1, $'!W32-'#1, $'!X33)) ->  | AA33: =IF('#1, $'!W32=0, "", '#1, $'!Z33/'#1, $'!$F33) -> 
B34: ='#1, $'!B34 -> 25 | C34: ='#1, $'!C34/'#1, $'!C$9 -> 0.2466045328 | D34: ='#1, $'!D34/'#1, $'!C33 -> 0.01 | E34: ='#1, $'!E34/('#1, $'!C33-'#1, $'!D34) -> 0.2709306664 | F34: 4.836695729e-05 | G34: ='#1, $'!F34/('#1, $'!C33-'#1, $'!D34) - F34 -> 0.5876853292 | I34: =IF('#1, $'!H33=0, "", '#1, $'!H34/'#1, $'!$C34) ->  | J34: =IF('#1, $'!H33=0, "", '#1, $'!I34/'#1, $'!$D34) ->  | K34: =IF('#1, $'!H33-'#1, $'!I34=0, "", '#1, $'!J34/('#1, $'!H33-'#1, $'!I34)) ->  | L34: =IF('#1, $'!H33=0, "", '#1, $'!K34/'#1, $'!$F34) ->  | N34: =IF('#1, $'!M33=0, "", '#1, $'!M34/'#1, $'!$C34) ->  | O34: =IF('#1, $'!M33=0, "", '#1, $'!N34/'#1, $'!$D34) ->  | P34: =IF('#1, $'!M33-'#1, $'!N34=0, "", '#1, $'!O34/('#1, $'!M33-'#1, $'!N34)) ->  | Q34: =IF('#1, $'!M33=0, "", '#1, $'!P34/'#1, $'!$F34) ->  | S34: =IF('#1, $'!R33=0, "", '#1, $'!R34/'#1, $'!$C34) -> 8.700902619 | T34: =IF('#1, $'!R33=0, "", '#1, $'!S34/'#1, $'!$D34) -> 8.274866235 | U34: =IF('#1, $'!R33-'#1, $'!S34=0, "", '#1, $'!T34/('#1, $'!R33-'#1, $'!S34)) -> 0.01439454095 | V34: =IF('#1, $'!R33=0, "", '#1, $'!U34/'#1, $'!$F34) -> -0.07142857143 | X34: =IF('#1, $'!W33=0, "", '#1, $'!W34/'#1, $'!$C34) ->  | Y34: =IF('#1, $'!W33=0, "", '#1, $'!X34/'#1, $'!$D34) ->  | Z34: =IF('#1, $'!W33-'#1, $'!X34=0, "", '#1, $'!Y34/('#1, $'!W33-'#1, $'!X34)) ->  | AA34: =IF('#1, $'!W33=0, "", '#1, $'!Z34/'#1, $'!$F34) -> 
B35: ='#1, $'!B35 -> 26 | C35: ='#1, $'!C35/'#1, $'!C$9 -> 0.2314398125 | D35: ='#1, $'!D35/'#1, $'!C34 -> 0.01 | E35: ='#1, $'!E35/('#1, $'!C34-'#1, $'!D35) -> 0.2709306664 | F35: 6.147402257e-05 | G35: ='#1, $'!F35/('#1, $'!C34-'#1, $'!D35) - F35 -> 0.5986211935 | I35: =IF('#1, $'!H34=0, "", '#1, $'!H35/'#1, $'!$C35) ->  | J35: =IF('#1, $'!H34=0, "", '#1, $'!I35/'#1, $'!$D35) ->  | K35: =IF('#1, $'!H34-'#1, $'!I35=0, "", '#1, $'!J35/('#1, $'!H34-'#1, $'!I35)) ->  | L35: =IF('#1, $'!H34=0, "", '#1, $'!K35/'#1, $'!$F35) ->  | N35: =IF('#1, $'!M34=0, "", '#1, $'!M35/'#1, $'!$C35) ->  | O35: =IF('#1, $'!M34=0, "", '#1, $'!N35/'#1, $'!$D35) ->  | P35: =IF('#1, $'!M34-'#1, $'!N35=0, "", '#1, $'!O35/('#1, $'!M34-'#1, $'!N35)) ->  | Q35: =IF('#1, $'!M34=0, "", '#1, $'!P35/'#1, $'!$F35) ->  | S35: =IF('#1, $'!R34=0, "", '#1, $'!R35/'#1, $'!$C35) -> 9.16038246 | T35: =IF('#1, $'!R34=0, "", '#1, $'!S35/'#1, $'!$D35) -> 8.700902619 | U35: =IF('#1, $'!R34-'#1, $'!S35=0, "", '#1, $'!T35/('#1, $'!R34-'#1, $'!S35)) -> 0.01372940216 | V35: =IF('#1, $'!R34=0, "", '#1, $'!U35/'#1, $'!$F35) -> -0.07142857143 | X35: =IF('#1, $'!W34=0, "", '#1, $'!W35/'#1, $'!$C35) ->  | Y35: =IF('#1, $'!W34=0, "", '#1, $'!X35/'#1, $'!$D35) ->  | Z35: =IF('#1, $'!W34-'#1, $'!X35=0, "", '#1, $'!Y35/('#1, $'!W34-'#1, $'!X35)) ->  | AA35: =IF('#1, $'!W34=0, "", '#1, $'!Z35/'#1, $'!$F35) -> 
B36: ='#1, $'!B36 -> 27 | C36: ='#1, $'!C36/'#1, $'!C$9 -> 0.2170177908 | D36: ='#1, $'!D36/'#1, $'!C35 -> 0.01 | E36: ='#1, $'!E36/('#1, $'!C35-'#1, $'!D36) -> 0.2709306664 | F36: 7.813402368e-05 | G36: ='#1, $'!F36/('#1, $'!C35-'#1, $'!D36) - F36 -> 0.610204246 | I36: =IF('#1, $'!H35=0, "", '#1, $'!H36/'#1, $'!$C36) ->  | J36: =IF('#1, $'!H35=0, "", '#1, $'!I36/'#1, $'!$D36) ->  | K36: =IF('#1, $'!H35-'#1, $'!I36=0, "", '#1, $'!J36/('#1, $'!H35-'#1, $'!I36)) ->  | L36: =IF('#1, $'!H35=0, "", '#1, $'!K36/'#1, $'!$F36) ->  | N36: =IF('#1, $'!M35=0, "", '#1, $'!M36/'#1, $'!$C36) ->  | O36: =IF('#1, $'!M35=0, "", '#1, $'!N36/'#1, $'!$D36) ->  | P36: =IF('#1, $'!M35-'#1, $'!N36=0, "", '#1, $'!O36/('#1, $'!M35-'#1, $'!N36)) ->  | Q36: =IF('#1, $'!M35=0, "", '#1, $'!P36/'#1, $'!$F36) ->  | S36: =IF('#1, $'!R35=0, "", '#1, $'!R36/'#1, $'!$C36) -> 9.65666099 | T36: =IF('#1, $'!R35=0, "", '#1, $'!S36/'#1, $'!$D36) -> 9.16038246 | U36: =IF('#1, $'!R35-'#1, $'!S36=0, "", '#1, $'!T36/('#1, $'!R35-'#1, $'!S36)) -> 0.01307793901 | V36: =IF('#1, $'!R35=0, "", '#1, $'!U36/'#1, $'!$F36) -> -0.07142857143 | X36: =IF('#1, $'!W35=0, "", '#1, $'!W36/'#1, $'!$C36) ->  | Y36: =IF('#1, $'!W35=0, "", '#1, $'!X36/'#1, $'!$D36) ->  | Z36: =IF('#1, $'!W35-'#1, $'!X36=0, "", '#1, $'!Y36/('#1, $'!W35-'#1, $'!X36)) ->  | AA36: =IF('#1, $'!W35=0, "", '#1, $'!Z36/'#1, $'!$F36) -> 
B37: ='#1, $'!B37 -> 28 | C37: ='#1, $'!C37/'#1, $'!C$9 -> 0.2033055614 | D37: ='#1, $'!D37/'#1, $'!C36 -> 0.01 | E37: ='#1, $'!E37/('#1, $'!C36-'#1, $'!D37) -> 0.2709306664 | F37: 9.931068632e-05 | G37: ='#1, $'!F37/('#1, $'!C36-'#1, $'!D37) - F37 -> 0.6224926859 | I37: =IF('#1, $'!H36=0, "", '#1, $'!H37/'#1, $'!$C37) ->  | J37: =IF('#1, $'!H36=0, "", '#1, $'!I37/'#1, $'!$D37) ->  | K37: =IF('#1, $'!H36-'#1, $'!I37=0, "", '#1, $'!J37/('#1, $'!H36-'#1, $'!I37)) ->  | L37: =IF('#1, $'!H36=0, "", '#1, $'!K37/'#1, $'!$F37) ->  | N37: =IF('#1, $'!M36=0, "", '#1, $'!M37/'#1, $'!$C37) ->  | O37: =IF('#1, $'!M36=0, "", '#1, $'!N37/'#1, $'!$D37) ->  | P37: =IF('#1, $'!M36-'#1, $'!N37=0, "", '#1, $'!O37/('#1, $'!M36-'#1, $'!N37)) ->  | Q37: =IF('#1, $'!M36=0, "", '#1, $'!P37/'#1, $'!$F37) ->  | S37: =IF('#1, $'!R36=0, "", '#1, $'!R37/'#1, $'!$C37) -> 10.19352611 | T37: =IF('#1, $'!R36=0, "", '#1, $'!S37/'#1, $'!$D37) -> 9.65666099 | U37: =IF('#1, $'!R36-'#1, $'!S37=0, "", '#1, $'!T37/('#1, $'!R36-'#1, $'!S37)) -> 0.01244072441 | V37: =IF('#1, $'!R36=0, "", '#1, $'!U37/'#1, $'!$F37) -> -0.07142857143 | X37: =IF('#1, $'!W36=0, "", '#1, $'!W37/'#1, $'!$C37) ->  | Y37: =IF('#1, $'!W36=0, "", '#1, $'!X37/'#1, $'!$D37) ->  | Z37: =IF('#1, $'!W36-'#1, $'!X37=0, "", '#1, $'!Y37/('#1, $'!W36-'#1, $'!X37)) ->  | AA37: =IF('#1, $'!W36=0, "", '#1, $'!Z37/'#1, $'!$F37) -> 
B38: ='#1, $'!B38 -> 29 | C38: ='#1, $'!C38/'#1, $'!C$9 -> 0.1902716033 | D38: ='#1, $'!D38/'#1, $'!C37 -> 0.01 | E38: ='#1, $'!E38/('#1, $'!C37-'#1, $'!D38) -> 0.2709306664 | F38: 0.0001262295327 | G38: ='#1, $'!F38/('#1, $'!C37-'#1, $'!D38) - F38 -> 0.635551846 | I38: =IF('#1, $'!H37=0, "", '#1, $'!H38/'#1, $'!$C38) ->  | J38: =IF('#1, $'!H37=0, "", '#1, $'!I38/'#1, $'!$D38) ->  | K38: =IF('#1, $'!H37-'#1, $'!I38=0, "", '#1, $'!J38/('#1, $'!H37-'#1, $'!I38)) ->  | L38: =IF('#1, $'!H37=0, "", '#1, $'!K38/'#1, $'!$F38) ->  | N38: =IF('#1, $'!M37=0, "", '#1, $'!M38/'#1, $'!$C38) ->  | O38: =IF('#1, $'!M37=0, "", '#1, $'!N38/'#1, $'!$D38) ->  | P38: =IF('#1, $'!M37-'#1, $'!N38=0, "", '#1, $'!O38/('#1, $'!M37-'#1, $'!N38)) ->  | Q38: =IF('#1, $'!M37=0, "", '#1, $'!P38/'#1, $'!$F38) ->  | S38: =IF('#1, $'!R37=0, "", '#1, $'!R38/'#1, $'!$C38) -> 10.77526893 | T38: =IF('#1, $'!R37=0, "", '#1, $'!S38/'#1, $'!$D38) -> 10.19352611 | U38: =IF('#1, $'!R37-'#1, $'!S38=0, "", '#1, $'!T38/('#1, $'!R37-'#1, $'!S38)) -> 0.01181826763 | V38: =IF('#1, $'!R37=0, "", '#1, $'!U38/'#1, $'!$F38) -> -0.07142857143 | X38: =IF('#1, $'!W37=0, "", '#1, $'!W38/'#1, $'!$C38) ->  | Y38: =IF('#1, $'!W37=0, "", '#1, $'!X38/'#1, $'!$D38) ->  | Z38: =IF('#1, $'!W37-'#1, $'!X38=0, "", '#1, $'!Y38/('#1, $'!W37-'#1, $'!X38)) ->  | AA38: =IF('#1, $'!W37=0, "", '#1, $'!Z38/'#1, $'!$F38) -> 
B39: ='#1, $'!B39 -> 30 | C39: ='#1, $'!C39/'#1, $'!C$9 -> 0.1778857243 | D39: ='#1, $'!D39/'#1, $'!C38 -> 0.01 | E39: ='#1, $'!E39/('#1, $'!C38-'#1, $'!D39) -> 0.2709306664 | F39: 0.0001604492375 | G39: ='#1, $'!F39/('#1, $'!C38-'#1, $'!D39) - F39 -> 0.6494553139 | I39: =IF('#1, $'!H38=0, "", '#1, $'!H39/'#1, $'!$C39) ->  | J39: =IF('#1, $'!H38=0, "", '#1, $'!I39/'#1, $'!$D39) ->  | K39: =IF('#1, $'!H38-'#1, $'!I39=0, "", '#1, $'!J39/('#1, $'!H38-'#1, $'!I39)) ->  | L39: =IF('#1, $'!H38=0, "", '#1, $'!K39/'#1, $'!$F39) ->  | N39: =IF('#1, $'!M38=0, "", '#1, $'!M39/'#1, $'!$C39) ->  | O39: =IF('#1, $'!M38=0, "", '#1, $'!N39/'#1, $'!$D39) ->  | P39: =IF('#1, $'!M38-'#1, $'!N39=0, "", '#1, $'!O39/('#1, $'!M38-'#1, $'!N39)) ->  | Q39: =IF('#1, $'!M38=0, "", '#1, $'!P39/'#1, $'!$F39) ->  | S39: =IF('#1, $'!R38=0, "", '#1, $'!R39/'#1, $'!$C39) -> 11.40676856 | T39: =IF('#1, $'!R38=0, "", '#1, $'!S39/'#1, $'!$D39) -> 10.77526893 | U39: =IF('#1, $'!R38-'#1, $'!S39=0, "", '#1, $'!T39/('#1, $'!R38-'#1, $'!S39)) -> 0.01121101513 | V39: =IF('#1, $'!R38=0, "", '#1, $'!U39/'#1, $'!$F39) -> -0.07142857143 | X39: =IF('#1, $'!W38=0, "", '#1, $'!W39/'#1, $'!$C39) ->  | Y39: =IF('#1, $'!W38=0, "", '#1, $'!X39/'#1, $'!$D39) ->  | Z39: =IF('#1, $'!W38-'#1, $'!X39=0, "", '#1, $'!Y39/('#1, $'!W38-'#1, $'!X39)) ->  | AA39: =IF('#1, $'!W38=0, "", '#1, $'!Z39/'#1, $'!$F39) -> 
B40: ='#1, $'!B40 -> 31 | C40: ='#1, $'!C40/'#1, $'!C$9 -> 0.1661190069 | D40: ='#1, $'!D40/'#1, $'!C39 -> 0.01 | E40: ='#1, $'!E40/('#1, $'!C39-'#1, $'!D40) -> 0.2709306664 | F40: 0.0002039525804 | G40: ='#1, $'!F40/('#1, $'!C39-'#1, $'!D40) - F40 -> 0.6642862722 | I40: =IF('#1, $'!H39=0, "", '#1, $'!H40/'#1, $'!$C40) ->  | J40: =IF('#1, $'!H39=0, "", '#1, $'!I40/'#1, $'!$D40) ->  | K40: =IF('#1, $'!H39-'#1, $'!I40=0, "", '#1, $'!J40/('#1, $'!H39-'#1, $'!I40)) ->  | L40: =IF('#1, $'!H39=0, "", '#1, $'!K40/'#1, $'!$F40) ->  | N40: =IF('#1, $'!M39=0, "", '#1, $'!M40/'#1, $'!$C40) ->  | O40: =IF('#1, $'!M39=0, "", '#1, $'!N40/'#1, $'!$D40) ->  | P40: =IF('#1, $'!M39-'#1, $'!N40=0, "", '#1, $'!O40/('#1, $'!M39-'#1, $'!N40)) ->  | Q40: =IF('#1, $'!M39=0, "", '#1, $'!P40/'#1, $'!$F40) ->  | S40: =IF('#1, $'!R39=0, "", '#1, $'!R40/'#1, $'!$C40) -> 12.06110613 | T40: =IF('#1, $'!R39=0, "", '#1, $'!S40/'#1, $'!$D40) -> 11.40676856 | U40: =IF('#1, $'!R39-'#1, $'!S40=0, "", '#1, $'!T40/('#1, $'!R39-'#1, $'!S40)) -> 0.01061935166 | V40: =IF('#1, $'!R39=0, "", '#1, $'!U40/'#1, $'!$F40) -> -0.07142857143 | X40: =IF('#1, $'!W39=0, "", '#1, $'!W40/'#1, $'!$C40) ->  | Y40: =IF('#1, $'!W39=0, "", '#1, $'!X40/'#1, $'!$D40) ->  | Z40: =IF('#1, $'!W39-'#1, $'!X40=0, "", '#1, $'!Y40/('#1, $'!W39-'#1, $'!X40)) ->  | AA40: =IF('#1, $'!W39=0, "", '#1, $'!Z40/'#1, $'!$F40) -> 
B41: ='#1, $'!B41 -> 32 | C41: ='#1, $'!C41/'#1, $'!C$9 -> 0.1549437572 | D41: ='#1, $'!D41/'#1, $'!C40 -> 0.01 | E41: ='#1, $'!E41/('#1, $'!C40-'#1, $'!D41) -> 0.2709306664 | F41: 0.0002592624661 | G41: ='#1, $'!F41/('#1, $'!C40-'#1, $'!D41) - F41 -> 0.6801391106 | I41: =IF('#1, $'!H40=0, "", '#1, $'!H41/'#1, $'!$C41) ->  | J41: =IF('#1, $'!H40=0, "", '#1, $'!I41/'#1, $'!$D41) ->  | K41: =IF('#1, $'!H40-'#1, $'!I41=0, "", '#1, $'!J41/('#1, $'!H40-'#1, $'!I41)) ->  | L41: =IF('#1, $'!H40=0, "", '#1, $'!K41/'#1, $'!$F41) ->  | N41: =IF('#1, $'!M40=0, "", '#1, $'!M41/'#1, $'!$C41) ->  | O41: =IF('#1, $'!M40=0, "", '#1, $'!N41/'#1, $'!$D41) ->  | P41: =IF('#1, $'!M40-'#1, $'!N41=0, "", '#1, $'!O41/('#1, $'!M40-'#1, $'!N41)) ->  | Q41: =IF('#1, $'!M40=0, "", '#1, $'!P41/'#1, $'!$F41) ->  | S41: =IF('#1, $'!R40=0, "", '#1, $'!R41/'#1, $'!$C41) -> 12.70413128 | T41: =IF('#1, $'!R40=0, "", '#1, $'!S41/'#1, $'!$D41) -> 12.06110613 | U41: =IF('#1, $'!R40-'#1, $'!S41=0, "", '#1, $'!T41/('#1, $'!R40-'#1, $'!S41)) -> 0.01007065561 | V41: =IF('#1, $'!R40=0, "", '#1, $'!U41/'#1, $'!$F41) -> -0.07142857143 | X41: =IF('#1, $'!W40=0, "", '#1, $'!W41/'#1, $'!$C41) ->  | Y41: =IF('#1, $'!W40=0, "", '#1, $'!X41/'#1, $'!$D41) ->  | Z41: =IF('#1, $'!W40-'#1, $'!X41=0, "", '#1, $'!Y41/('#1, $'!W40-'#1, $'!X41)) ->  | AA41: =IF('#1, $'!W40=0, "", '#1, $'!Z41/'#1, $'!$F41) -> 
B42: ='#1, $'!B42 -> 33 | C42: ='#1, $'!C42/'#1, $'!C$9 -> 0.1443334542 | D42: ='#1, $'!D42/'#1, $'!C41 -> 0.01 | E42: ='#1, $'!E42/('#1, $'!C41-'#1, $'!D42) -> 0.2709306664 | F42: 0.0003295900692 | G42: ='#1, $'!F42/('#1, $'!C41-'#1, $'!D42) - F42 -> 0.6971213748 | I42: =IF('#1, $'!H41=0, "", '#1, $'!H42/'#1, $'!$C42) ->  | J42: =IF('#1, $'!H41=0, "", '#1, $'!I42/'#1, $'!$D42) ->  | K42: =IF('#1, $'!H41-'#1, $'!I42=0, "", '#1, $'!J42/('#1, $'!H41-'#1, $'!I42)) ->  | L42: =IF('#1, $'!H41=0, "", '#1, $'!K42/'#1, $'!$F42) ->  | N42: =IF('#1, $'!M41=0, "", '#1, $'!M42/'#1, $'!$C42) ->  | O42: =IF('#1, $'!M41=0, "", '#1, $'!N42/'#1, $'!$D42) ->  | P42: =IF('#1, $'!M41-'#1, $'!N42=0, "", '#1, $'!O42/('#1, $'!M41-'#1, $'!N42)) ->  | Q42: =IF('#1, $'!M41=0, "", '#1, $'!P42/'#1, $'!$F42) ->  | S42: =IF('#1, $'!R41=0, "", '#1, $'!R42/'#1, $'!$C42) -> 13.40569433 | T42: =IF('#1, $'!R41=0, "", '#1, $'!S42/'#1, $'!$D42) -> 12.70413128 | U42: =IF('#1, $'!R41-'#1, $'!S42=0, "", '#1, $'!T42/('#1, $'!R41-'#1, $'!S42)) -> 0.00958705233 | V42: =IF('#1, $'!R41=0, "", '#1, $'!U42/'#1, $'!$F42) -> -0.07142857143 | X42: =IF('#1, $'!W41=0, "", '#1, $'!W42/'#1, $'!$C42) ->  | Y42: =IF('#1, $'!W41=0, "", '#1, $'!X42/'#1, $'!$D42) ->  | Z42: =IF('#1, $'!W41-'#1, $'!X42=0, "", '#1, $'!Y42/('#1, $'!W41-'#1, $'!X42)) ->  | AA42: =IF('#1, $'!W41=0, "", '#1, $'!Z42/'#1, $'!$F42) -> 
B43: ='#1, $'!B43 -> 34 | C43: ='#1, $'!C43/'#1, $'!C$9 -> 0.1342627032 | D43: ='#1, $'!D43/'#1, $'!C42 -> 0.01 | E43: ='#1, $'!E43/('#1, $'!C42-'#1, $'!D43) -> 0.2709306664 | F43: 0.0004190242325 | G43: ='#1, $'!F43/('#1, $'!C42-'#1, $'!D43) - F43 -> 0.7153561409 | I43: =IF('#1, $'!H42=0, "", '#1, $'!H43/'#1, $'!$C43) ->  | J43: =IF('#1, $'!H42=0, "", '#1, $'!I43/'#1, $'!$D43) ->  | K43: =IF('#1, $'!H42-'#1, $'!I43=0, "", '#1, $'!J43/('#1, $'!H42-'#1, $'!I43)) ->  | L43: =IF('#1, $'!H42=0, "", '#1, $'!K43/'#1, $'!$F43) ->  | N43: =IF('#1, $'!M42=0, "", '#1, $'!M43/'#1, $'!$C43) ->  | O43: =IF('#1, $'!M42=0, "", '#1, $'!N43/'#1, $'!$D43) ->  | P43: =IF('#1, $'!M42-'#1, $'!N43=0, "", '#1, $'!O43/('#1, $'!M42-'#1, $'!N43)) ->  | Q43: =IF('#1, $'!M42=0, "", '#1, $'!P43/'#1, $'!$F43) ->  | S43: =IF('#1, $'!R42=0, "", '#1, $'!R43/'#1, $'!$C43) -> 14.17298199 | T43: =IF('#1, $'!R42=0, "", '#1, $'!S43/'#1, $'!$D43) -> 13.40569433 | U43: =IF('#1, $'!R42-'#1, $'!S43=0, "", '#1, $'!T43/('#1, $'!R42-'#1, $'!S43)) -> 0.009110276949 | V43: =IF('#1, $'!R42=0, "", '#1, $'!U43/'#1, $'!$F43) -> -0.07142857143 | X43: =IF('#1, $'!W42=0, "", '#1, $'!W43/'#1, $'!$C43) ->  | Y43: =IF('#1, $'!W42=0, "", '#1, $'!X43/'#1, $'!$D43) ->  | Z43: =IF('#1, $'!W42-'#1, $'!X43=0, "", '#1, $'!Y43/('#1, $'!W42-'#1, $'!X43)) ->  | AA43: =IF('#1, $'!W42=0, "", '#1, $'!Z43/'#1, $'!$F43) -> 
B44: ='#1, $'!B44 -> 35 | C44: ='#1, $'!C44/'#1, $'!C$9 -> 0.1247071893 | D44: ='#1, $'!D44/'#1, $'!C43 -> 0.01 | E44: ='#1, $'!E44/('#1, $'!C43-'#1, $'!D44) -> 0.2709306664 | F44: 0.0005327739922 | G44: ='#1, $'!F44/('#1, $'!C43-'#1, $'!D44) - F44 -> 0.734984929 | I44: =IF('#1, $'!H43=0, "", '#1, $'!H44/'#1, $'!$C44) ->  | J44: =IF('#1, $'!H43=0, "", '#1, $'!I44/'#1, $'!$D44) ->  | K44: =IF('#1, $'!H43-'#1, $'!I44=0, "", '#1, $'!J44/('#1, $'!H43-'#1, $'!I44)) ->  | L44: =IF('#1, $'!H43=0, "", '#1, $'!K44/'#1, $'!$F44) ->  | N44: =IF('#1, $'!M43=0, "", '#1, $'!M44/'#1, $'!$C44) ->  | O44: =IF('#1, $'!M43=0, "", '#1, $'!N44/'#1, $'!$D44) ->  | P44: =IF('#1, $'!M43-'#1, $'!N44=0, "", '#1, $'!O44/('#1, $'!M43-'#1, $'!N44)) ->  | Q44: =IF('#1, $'!M43=0, "", '#1, $'!P44/'#1, $'!$F44) ->  | S44: =IF('#1, $'!R43=0, "", '#1, $'!R44/'#1, $'!$C44) -> 15.01435252 | T44: =IF('#1, $'!R43=0, "", '#1, $'!S44/'#1, $'!$D44) -> 14.17298199 | U44: =IF('#1, $'!R43-'#1, $'!S44=0, "", '#1, $'!T44/('#1, $'!R43-'#1, $'!S44)) -> 0.008640946814 | V44: =IF('#1, $'!R43=0, "", '#1, $'!U44/'#1, $'!$F44) -> -0.07142857143 | X44: =IF('#1, $'!W43=0, "", '#1, $'!W44/'#1, $'!$C44) ->  | Y44: =IF('#1, $'!W43=0, "", '#1, $'!X44/'#1, $'!$D44) ->  | Z44: =IF('#1, $'!W43-'#1, $'!X44=0, "", '#1, $'!Y44/('#1, $'!W43-'#1, $'!X44)) ->  | AA44: =IF('#1, $'!W43=0, "", '#1, $'!Z44/'#1, $'!$F44) -> 
B45: ='#1, $'!B45 -> 36 | C45: ='#1, $'!C45/'#1, $'!C$9 -> 0.1156436342 | D45: ='#1, $'!D45/'#1, $'!C44 -> 0.01 | E45: ='#1, $'!E45/('#1, $'!C44-'#1, $'!D45) -> 0.2709306664 | F45: 0.0006774797486 | G45: ='#1, $'!F45/('#1, $'!C44-'#1, $'!D45) - F45 -> 0.7561713037 | I45: =IF('#1, $'!H44=0, "", '#1, $'!H45/'#1, $'!$C45) ->  | J45: =IF('#1, $'!H44=0, "", '#1, $'!I45/'#1, $'!$D45) ->  | K45: =IF('#1, $'!H44-'#1, $'!I45=0, "", '#1, $'!J45/('#1, $'!H44-'#1, $'!I45)) ->  | L45: =IF('#1, $'!H44=0, "", '#1, $'!K45/'#1, $'!$F45) ->  | N45: =IF('#1, $'!M44=0, "", '#1, $'!M45/'#1, $'!$C45) ->  | O45: =IF('#1, $'!M44=0, "", '#1, $'!N45/'#1, $'!$D45) ->  | P45: =IF('#1, $'!M44-'#1, $'!N45=0, "", '#1, $'!O45/('#1, $'!M44-'#1, $'!N45)) ->  | Q45: =IF('#1, $'!M44=0, "", '#1, $'!P45/'#1, $'!$F45) ->  | S45: =IF('#1, $'!R44=0, "", '#1, $'!R45/'#1, $'!$C45) -> 15.93958168 | T45: =IF('#1, $'!R44=0, "", '#1, $'!S45/'#1, $'!$D45) -> 15.01435252 | U45: =IF('#1, $'!R44-'#1, $'!S45=0, "", '#1, $'!T45/('#1, $'!R44-'#1, $'!S45)) -> 0.008179642797 | V45: =IF('#1, $'!R44=0, "", '#1, $'!U45/'#1, $'!$F45) -> -0.07142857143 | X45: =IF('#1, $'!W44=0, "", '#1, $'!W45/'#1, $'!$C45) ->  | Y45: =IF('#1, $'!W44=0, "", '#1, $'!X45/'#1, $'!$D45) ->  | Z45: =IF('#1, $'!W44-'#1, $'!X45=0, "", '#1, $'!Y45/('#1, $'!W44-'#1, $'!X45)) ->  | AA45: =IF('#1, $'!W44=0, "", '#1, $'!Z45/'#1, $'!$F45) -> 
B46: ='#1, $'!B46 -> 37 | C46: ='#1, $'!C46/'#1, $'!C$9 -> 0.1070497537 | D46: ='#1, $'!D46/'#1, $'!C45 -> 0.01 | E46: ='#1, $'!E46/('#1, $'!C45-'#1, $'!D46) -> 0.2709306664 | F46: 0.000861613514 | G46: ='#1, $'!F46/('#1, $'!C45-'#1, $'!D46) - F46 -> 0.7791053658 | I46: =IF('#1, $'!H45=0, "", '#1, $'!H46/'#1, $'!$C46) ->  | J46: =IF('#1, $'!H45=0, "", '#1, $'!I46/'#1, $'!$D46) ->  | K46: =IF('#1, $'!H45-'#1, $'!I46=0, "", '#1, $'!J46/('#1, $'!H45-'#1, $'!I46)) ->  | L46: =IF('#1, $'!H45=0, "", '#1, $'!K46/'#1, $'!$F46) ->  | N46: =IF('#1, $'!M45=0, "", '#1, $'!M46/'#1, $'!$C46) ->  | O46: =IF('#1, $'!M45=0, "", '#1, $'!N46/'#1, $'!$D46) ->  | P46: =IF('#1, $'!M45-'#1, $'!N46=0, "", '#1, $'!O46/('#1, $'!M45-'#1, $'!N46)) ->  | Q46: =IF('#1, $'!M45=0, "", '#1, $'!P46/'#1, $'!$F46) ->  | S46: =IF('#1, $'!R45=0, "", '#1, $'!R46/'#1, $'!$C46) -> 16.96017321 | T46: =IF('#1, $'!R45=0, "", '#1, $'!S46/'#1, $'!$D46) -> 15.93958168 | U46: =IF('#1, $'!R45-'#1, $'!S46=0, "", '#1, $'!T46/('#1, $'!R45-'#1, $'!S46)) -> 0.007726907732 | V46: =IF('#1, $'!R45=0, "", '#1, $'!U46/'#1, $'!$F46) -> -0.07142857143 | X46: =IF('#1, $'!W45=0, "", '#1, $'!W46/'#1, $'!$C46) ->  | Y46: =IF('#1, $'!W45=0, "", '#1, $'!X46/'#1, $'!$D46) ->  | Z46: =IF('#1, $'!W45-'#1, $'!X46=0, "", '#1, $'!Y46/('#1, $'!W45-'#1, $'!X46)) ->  | AA46: =IF('#1, $'!W45=0, "", '#1, $'!Z46/'#1, $'!$F46) -> 
B47: ='#1, $'!B47 -> 38 | C47: ='#1, $'!C47/'#1, $'!C$9 -> 0.0989042179 | D47: ='#1, $'!D47/'#1, $'!C46 -> 0.01 | E47: ='#1, $'!E47/('#1, $'!C46-'#1, $'!D47) -> 0.2709306664 | F47: 0.001095995362 | G47: ='#1, $'!F47/('#1, $'!C46-'#1, $'!D47) - F47 -> 0.8040094021 | I47: =IF('#1, $'!H46=0, "", '#1, $'!H47/'#1, $'!$C47) ->  | J47: =IF('#1, $'!H46=0, "", '#1, $'!I47/'#1, $'!$D47) ->  | K47: =IF('#1, $'!H46-'#1, $'!I47=0, "", '#1, $'!J47/('#1, $'!H46-'#1, $'!I47)) ->  | L47: =IF('#1, $'!H46=0, "", '#1, $'!K47/'#1, $'!$F47) ->  | N47: =IF('#1, $'!M46=0, "", '#1, $'!M47/'#1, $'!$C47) ->  | O47: =IF('#1, $'!M46=0, "", '#1, $'!N47/'#1, $'!$D47) ->  | P47: =IF('#1, $'!M46-'#1, $'!N47=0, "", '#1, $'!O47/('#1, $'!M46-'#1, $'!N47)) ->  | Q47: =IF('#1, $'!M46=0, "", '#1, $'!P47/'#1, $'!$F47) ->  | S47: =IF('#1, $'!R46=0, "", '#1, $'!R47/'#1, $'!$C47) -> 18.08975444 | T47: =IF('#1, $'!R46=0, "", '#1, $'!S47/'#1, $'!$D47) -> 16.96017321 | U47: =IF('#1, $'!R46-'#1, $'!S47=0, "", '#1, $'!T47/('#1, $'!R46-'#1, $'!S47)) -> 0.007283245153 | V47: =IF('#1, $'!R46=0, "", '#1, $'!U47/'#1, $'!$F47) -> -0.07142857143 | X47: =IF('#1, $'!W46=0, "", '#1, $'!W47/'#1, $'!$C47) ->  | Y47: =IF('#1, $'!W46=0, "", '#1, $'!X47/'#1, $'!$D47) ->  | Z47: =IF('#1, $'!W46-'#1, $'!X47=0, "", '#1, $'!Y47/('#1, $'!W46-'#1, $'!X47)) ->  | AA47: =IF('#1, $'!W46=0, "", '#1, $'!Z47/'#1, $'!$F47) -> 
B48: ='#1, $'!B48 -> 39 | C48: ='#1, $'!C48/'#1, $'!C$9 -> 0.09118661233 | D48: ='#1, $'!D48/'#1, $'!C47 -> 0.01 | E48: ='#1, $'!E48/('#1, $'!C47-'#1, $'!D48) -> 0.2709306664 | F48: 0.00139446244 | G48: ='#1, $'!F48/('#1, $'!C47-'#1, $'!D48) - F48 -> 0.831145065 | I48: =IF('#1, $'!H47=0, "", '#1, $'!H48/'#1, $'!$C48) ->  | J48: =IF('#1, $'!H47=0, "", '#1, $'!I48/'#1, $'!$D48) ->  | K48: =IF('#1, $'!H47-'#1, $'!I48=0, "", '#1, $'!J48/('#1, $'!H47-'#1, $'!I48)) ->  | L48: =IF('#1, $'!H47=0, "", '#1, $'!K48/'#1, $'!$F48) ->  | N48: =IF('#1, $'!M47=0, "", '#1, $'!M48/'#1, $'!$C48) ->  | O48: =IF('#1, $'!M47=0, "", '#1, $'!N48/'#1, $'!$D48) ->  | P48: =IF('#1, $'!M47-'#1, $'!N48=0, "", '#1, $'!O48/('#1, $'!M47-'#1, $'!N48)) ->  | Q48: =IF('#1, $'!M47=0, "", '#1, $'!P48/'#1, $'!$F48) ->  | S48: =IF('#1, $'!R47=0, "", '#1, $'!R48/'#1, $'!$C48) -> 19.34458542 | T48: =IF('#1, $'!R47=0, "", '#1, $'!S48/'#1, $'!$D48) -> 18.08975444 | U48: =IF('#1, $'!R47-'#1, $'!S48=0, "", '#1, $'!T48/('#1, $'!R47-'#1, $'!S48)) -> 0.006849118328 | V48: =IF('#1, $'!R47=0, "", '#1, $'!U48/'#1, $'!$F48) -> -0.07142857143 | X48: =IF('#1, $'!W47=0, "", '#1, $'!W48/'#1, $'!$C48) ->  | Y48: =IF('#1, $'!W47=0, "", '#1, $'!X48/'#1, $'!$D48) ->  | Z48: =IF('#1, $'!W47-'#1, $'!X48=0, "", '#1, $'!Y48/('#1, $'!W47-'#1, $'!X48)) ->  | AA48: =IF('#1, $'!W47=0, "", '#1, $'!Z48/'#1, $'!$F48) -> 
B49: ='#1, $'!B49 -> 40 | C49: ='#1, $'!C49/'#1, $'!C$9 -> 0.08387740144 | D49: ='#1, $'!D49/'#1, $'!C48 -> 0.01 | E49: ='#1, $'!E49/('#1, $'!C48-'#1, $'!D49) -> 0.2709306664 | F49: 0.001774739886 | G49: ='#1, $'!F49/('#1, $'!C48-'#1, $'!D49) - F49 -> 0.860822593 | I49: =IF('#1, $'!H48=0, "", '#1, $'!H49/'#1, $'!$C49) ->  | J49: =IF('#1, $'!H48=0, "", '#1, $'!I49/'#1, $'!$D49) ->  | K49: =IF('#1, $'!H48-'#1, $'!I49=0, "", '#1, $'!J49/('#1, $'!H48-'#1, $'!I49)) ->  | L49: =IF('#1, $'!H48=0, "", '#1, $'!K49/'#1, $'!$F49) ->  | N49: =IF('#1, $'!M48=0, "", '#1, $'!M49/'#1, $'!$C49) ->  | O49: =IF('#1, $'!M48=0, "", '#1, $'!N49/'#1, $'!$D49) ->  | P49: =IF('#1, $'!M48-'#1, $'!N49=0, "", '#1, $'!O49/('#1, $'!M48-'#1, $'!N49)) ->  | Q49: =IF('#1, $'!M48=0, "", '#1, $'!P49/'#1, $'!$F49) ->  | S49: =IF('#1, $'!R48=0, "", '#1, $'!R49/'#1, $'!$C49) -> 20.74422169 | T49: =IF('#1, $'!R48=0, "", '#1, $'!S49/'#1, $'!$D49) -> 19.34458542 | U49: =IF('#1, $'!R48-'#1, $'!S49=0, "", '#1, $'!T49/('#1, $'!R48-'#1, $'!S49)) -> 0.006424949587 | V49: =IF('#1, $'!R48=0, "", '#1, $'!U49/'#1, $'!$F49) -> -0.07142857143 | X49: =IF('#1, $'!W48=0, "", '#1, $'!W49/'#1, $'!$C49) ->  | Y49: =IF('#1, $'!W48=0, "", '#1, $'!X49/'#1, $'!$D49) ->  | Z49: =IF('#1, $'!W48-'#1, $'!X49=0, "", '#1, $'!Y49/('#1, $'!W48-'#1, $'!X49)) ->  | AA49: =IF('#1, $'!W48=0, "", '#1, $'!Z49/'#1, $'!$F49) -> 
B50: ='#1, $'!B50 -> 41 | C50: ='#1, $'!C50/'#1, $'!C$9 -> 0.07695789324 | D50: ='#1, $'!D50/'#1, $'!C49 -> 0.01 | E50: ='#1, $'!E50/('#1, $'!C49-'#1, $'!D50) -> 0.2709306664 | F50: 0.002259581516 | G50: ='#1, $'!F50/('#1, $'!C49-'#1, $'!D50) - F50 -> 0.8934127887 | I50: =IF('#1, $'!H49=0, "", '#1, $'!H50/'#1, $'!$C50) ->  | J50: =IF('#1, $'!H49=0, "", '#1, $'!I50/'#1, $'!$D50) ->  | K50: =IF('#1, $'!H49-'#1, $'!I50=0, "", '#1, $'!J50/('#1, $'!H49-'#1, $'!I50)) ->  | L50: =IF('#1, $'!H49=0, "", '#1, $'!K50/'#1, $'!$F50) ->  | N50: =IF('#1, $'!M49=0, "", '#1, $'!M50/'#1, $'!$C50) ->  | O50: =IF('#1, $'!M49=0, "", '#1, $'!N50/'#1, $'!$D50) ->  | P50: =IF('#1, $'!M49-'#1, $'!N50=0, "", '#1, $'!O50/('#1, $'!M49-'#1, $'!N50)) ->  | Q50: =IF('#1, $'!M49=0, "", '#1, $'!P50/'#1, $'!$F50) ->  | S50: =IF('#1, $'!R49=0, "", '#1, $'!R50/'#1, $'!$C50) -> 22.31238725 | T50: =IF('#1, $'!R49=0, "", '#1, $'!S50/'#1, $'!$D50) -> 20.74422169 | U50: =IF('#1, $'!R49-'#1, $'!S50=0, "", '#1, $'!T50/('#1, $'!R49-'#1, $'!S50)) -> 0.006011119957 | V50: =IF('#1, $'!R49=0, "", '#1, $'!U50/'#1, $'!$F50) -> -0.07142857143 | X50: =IF('#1, $'!W49=0, "", '#1, $'!W50/'#1, $'!$C50) ->  | Y50: =IF('#1, $'!W49=0, "", '#1, $'!X50/'#1, $'!$D50) ->  | Z50: =IF('#1, $'!W49-'#1, $'!X50=0, "", '#1, $'!Y50/('#1, $'!W49-'#1, $'!X50)) ->  | AA50: =IF('#1, $'!W49=0, "", '#1, $'!Z50/'#1, $'!$F50) -> 
B51: ='#1, $'!B51 -> 42 | C51: ='#1, $'!C51/'#1, $'!C$9 -> 0.07041020575 | D51: ='#1, $'!D51/'#1, $'!C50 -> 0.01 | E51: ='#1, $'!E51/('#1, $'!C50-'#1, $'!D51) -> 0.2709306664 | F51: 0.002878275139 | G51: ='#1, $'!F51/('#1, $'!C50-'#1, $'!D51) - F51 -> 0.9293627741 | I51: =IF('#1, $'!H50=0, "", '#1, $'!H51/'#1, $'!$C51) ->  | J51: =IF('#1, $'!H50=0, "", '#1, $'!I51/'#1, $'!$D51) ->  | K51: =IF('#1, $'!H50-'#1, $'!I51=0, "", '#1, $'!J51/('#1, $'!H50-'#1, $'!I51)) ->  | L51: =IF('#1, $'!H50=0, "", '#1, $'!K51/'#1, $'!$F51) ->  | N51: =IF('#1, $'!M50=0, "", '#1, $'!M51/'#1, $'!$C51) ->  | O51: =IF('#1, $'!M50=0, "", '#1, $'!N51/'#1, $'!$D51) ->  | P51: =IF('#1, $'!M50-'#1, $'!N51=0, "", '#1, $'!O51/('#1, $'!M50-'#1, $'!N51)) ->  | Q51: =IF('#1, $'!M50=0, "", '#1, $'!P51/'#1, $'!$F51) ->  | S51: =IF('#1, $'!R50=0, "", '#1, $'!R51/'#1, $'!$C51) -> 24.07814009 | T51: =IF('#1, $'!R50=0, "", '#1, $'!S51/'#1, $'!$D51) -> 22.31238725 | U51: =IF('#1, $'!R50-'#1, $'!S51=0, "", '#1, $'!T51/('#1, $'!R50-'#1, $'!S51)) -> 0.005607969075 | V51: =IF('#1, $'!R50=0, "", '#1, $'!U51/'#1, $'!$F51) -> -0.07142857143 | X51: =IF('#1, $'!W50=0, "", '#1, $'!W51/'#1, $'!$C51) ->  | Y51: =IF('#1, $'!W50=0, "", '#1, $'!X51/'#1, $'!$D51) ->  | Z51: =IF('#1, $'!W50-'#1, $'!X51=0, "", '#1, $'!Y51/('#1, $'!W50-'#1, $'!X51)) ->  | AA51: =IF('#1, $'!W50=0, "", '#1, $'!Z51/'#1, $'!$F51) -> 
B52: ='#1, $'!B52 -> 43 | C52: ='#1, $'!C52/'#1, $'!C$9 -> 0.06421723511 | D52: ='#1, $'!D52/'#1, $'!C51 -> 0.01 | E52: ='#1, $'!E52/('#1, $'!C51-'#1, $'!D52) -> 0.2709306664 | F52: 0.003668647517 | G52: ='#1, $'!F52/('#1, $'!C51-'#1, $'!D52) - F52 -> 0.9692170009 | I52: =IF('#1, $'!H51=0, "", '#1, $'!H52/'#1, $'!$C52) ->  | J52: =IF('#1, $'!H51=0, "", '#1, $'!I52/'#1, $'!$D52) ->  | K52: =IF('#1, $'!H51-'#1, $'!I52=0, "", '#1, $'!J52/('#1, $'!H51-'#1, $'!I52)) ->  | L52: =IF('#1, $'!H51=0, "", '#1, $'!K52/'#1, $'!$F52) ->  | N52: =IF('#1, $'!M51=0, "", '#1, $'!M52/'#1, $'!$C52) ->  | O52: =IF('#1, $'!M51=0, "", '#1, $'!N52/'#1, $'!$D52) ->  | P52: =IF('#1, $'!M51-'#1, $'!N52=0, "", '#1, $'!O52/('#1, $'!M51-'#1, $'!N52)) ->  | Q52: =IF('#1, $'!M51=0, "", '#1, $'!P52/'#1, $'!$F52) ->  | S52: =IF('#1, $'!R51=0, "", '#1, $'!R52/'#1, $'!$C52) -> 26.07745117 | T52: =IF('#1, $'!R51=0, "", '#1, $'!S52/'#1, $'!$D52) -> 24.07814009 | U52: =IF('#1, $'!R51-'#1, $'!S52=0, "", '#1, $'!T52/('#1, $'!R51-'#1, $'!S52)) -> 0.005215795397 | V52: =IF('#1, $'!R51=0, "", '#1, $'!U52/'#1, $'!$F52) -> -0.07142857143 | X52: =IF('#1, $'!W51=0, "", '#1, $'!W52/'#1, $'!$C52) ->  | Y52: =IF('#1, $'!W51=0, "", '#1, $'!X52/'#1, $'!$D52) ->  | Z52: =IF('#1, $'!W51-'#1, $'!X52=0, "", '#1, $'!Y52/('#1, $'!W51-'#1, $'!X52)) ->  | AA52: =IF('#1, $'!W51=0, "", '#1, $'!Z52/'#1, $'!$F52) -> 
B53: ='#1, $'!B53 -> 44 | C53: ='#1, $'!C53/'#1, $'!C$9 -> 0.0583626252 | D53: ='#1, $'!D53/'#1, $'!C52 -> 0.01 | E53: ='#1, $'!E53/('#1, $'!C52-'#1, $'!D53) -> 0.2709306664 | F53: 0.004679765042 | G53: ='#1, $'!F53/('#1, $'!C52-'#1, $'!D53) - F53 -> 1.013645688 | I53: =IF('#1, $'!H52=0, "", '#1, $'!H53/'#1, $'!$C53) ->  | J53: =IF('#1, $'!H52=0, "", '#1, $'!I53/'#1, $'!$D53) ->  | K53: =IF('#1, $'!H52-'#1, $'!I53=0, "", '#1, $'!J53/('#1, $'!H52-'#1, $'!I53)) ->  | L53: =IF('#1, $'!H52=0, "", '#1, $'!K53/'#1, $'!$F53) ->  | N53: =IF('#1, $'!M52=0, "", '#1, $'!M53/'#1, $'!$C53) ->  | O53: =IF('#1, $'!M52=0, "", '#1, $'!N53/'#1, $'!$D53) ->  | P53: =IF('#1, $'!M52-'#1, $'!N53=0, "", '#1, $'!O53/('#1, $'!M52-'#1, $'!N53)) ->  | Q53: =IF('#1, $'!M52=0, "", '#1, $'!P53/'#1, $'!$F53) ->  | S53: =IF('#1, $'!R52=0, "", '#1, $'!R53/'#1, $'!$C53) -> 28.35537842 | T53: =IF('#1, $'!R52=0, "", '#1, $'!S53/'#1, $'!$D53) -> 26.07745117 | U53: =IF('#1, $'!R52-'#1, $'!S53=0, "", '#1, $'!T53/('#1, $'!R52-'#1, $'!S53)) -> 0.004834856678 | V53: =IF('#1, $'!R52=0, "", '#1, $'!U53/'#1, $'!$F53) -> -0.07142857143 | X53: =IF('#1, $'!W52=0, "", '#1, $'!W53/'#1, $'!$C53) ->  | Y53: =IF('#1, $'!W52=0, "", '#1, $'!X53/'#1, $'!$D53) ->  | Z53: =IF('#1, $'!W52-'#1, $'!X53=0, "", '#1, $'!Y53/('#1, $'!W52-'#1, $'!X53)) ->  | AA53: =IF('#1, $'!W52=0, "", '#1, $'!Z53/'#1, $'!$F53) -> 
B54: ='#1, $'!B54 -> 45 | C54: ='#1, $'!C54/'#1, $'!C$9 -> 0.05283073906 | D54: ='#1, $'!D54/'#1, $'!C53 -> 0.01 | E54: ='#1, $'!E54/('#1, $'!C53-'#1, $'!D54) -> 0.2709306664 | F54: 0.005975621407 | G54: ='#1, $'!F54/('#1, $'!C53-'#1, $'!D54) - F54 -> 1.063483947 | I54: =IF('#1, $'!H53=0, "", '#1, $'!H54/'#1, $'!$C54) ->  | J54: =IF('#1, $'!H53=0, "", '#1, $'!I54/'#1, $'!$D54) ->  | K54: =IF('#1, $'!H53-'#1, $'!I54=0, "", '#1, $'!J54/('#1, $'!H53-'#1, $'!I54)) ->  | L54: =IF('#1, $'!H53=0, "", '#1, $'!K54/'#1, $'!$F54) ->  | N54: =IF('#1, $'!M53=0, "", '#1, $'!M54/'#1, $'!$C54) ->  | O54: =IF('#1, $'!M53=0, "", '#1, $'!N54/'#1, $'!$D54) ->  | P54: =IF('#1, $'!M53-'#1, $'!N54=0, "", '#1, $'!O54/('#1, $'!M53-'#1, $'!N54)) ->  | Q54: =IF('#1, $'!M53=0, "", '#1, $'!P54/'#1, $'!$F54) ->  | S54: =IF('#1, $'!R53=0, "", '#1, $'!R54/'#1, $'!$C54) -> 30.96911492 | T54: =IF('#1, $'!R53=0, "", '#1, $'!S54/'#1, $'!$D54) -> 28.35537842 | U54: =IF('#1, $'!R53-'#1, $'!S54=0, "", '#1, $'!T54/('#1, $'!R53-'#1, $'!S54)) -> 0.004465370724 | V54: =IF('#1, $'!R53=0, "", '#1, $'!U54/'#1, $'!$F54) -> -0.07142857143 | X54: =IF('#1, $'!W53=0, "", '#1, $'!W54/'#1, $'!$C54) ->  | Y54: =IF('#1, $'!W53=0, "", '#1, $'!X54/'#1, $'!$D54) ->  | Z54: =IF('#1, $'!W53-'#1, $'!X54=0, "", '#1, $'!Y54/('#1, $'!W53-'#1, $'!X54)) ->  | AA54: =IF('#1, $'!W53=0, "", '#1, $'!Z54/'#1, $'!$F54) -> 
B55: ='#1, $'!B55 -> 46 | C55: ='#1, $'!C55/'#1, $'!C$9 -> 0.04760663198 | D55: ='#1, $'!D55/'#1, $'!C54 -> 0.01 | E55: ='#1, $'!E55/('#1, $'!C54-'#1, $'!D55) -> 0.2709306664 | F55: 0.007640255773 | G55: ='#1, $'!F55/('#1, $'!C54-'#1, $'!D55) - F55 -> 1.119786606 | I55: =IF('#1, $'!H54=0, "", '#1, $'!H55/'#1, $'!$C55) ->  | J55: =IF('#1, $'!H54=0, "", '#1, $'!I55/'#1, $'!$D55) ->  | K55: =IF('#1, $'!H54-'#1, $'!I55=0, "", '#1, $'!J55/('#1, $'!H54-'#1, $'!I55)) ->  | L55: =IF('#1, $'!H54=0, "", '#1, $'!K55/'#1, $'!$F55) ->  | N55: =IF('#1, $'!M54=0, "", '#1, $'!M55/'#1, $'!$C55) ->  | O55: =IF('#1, $'!M54=0, "", '#1, $'!N55/'#1, $'!$D55) ->  | P55: =IF('#1, $'!M54-'#1, $'!N55=0, "", '#1, $'!O55/('#1, $'!M54-'#1, $'!N55)) ->  | Q55: =IF('#1, $'!M54=0, "", '#1, $'!P55/'#1, $'!$F55) ->  | S55: =IF('#1, $'!R54=0, "", '#1, $'!R55/'#1, $'!$C55) -> 33.99235009 | T55: =IF('#1, $'!R54=0, "", '#1, $'!S55/'#1, $'!$D55) -> 30.96911492 | U55: =IF('#1, $'!R54-'#1, $'!S55=0, "", '#1, $'!T55/('#1, $'!R54-'#1, $'!S55)) -> 0.004107516403 | V55: =IF('#1, $'!R54=0, "", '#1, $'!U55/'#1, $'!$F55) -> -0.07142857143 | X55: =IF('#1, $'!W54=0, "", '#1, $'!W55/'#1, $'!$C55) ->  | Y55: =IF('#1, $'!W54=0, "", '#1, $'!X55/'#1, $'!$D55) ->  | Z55: =IF('#1, $'!W54-'#1, $'!X55=0, "", '#1, $'!Y55/('#1, $'!W54-'#1, $'!X55)) ->  | AA55: =IF('#1, $'!W54=0, "", '#1, $'!Z55/'#1, $'!$F55) -> 
B56: ='#1, $'!B56 -> 47 | C56: ='#1, $'!C56/'#1, $'!C$9 -> 0.04267602659 | D56: ='#1, $'!D56/'#1, $'!C55 -> 0.01 | E56: ='#1, $'!E56/('#1, $'!C55-'#1, $'!D56) -> 0.2709306664 | F56: 0.009784995226 | G56: ='#1, $'!F56/('#1, $'!C55-'#1, $'!D56) - F56 -> 1.183906596 | I56: =IF('#1, $'!H55=0, "", '#1, $'!H56/'#1, $'!$C56) ->  | J56: =IF('#1, $'!H55=0, "", '#1, $'!I56/'#1, $'!$D56) ->  | K56: =IF('#1, $'!H55-'#1, $'!I56=0, "", '#1, $'!J56/('#1, $'!H55-'#1, $'!I56)) ->  | L56: =IF('#1, $'!H55=0, "", '#1, $'!K56/'#1, $'!$F56) ->  | N56: =IF('#1, $'!M55=0, "", '#1, $'!M56/'#1, $'!$C56) ->  | O56: =IF('#1, $'!M55=0, "", '#1, $'!N56/'#1, $'!$D56) ->  | P56: =IF('#1, $'!M55-'#1, $'!N56=0, "", '#1, $'!O56/('#1, $'!M55-'#1, $'!N56)) ->  | Q56: =IF('#1, $'!M55=0, "", '#1, $'!P56/'#1, $'!$F56) ->  | S56: =IF('#1, $'!R55=0, "", '#1, $'!R56/'#1, $'!$C56) -> 37.52165434 | T56: =IF('#1, $'!R55=0, "", '#1, $'!S56/'#1, $'!$D56) -> 33.99235009 | U56: =IF('#1, $'!R55-'#1, $'!S56=0, "", '#1, $'!T56/('#1, $'!R55-'#1, $'!S56)) -> 0.003761434909 | V56: =IF('#1, $'!R55=0, "", '#1, $'!U56/'#1, $'!$F56) -> -0.07142857143 | X56: =IF('#1, $'!W55=0, "", '#1, $'!W56/'#1, $'!$C56) ->  | Y56: =IF('#1, $'!W55=0, "", '#1, $'!X56/'#1, $'!$D56) ->  | Z56: =IF('#1, $'!W55-'#1, $'!X56=0, "", '#1, $'!Y56/('#1, $'!W55-'#1, $'!X56)) ->  | AA56: =IF('#1, $'!W55=0, "", '#1, $'!Z56/'#1, $'!$F56) -> 
B57: ='#1, $'!B57 -> 48 | C57: ='#1, $'!C57/'#1, $'!C$9 -> 0.03802529006 | D57: ='#1, $'!D57/'#1, $'!C56 -> 0.01 | E57: ='#1, $'!E57/('#1, $'!C56-'#1, $'!D57) -> 0.2709306664 | F57: 0.01255893967 | G57: ='#1, $'!F57/('#1, $'!C56-'#1, $'!D57) - F57 -> 1.257609615 | I57: =IF('#1, $'!H56=0, "", '#1, $'!H57/'#1, $'!$C57) ->  | J57: =IF('#1, $'!H56=0, "", '#1, $'!I57/'#1, $'!$D57) ->  | K57: =IF('#1, $'!H56-'#1, $'!I57=0, "", '#1, $'!J57/('#1, $'!H56-'#1, $'!I57)) ->  | L57: =IF('#1, $'!H56=0, "", '#1, $'!K57/'#1, $'!$F57) ->  | N57: =IF('#1, $'!M56=0, "", '#1, $'!M57/'#1, $'!$C57) ->  | O57: =IF('#1, $'!M56=0, "", '#1, $'!N57/'#1, $'!$D57) ->  | P57: =IF('#1, $'!M56-'#1, $'!N57=0, "", '#1, $'!O57/('#1, $'!M56-'#1, $'!N57)) ->  | Q57: =IF('#1, $'!M56=0, "", '#1, $'!P57/'#1, $'!$F57) ->  | S57: =IF('#1, $'!R56=0, "", '#1, $'!R57/'#1, $'!$C57) -> 41.68607307 | T57: =IF('#1, $'!R56=0, "", '#1, $'!S57/'#1, $'!$D57) -> 37.52165434 | U57: =IF('#1, $'!R56-'#1, $'!S57=0, "", '#1, $'!T57/('#1, $'!R56-'#1, $'!S57)) -> 0.003427231278 | V57: =IF('#1, $'!R56=0, "", '#1, $'!U57/'#1, $'!$F57) -> -0.07142857143 | X57: =IF('#1, $'!W56=0, "", '#1, $'!W57/'#1, $'!$C57) ->  | Y57: =IF('#1, $'!W56=0, "", '#1, $'!X57/'#1, $'!$D57) ->  | Z57: =IF('#1, $'!W56-'#1, $'!X57=0, "", '#1, $'!Y57/('#1, $'!W56-'#1, $'!X57)) ->  | AA57: =IF('#1, $'!W56=0, "", '#1, $'!Z57/'#1, $'!$F57) -> 
B58: ='#1, $'!B58 -> 49 | C58: ='#1, $'!C58/'#1, $'!C$9 -> 0.03364141394 | D58: ='#1, $'!D58/'#1, $'!C57 -> 0.01 | E58: ='#1, $'!E58/('#1, $'!C57-'#1, $'!D58) -> 0.2709306664 | F58: 0.01616455118 | G58: ='#1, $'!F58/('#1, $'!C57-'#1, $'!D58) - F58 -> 1.343246265 | I58: =IF('#1, $'!H57=0, "", '#1, $'!H58/'#1, $'!$C58) ->  | J58: =IF('#1, $'!H57=0, "", '#1, $'!I58/'#1, $'!$D58) ->  | K58: =IF('#1, $'!H57-'#1, $'!I58=0, "", '#1, $'!J58/('#1, $'!H57-'#1, $'!I58)) ->  | L58: =IF('#1, $'!H57=0, "", '#1, $'!K58/'#1, $'!$F58) ->  | N58: =IF('#1, $'!M57=0, "", '#1, $'!M58/'#1, $'!$C58) ->  | O58: =IF('#1, $'!M57=0, "", '#1, $'!N58/'#1, $'!$D58) ->  | P58: =IF('#1, $'!M57-'#1, $'!N58=0, "", '#1, $'!O58/('#1, $'!M57-'#1, $'!N58)) ->  | Q58: =IF('#1, $'!M57=0, "", '#1, $'!P58/'#1, $'!$F58) ->  | S58: =IF('#1, $'!R57=0, "", '#1, $'!R58/'#1, $'!$C58) -> 46.66198216 | T58: =IF('#1, $'!R57=0, "", '#1, $'!S58/'#1, $'!$D58) -> 41.68607307 | U58: =IF('#1, $'!R57-'#1, $'!S58=0, "", '#1, $'!T58/('#1, $'!R57-'#1, $'!S58)) -> 0.003104976167 | V58: =IF('#1, $'!R57=0, "", '#1, $'!U58/'#1, $'!$F58) -> -0.07142857143 | X58: =IF('#1, $'!W57=0, "", '#1, $'!W58/'#1, $'!$C58) ->  | Y58: =IF('#1, $'!W57=0, "", '#1, $'!X58/'#1, $'!$D58) ->  | Z58: =IF('#1, $'!W57-'#1, $'!X58=0, "", '#1, $'!Y58/('#1, $'!W57-'#1, $'!X58)) ->  | AA58: =IF('#1, $'!W57=0, "", '#1, $'!Z58/'#1, $'!$F58) -> 
B59: ='#1, $'!B59 -> 50 | C59: ='#1, $'!C59/'#1, $'!C$9 -> 0.02951199722 | D59: ='#1, $'!D59/'#1, $'!C58 -> 0.01 | E59: ='#1, $'!E59/('#1, $'!C58-'#1, $'!D59) -> 0.2709306664 | F59: 0.02088156493 | G59: ='#1, $'!F59/('#1, $'!C58-'#1, $'!D59) - F59 -> 1.444018259 | I59: =IF('#1, $'!H58=0, "", '#1, $'!H59/'#1, $'!$C59) ->  | J59: =IF('#1, $'!H58=0, "", '#1, $'!I59/'#1, $'!$D59) ->  | K59: =IF('#1, $'!H58-'#1, $'!I59=0, "", '#1, $'!J59/('#1, $'!H58-'#1, $'!I59)) ->  | L59: =IF('#1, $'!H58=0, "", '#1, $'!K59/'#1, $'!$F59) ->  | N59: =IF('#1, $'!M58=0, "", '#1, $'!M59/'#1, $'!$C59) ->  | O59: =IF('#1, $'!M58=0, "", '#1, $'!N59/'#1, $'!$D59) ->  | P59: =IF('#1, $'!M58-'#1, $'!N59=0, "", '#1, $'!O59/('#1, $'!M58-'#1, $'!N59)) ->  | Q59: =IF('#1, $'!M58=0, "", '#1, $'!P59/'#1, $'!$F59) ->  | S59: =IF('#1, $'!R58=0, "", '#1, $'!R59/'#1, $'!$C59) -> 52.69690672 | T59: =IF('#1, $'!R58=0, "", '#1, $'!S59/'#1, $'!$D59) -> 46.66198216 | U59: =IF('#1, $'!R58-'#1, $'!S59=0, "", '#1, $'!T59/('#1, $'!R58-'#1, $'!S59)) -> 0.002794707907 | V59: =IF('#1, $'!R58=0, "", '#1, $'!U59/'#1, $'!$F59) -> -0.07142857143 | X59: =IF('#1, $'!W58=0, "", '#1, $'!W59/'#1, $'!$C59) ->  | Y59: =IF('#1, $'!W58=0, "", '#1, $'!X59/'#1, $'!$D59) ->  | Z59: =IF('#1, $'!W58-'#1, $'!X59=0, "", '#1, $'!Y59/('#1, $'!W58-'#1, $'!X59)) ->  | AA59: =IF('#1, $'!W58=0, "", '#1, $'!Z59/'#1, $'!$F59) -> 
B60: ='#1, $'!B60 -> 51 | C60: ='#1, $'!C60/'#1, $'!C$9 -> 0.02562523372 | D60: ='#1, $'!D60/'#1, $'!C59 -> 0.01 | E60: ='#1, $'!E60/('#1, $'!C59-'#1, $'!D60) -> 0.2709306664 | F60: 0.02710501639 | G60: ='#1, $'!F60/('#1, $'!C59-'#1, $'!D60) - F60 -> 1.564404592 | I60: =IF('#1, $'!H59=0, "", '#1, $'!H60/'#1, $'!$C60) ->  | J60: =IF('#1, $'!H59=0, "", '#1, $'!I60/'#1, $'!$D60) ->  | K60: =IF('#1, $'!H59-'#1, $'!I60=0, "", '#1, $'!J60/('#1, $'!H59-'#1, $'!I60)) ->  | L60: =IF('#1, $'!H59=0, "", '#1, $'!K60/'#1, $'!$F60) ->  | N60: =IF('#1, $'!M59=0, "", '#1, $'!M60/'#1, $'!$C60) ->  | O60: =IF('#1, $'!M59=0, "", '#1, $'!N60/'#1, $'!$D60) ->  | P60: =IF('#1, $'!M59-'#1, $'!N60=0, "", '#1, $'!O60/('#1, $'!M59-'#1, $'!N60)) ->  | Q60: =IF('#1, $'!M59=0, "", '#1, $'!P60/'#1, $'!$F60) ->  | S60: =IF('#1, $'!R59=0, "", '#1, $'!R60/'#1, $'!$C60) -> 60.14931059 | T60: =IF('#1, $'!R59=0, "", '#1, $'!S60/'#1, $'!$D60) -> 52.69690672 | U60: =IF('#1, $'!R59-'#1, $'!S60=0, "", '#1, $'!T60/('#1, $'!R59-'#1, $'!S60)) -> 0.002496434869 | V60: =IF('#1, $'!R59=0, "", '#1, $'!U60/'#1, $'!$F60) -> -0.07142857143 | X60: =IF('#1, $'!W59=0, "", '#1, $'!W60/'#1, $'!$C60) ->  | Y60: =IF('#1, $'!W59=0, "", '#1, $'!X60/'#1, $'!$D60) ->  | Z60: =IF('#1, $'!W59-'#1, $'!X60=0, "", '#1, $'!Y60/('#1, $'!W59-'#1, $'!X60)) ->  | AA60: =IF('#1, $'!W59=0, "", '#1, $'!Z60/'#1, $'!$F60) -> 
B61: ='#1, $'!B61 -> 52 | C61: ='#1, $'!C61/'#1, $'!C$9 -> 0.0219699058 | D61: ='#1, $'!D61/'#1, $'!C60 -> 0.01 | E61: ='#1, $'!E61/('#1, $'!C60-'#1, $'!D61) -> 0.2709306664 | F61: 0.03540834019 | G61: ='#1, $'!F61/('#1, $'!C60-'#1, $'!D61) - F61 -> 1.710872094 | I61: =IF('#1, $'!H60=0, "", '#1, $'!H61/'#1, $'!$C61) ->  | J61: =IF('#1, $'!H60=0, "", '#1, $'!I61/'#1, $'!$D61) ->  | K61: =IF('#1, $'!H60-'#1, $'!I61=0, "", '#1, $'!J61/('#1, $'!H60-'#1, $'!I61)) ->  | L61: =IF('#1, $'!H60=0, "", '#1, $'!K61/'#1, $'!$F61) ->  | N61: =IF('#1, $'!M60=0, "", '#1, $'!M61/'#1, $'!$C61) ->  | O61: =IF('#1, $'!M60=0, "", '#1, $'!N61/'#1, $'!$D61) ->  | P61: =IF('#1, $'!M60-'#1, $'!N61=0, "", '#1, $'!O61/('#1, $'!M60-'#1, $'!N61)) ->  | Q61: =IF('#1, $'!M60=0, "", '#1, $'!P61/'#1, $'!$F61) ->  | S61: =IF('#1, $'!R60=0, "", '#1, $'!R61/'#1, $'!$C61) -> 69.55840777 | T61: =IF('#1, $'!R60=0, "", '#1, $'!S61/'#1, $'!$D61) -> 60.14931059 | U61: =IF('#1, $'!R60-'#1, $'!S61=0, "", '#1, $'!T61/('#1, $'!R60-'#1, $'!S61)) -> 0.00221013824 | V61: =IF('#1, $'!R60=0, "", '#1, $'!U61/'#1, $'!$F61) -> -0.07142857143 | X61: =IF('#1, $'!W60=0, "", '#1, $'!W61/'#1, $'!$C61) ->  | Y61: =IF('#1, $'!W60=0, "", '#1, $'!X61/'#1, $'!$D61) ->  | Z61: =IF('#1, $'!W60-'#1, $'!X61=0, "", '#1, $'!Y61/('#1, $'!W60-'#1, $'!X61)) ->  | AA61: =IF('#1, $'!W60=0, "", '#1, $'!Z61/'#1, $'!$F61) -> 
B62: ='#1, $'!B62 -> 53 | C62: ='#1, $'!C62/'#1, $'!C$9 -> 0.01853538757 | D62: ='#1, $'!D62/'#1, $'!C61 -> 0.01 | E62: ='#1, $'!E62/('#1, $'!C61-'#1, $'!D62) -> 0.2709306664 | F62: 0.04665346723 | G62: ='#1, $'!F62/('#1, $'!C61-'#1, $'!D62) - F62 -> 1.89311923 | I62: =IF('#1, $'!H61=0, "", '#1, $'!H62/'#1, $'!$C62) ->  | J62: =IF('#1, $'!H61=0, "", '#1, $'!I62/'#1, $'!$D62) ->  | K62: =IF('#1, $'!H61-'#1, $'!I62=0, "", '#1, $'!J62/('#1, $'!H61-'#1, $'!I62)) ->  | L62: =IF('#1, $'!H61=0, "", '#1, $'!K62/'#1, $'!$F62) ->  | N62: =IF('#1, $'!M61=0, "", '#1, $'!M62/'#1, $'!$C62) ->  | O62: =IF('#1, $'!M61=0, "", '#1, $'!N62/'#1, $'!$D62) ->  | P62: =IF('#1, $'!M61-'#1, $'!N62=0, "", '#1, $'!O62/('#1, $'!M61-'#1, $'!N62)) ->  | Q62: =IF('#1, $'!M61=0, "", '#1, $'!P62/'#1, $'!$F62) ->  | S62: =IF('#1, $'!R61=0, "", '#1, $'!R62/'#1, $'!$C62) -> 81.77419166 | T62: =IF('#1, $'!R61=0, "", '#1, $'!S62/'#1, $'!$D62) -> 69.55840777 | U62: =IF('#1, $'!R61-'#1, $'!S62=0, "", '#1, $'!T62/('#1, $'!R61-'#1, $'!S62)) -> 0.001935775333 | V62: =IF('#1, $'!R61=0, "", '#1, $'!U62/'#1, $'!$F62) -> -0.07142857143 | X62: =IF('#1, $'!W61=0, "", '#1, $'!W62/'#1, $'!$C62) ->  | Y62: =IF('#1, $'!W61=0, "", '#1, $'!X62/'#1, $'!$D62) ->  | Z62: =IF('#1, $'!W61-'#1, $'!X62=0, "", '#1, $'!Y62/('#1, $'!W61-'#1, $'!X62)) ->  | AA62: =IF('#1, $'!W61=0, "", '#1, $'!Z62/'#1, $'!$F62) -> 
B63: ='#1, $'!B63 -> 54 | C63: ='#1, $'!C63/'#1, $'!C$9 -> 0.01531166418 | D63: ='#1, $'!D63/'#1, $'!C62 -> 0.01 | E63: ='#1, $'!E63/('#1, $'!C62-'#1, $'!D63) -> 0.2709306664 | F63: 0.06219493139 | G63: ='#1, $'!F63/('#1, $'!C62-'#1, $'!D63) - F63 -> 2.126386371 | I63: =IF('#1, $'!H62=0, "", '#1, $'!H63/'#1, $'!$C63) ->  | J63: =IF('#1, $'!H62=0, "", '#1, $'!I63/'#1, $'!$D63) ->  | K63: =IF('#1, $'!H62-'#1, $'!I63=0, "", '#1, $'!J63/('#1, $'!H62-'#1, $'!I63)) ->  | L63: =IF('#1, $'!H62=0, "", '#1, $'!K63/'#1, $'!$F63) ->  | N63: =IF('#1, $'!M62=0, "", '#1, $'!M63/'#1, $'!$C63) ->  | O63: =IF('#1, $'!M62=0, "", '#1, $'!N63/'#1, $'!$D63) ->  | P63: =IF('#1, $'!M62-'#1, $'!N63=0, "", '#1, $'!O63/('#1, $'!M62-'#1, $'!N63)) ->  | Q63: =IF('#1, $'!M62=0, "", '#1, $'!P63/'#1, $'!$F63) ->  | S63: =IF('#1, $'!R62=0, "", '#1, $'!R63/'#1, $'!$C63) -> 98.21837553 | T63: =IF('#1, $'!R62=0, "", '#1, $'!S63/'#1, $'!$D63) -> 81.77419166 | U63: =IF('#1, $'!R62-'#1, $'!S63=0, "", '#1, $'!T63/('#1, $'!R62-'#1, $'!S63)) -> 0.001673283733 | V63: =IF('#1, $'!R62=0, "", '#1, $'!U63/'#1, $'!$F63) -> -0.07142857143 | X63: =IF('#1, $'!W62=0, "", '#1, $'!W63/'#1, $'!$C63) ->  | Y63: =IF('#1, $'!W62=0, "", '#1, $'!X63/'#1, $'!$D63) ->  | Z63: =IF('#1, $'!W62-'#1, $'!X63=0, "", '#1, $'!Y63/('#1, $'!W62-'#1, $'!X63)) ->  | AA63: =IF('#1, $'!W62=0, "", '#1, $'!Z63/'#1, $'!$F63) -> 
B64: ='#1, $'!B64 -> 55 | C64: ='#1, $'!C64/'#1, $'!C$9 -> 0.01228937994 | D64: ='#1, $'!D64/'#1, $'!C63 -> 0.01 | E64: ='#1, $'!E64/('#1, $'!C63-'#1, $'!D64) -> 0.2709306664 | F64: 0.0842877142 | G64: ='#1, $'!F64/('#1, $'!C63-'#1, $'!D64) - F64 -> 2.436076716 | I64: =IF('#1, $'!H63=0, "", '#1, $'!H64/'#1, $'!$C64) ->  | J64: =IF('#1, $'!H63=0, "", '#1, $'!I64/'#1, $'!$D64) ->  | K64: =IF('#1, $'!H63-'#1, $'!I64=0, "", '#1, $'!J64/('#1, $'!H63-'#1, $'!I64)) ->  | L64: =IF('#1, $'!H63=0, "", '#1, $'!K64/'#1, $'!$F64) ->  | N64: =IF('#1, $'!M63=0, "", '#1, $'!M64/'#1, $'!$C64) ->  | O64: =IF('#1, $'!M63=0, "", '#1, $'!N64/'#1, $'!$D64) ->  | P64: =IF('#1, $'!M63-'#1, $'!N64=0, "", '#1, $'!O64/('#1, $'!M63-'#1, $'!N64)) ->  | Q64: =IF('#1, $'!M63=0, "", '#1, $'!P64/'#1, $'!$F64) ->  | S64: =IF('#1, $'!R63=0, "", '#1, $'!R64/'#1, $'!$C64) -> 122.9815138 | T64: =IF('#1, $'!R63=0, "", '#1, $'!S64/'#1, $'!$D64) -> 98.21837553 | U64: =IF('#1, $'!R63-'#1, $'!S64=0, "", '#1, $'!T64/('#1, $'!R63-'#1, $'!S64)) -> 0.001422586799 | V64: =IF('#1, $'!R63=0, "", '#1, $'!U64/'#1, $'!$F64) -> -0.2748863453 | X64: =IF('#1, $'!W63=0, "", '#1, $'!W64/'#1, $'!$C64) ->  | Y64: =IF('#1, $'!W63=0, "", '#1, $'!X64/'#1, $'!$D64) ->  | Z64: =IF('#1, $'!W63-'#1, $'!X64=0, "", '#1, $'!Y64/('#1, $'!W63-'#1, $'!X64)) ->  | AA64: =IF('#1, $'!W63=0, "", '#1, $'!Z64/'#1, $'!$F64) -> 
B65: ='#1, $'!B65 -> 56 | C65: ='#1, $'!C65/'#1, $'!C$9 -> 0.009459944126 | D65: ='#1, $'!D65/'#1, $'!C64 -> 0.01 | E65: ='#1, $'!E65/('#1, $'!C64-'#1, $'!D65) -> 0.2709306664 | F65: 0.116984169 | G65: ='#1, $'!F65/('#1, $'!C64-'#1, $'!D65) - F65 -> 2.867922628 | I65: =IF('#1, $'!H64=0, "", '#1, $'!H65/'#1, $'!$C65) ->  | J65: =IF('#1, $'!H64=0, "", '#1, $'!I65/'#1, $'!$D65) ->  | K65: =IF('#1, $'!H64-'#1, $'!I65=0, "", '#1, $'!J65/('#1, $'!H64-'#1, $'!I65)) ->  | L65: =IF('#1, $'!H64=0, "", '#1, $'!K65/'#1, $'!$F65) ->  | N65: =IF('#1, $'!M64=0, "", '#1, $'!M65/'#1, $'!$C65) ->  | O65: =IF('#1, $'!M64=0, "", '#1, $'!N65/'#1, $'!$D65) ->  | P65: =IF('#1, $'!M64-'#1, $'!N65=0, "", '#1, $'!O65/('#1, $'!M64-'#1, $'!N65)) ->  | Q65: =IF('#1, $'!M64=0, "", '#1, $'!P65/'#1, $'!$F65) ->  | S65: =IF('#1, $'!R64=0, "", '#1, $'!R65/'#1, $'!$C65) -> 159.1915454 | T65: =IF('#1, $'!R64=0, "", '#1, $'!S65/'#1, $'!$D65) -> 122.9815138 | U65: =IF('#1, $'!R64-'#1, $'!S65=0, "", '#1, $'!T65/('#1, $'!R64-'#1, $'!S65)) -> 0.001148613231 | V65: =IF('#1, $'!R64=0, "", '#1, $'!U65/'#1, $'!$F65) -> -0.07142857143 | X65: =IF('#1, $'!W64=0, "", '#1, $'!W65/'#1, $'!$C65) ->  | Y65: =IF('#1, $'!W64=0, "", '#1, $'!X65/'#1, $'!$D65) ->  | Z65: =IF('#1, $'!W64-'#1, $'!X65=0, "", '#1, $'!Y65/('#1, $'!W64-'#1, $'!X65)) ->  | AA65: =IF('#1, $'!W64=0, "", '#1, $'!Z65/'#1, $'!$F65) -> 
B66: ='#1, $'!B66 -> 57 | C66: ='#1, $'!C66/'#1, $'!C$9 -> 0.006815767155 | D66: ='#1, $'!D66/'#1, $'!C65 -> 0.01 | E66: ='#1, $'!E66/('#1, $'!C65-'#1, $'!D66) -> 0.2709306664 | F66: 0.1683761067 | G66: ='#1, $'!F66/('#1, $'!C65-'#1, $'!D66) - F66 -> 3.513401732 | I66: =IF('#1, $'!H65=0, "", '#1, $'!H66/'#1, $'!$C66) ->  | J66: =IF('#1, $'!H65=0, "", '#1, $'!I66/'#1, $'!$D66) ->  | K66: =IF('#1, $'!H65-'#1, $'!I66=0, "", '#1, $'!J66/('#1, $'!H65-'#1, $'!I66)) ->  | L66: =IF('#1, $'!H65=0, "", '#1, $'!K66/'#1, $'!$F66) ->  | N66: =IF('#1, $'!M65=0, "", '#1, $'!M66/'#1, $'!$C66) ->  | O66: =IF('#1, $'!M65=0, "", '#1, $'!N66/'#1, $'!$D66) ->  | P66: =IF('#1, $'!M65-'#1, $'!N66=0, "", '#1, $'!O66/('#1, $'!M65-'#1, $'!N66)) ->  | Q66: =IF('#1, $'!M65=0, "", '#1, $'!P66/'#1, $'!$F66) ->  | S66: =IF('#1, $'!R65=0, "", '#1, $'!R66/'#1, $'!$C66) -> 220.2005991 | T66: =IF('#1, $'!R65=0, "", '#1, $'!S66/'#1, $'!$D66) -> 159.1915454 | U66: =IF('#1, $'!R65-'#1, $'!S66=0, "", '#1, $'!T66/('#1, $'!R65-'#1, $'!S66)) -> 0.0008874749631 | V66: =IF('#1, $'!R65=0, "", '#1, $'!U66/'#1, $'!$F66) -> -0.07142857143 | X66: =IF('#1, $'!W65=0, "", '#1, $'!W66/'#1, $'!$C66) ->  | Y66: =IF('#1, $'!W65=0, "", '#1, $'!X66/'#1, $'!$D66) ->  | Z66: =IF('#1, $'!W65-'#1, $'!X66=0, "", '#1, $'!Y66/('#1, $'!W65-'#1, $'!X66)) ->  | AA66: =IF('#1, $'!W65=0, "", '#1, $'!Z66/'#1, $'!$F66) -> 
B67: ='#1, $'!B67 -> 58 | C67: ='#1, $'!C67/'#1, $'!C$9 -> 0.004350847623 | D67: ='#1, $'!D67/'#1, $'!C66 -> 0.01 | E67: ='#1, $'!E67/('#1, $'!C66-'#1, $'!D67) -> 0.2709306664 | F67: 0.257321079 | G67: ='#1, $'!F67/('#1, $'!C66-'#1, $'!D67) - F67 -> 4.58598516 | I67: =IF('#1, $'!H66=0, "", '#1, $'!H67/'#1, $'!$C67) ->  | J67: =IF('#1, $'!H66=0, "", '#1, $'!I67/'#1, $'!$D67) ->  | K67: =IF('#1, $'!H66-'#1, $'!I67=0, "", '#1, $'!J67/('#1, $'!H66-'#1, $'!I67)) ->  | L67: =IF('#1, $'!H66=0, "", '#1, $'!K67/'#1, $'!$F67) ->  | N67: =IF('#1, $'!M66=0, "", '#1, $'!M67/'#1, $'!$C67) ->  | O67: =IF('#1, $'!M66=0, "", '#1, $'!N67/'#1, $'!$D67) ->  | P67: =IF('#1, $'!M66-'#1, $'!N67=0, "", '#1, $'!O67/('#1, $'!M66-'#1, $'!N67)) ->  | Q67: =IF('#1, $'!M66=0, "", '#1, $'!P67/'#1, $'!$F67) ->  | S67: =IF('#1, $'!R66=0, "", '#1, $'!R67/'#1, $'!$C67) -> 343.8494939 | T67: =IF('#1, $'!R66=0, "", '#1, $'!S67/'#1, $'!$D67) -> 220.2005991 | U67: =IF('#1, $'!R66-'#1, $'!S67=0, "", '#1, $'!T67/('#1, $'!R66-'#1, $'!S67)) -> 0.0006416782657 | V67: =IF('#1, $'!R66=0, "", '#1, $'!U67/'#1, $'!$F67) -> -0.07142857143 | X67: =IF('#1, $'!W66=0, "", '#1, $'!W67/'#1, $'!$C67) ->  | Y67: =IF('#1, $'!W66=0, "", '#1, $'!X67/'#1, $'!$D67) ->  | Z67: =IF('#1, $'!W66-'#1, $'!X67=0, "", '#1, $'!Y67/('#1, $'!W66-'#1, $'!X67)) ->  | AA67: =IF('#1, $'!W66=0, "", '#1, $'!Z67/'#1, $'!$F67) -> 
B68: ='#1, $'!B68 -> 59 | C68: ='#1, $'!C68/'#1, $'!C$9 -> 0.002062601789 | D68: ='#1, $'!D68/'#1, $'!C67 -> 0.01 | E68: ='#1, $'!E68/('#1, $'!C67-'#1, $'!D68) -> 0.2709306664 | F68: 0.4403480982 | G68: ='#1, $'!F68/('#1, $'!C67-'#1, $'!D68) - F68 -> 6.726129945 | I68: =IF('#1, $'!H67=0, "", '#1, $'!H68/'#1, $'!$C68) ->  | J68: =IF('#1, $'!H67=0, "", '#1, $'!I68/'#1, $'!$D68) ->  | K68: =IF('#1, $'!H67-'#1, $'!I68=0, "", '#1, $'!J68/('#1, $'!H67-'#1, $'!I68)) ->  | L68: =IF('#1, $'!H67=0, "", '#1, $'!K68/'#1, $'!$F68) ->  | N68: =IF('#1, $'!M67=0, "", '#1, $'!M68/'#1, $'!$C68) ->  | O68: =IF('#1, $'!M67=0, "", '#1, $'!N68/'#1, $'!$D68) ->  | P68: =IF('#1, $'!M67-'#1, $'!N68=0, "", '#1, $'!O68/('#1, $'!M67-'#1, $'!N68)) ->  | Q68: =IF('#1, $'!M67=0, "", '#1, $'!P68/'#1, $'!$F68) ->  | S68: =IF('#1, $'!R67=0, "", '#1, $'!R68/'#1, $'!$C68) -> 723.1369749 | T68: =IF('#1, $'!R67=0, "", '#1, $'!S68/'#1, $'!$D68) -> 343.8494939 | U68: =IF('#1, $'!R67-'#1, $'!S68=0, "", '#1, $'!T68/('#1, $'!R67-'#1, $'!S68)) -> 0.00041098352 | V68: =IF('#1, $'!R67=0, "", '#1, $'!U68/'#1, $'!$F68) -> -0.07142857143 | X68: =IF('#1, $'!W67=0, "", '#1, $'!W68/'#1, $'!$C68) ->  | Y68: =IF('#1, $'!W67=0, "", '#1, $'!X68/'#1, $'!$D68) ->  | Z68: =IF('#1, $'!W67-'#1, $'!X68=0, "", '#1, $'!Y68/('#1, $'!W67-'#1, $'!X68)) ->  | AA68: =IF('#1, $'!W67=0, "", '#1, $'!Z68/'#1, $'!$F68) -> 
B69: ='#1, $'!B69 -> 60 | C69: ='#1, $'!C69/'#1, $'!C$9 -> 0 | D69: ='#1, $'!D69/'#1, $'!C68 -> 0.01 | E69: ='#1, $'!E69/('#1, $'!C68-'#1, $'!D69) -> 0.2709306664 | F69: 1 | G69: ='#1, $'!F69/('#1, $'!C68-'#1, $'!D69) - F69 -> 12.87048348 | I69: =IF('#1, $'!H68=0, "", '#1, $'!H69/'#1, $'!$C69) ->  | J69: =IF('#1, $'!H68=0, "", '#1, $'!I69/'#1, $'!$D69) ->  | K69: =IF('#1, $'!H68-'#1, $'!I69=0, "", '#1, $'!J69/('#1, $'!H68-'#1, $'!I69)) ->  | L69: =IF('#1, $'!H68=0, "", '#1, $'!K69/'#1, $'!$F69) ->  | N69: =IF('#1, $'!M68=0, "", '#1, $'!M69/'#1, $'!$C69) ->  | O69: =IF('#1, $'!M68=0, "", '#1, $'!N69/'#1, $'!$D69) ->  | P69: =IF('#1, $'!M68-'#1, $'!N69=0, "", '#1, $'!O69/('#1, $'!M68-'#1, $'!N69)) ->  | Q69: =IF('#1, $'!M68=0, "", '#1, $'!P69/'#1, $'!$F69) ->  | S69: =IF('#1, $'!R68=0, "", '#1, $'!R69/'#1, $'!$C69) ->  | T69: =IF('#1, $'!R68=0, "", '#1, $'!S69/'#1, $'!$D69) -> 723.1369749 | U69: =IF('#1, $'!R68-'#1, $'!S69=0, "", '#1, $'!T69/('#1, $'!R68-'#1, $'!S69)) -> 0.000195445814 | V69: =IF('#1, $'!R68=0, "", '#1, $'!U69/'#1, $'!$F69) -> -0.2183911433 | X69: =IF('#1, $'!W68=0, "", '#1, $'!W69/'#1, $'!$C69) ->  | Y69: =IF('#1, $'!W68=0, "", '#1, $'!X69/'#1, $'!$D69) ->  | Z69: =IF('#1, $'!W68-'#1, $'!X69=0, "", '#1, $'!Y69/('#1, $'!W68-'#1, $'!X69)) ->  | AA69: =IF('#1, $'!W68=0, "", '#1, $'!Z69/'#1, $'!$F69) -> 

Sheet yields
B2: TAB: DISCOUNT FACTORS, FORWARD LIBOR RATES, AND FLOATING COUPON PAYMENTS
B4: Discount factors: | E4: =_xll.AC.data.list_x(OFFSET(I8, 0, 0, COUNT(I8:I300), 1), 1, 1) -> java.util.ArrayList@Sun, 24 Jun 2018 12:50:55:461..6427654618439067051
B5: Source: Bloomberg, | G5: Time period (in month) | I5: 3 | K5: Source: Bloomberg SWPM tool | O5: Coupon payments
B6: maturity | C6: treasury rate | E6: Month index | F6: Interpolated treasury rate | G6: Discount factor (Monthly) | H6: =E6 -> Month index | I6: Discount factor | K6: Month index | L6: Date | M6: Projected 1-month Libor | O6: =K6 -> Month index
B7: 0.25 | C7: 2 | E7: 0 | F7: =F10 - (F13-F10) -> 0.02 | G7: 1 | H7: 0 | I7: =OFFSET($G$7, I$5*H7, 0) -> 1 | K7: =E7 -> 0 | O7: =K7 -> 0
B8: 0.5 | C8: 2 | E8: =E7+1 -> 1 | F8: =F7*2/3+F10*1/3 -> 0.02 | G8: =G7*2/3+G10*1/3 -> 0.998349835 | H8: =H7+1 -> 1 | I8: =OFFSET($G$7, I$5*H8, 0) -> 0.995049505 | K8: =E8 -> 1 | O8: =K8 -> 1
B9: 1 | C9: 2 | E9: =E8+1 -> 2 | F9: =F7*1/3+F10*2/3 -> 0.02 | G9: =G7*1/3+G10*2/3 -> 0.99669967 | H9: =H8+1 -> 2 | I9: 0.9900990099 | K9: 2 | O9: 2
B10: 2 | C10: 2 | E10: 3 | F10: =C7/100 -> 0.02 | G10: =AVERAGE(G7, G13) -> 0.995049505 | H10: 3 | I10: 0.9851975297 | K10: 3 | O10: 3
B11: 3 | C11: 2 | E11: 4 | F11: =F10*2/3+F13*1/3 -> 0.02 | G11: =G10*2/3+G13*1/3 -> 0.9933993399 | H11: 4 | I11: 0.9802960494 | K11: 4 | O11: 4
B12: 4 | C12: 2 | E12: 5 | F12: =F10*1/3+F13*2/3 -> 0.02 | G12: =G10*1/3+G13*2/3 -> 0.9917491749 | H12: 5 | I12: 0.9754430987 | K12: 5 | O12: 5
B13: 5 | C13: 2 | E13: 6 | F13: =C8/100 -> 0.02 | G13: =1 / (1+F13/2) -> 0.9900990099 | H13: 6 | I13: 0.9705901479 | K13: 6 | O13: 6
B14: 7 | C14: 2 | E14: 7 | F14: =F13*2/3+F16*1/3 -> 0.02 | G14: =G13*2/3+G16*1/3 -> 0.9884651832 | H14: 7 | I14: 0.9657852462 | K14: 7 | O14: 7
B15: 8 | C15: 2 | E15: 8 | F15: =F13*1/3+F16*2/3 -> 0.02 | G15: =G13*1/3+G16*2/3 -> 0.9868313564 | H15: 8 | I15: 0.9609803445 | K15: 8 | O15: 8
B16: 9 | C16: 2 | E16: 9 | F16: =AVERAGE(F13, F19) -> 0.02 | G16: =AVERAGE(G13, G19) -> 0.9851975297 | H16: 9 | I16: 0.956223016 | K16: 9 | O16: 9
B17: 10 | C17: 2 | E17: 10 | F17: =F16*2/3+F19*1/3 -> 0.02 | G17: =G16*2/3+G19*1/3 -> 0.9835637029 | H17: 10 | I17: 0.9514656876 | K17: 10 | O17: 10
B18: 15 | C18: 2 | E18: 11 | F18: =F16*1/3+F19*2/3 -> 0.02 | G18: =G16*1/3+G19*2/3 -> 0.9819298762 | H18: 11 | I18: 0.9467554614 | K18: 11 | O18: 11
B19: 20 | C19: 2 | E19: 12 | F19: =C9/100 -> 0.02 | G19: =(1 - F19*SUM(G$13)/2) / (1+F19/2) -> 0.9802960494 | H19: 12 | I19: 0.9420452353 | K19: 12 | O19: 12
E20: 13 | F20: =F19*2/3+F22*1/3 -> 0.02 | G20: =G19*2/3+G22*1/3 -> 0.9786783992 | H20: 13 | I20: 0.937381645 | K20: 13 | O20: 13
E21: 14 | F21: =F19*1/3+F22*2/3 -> 0.02 | G21: =G19*1/3+G22*2/3 -> 0.9770607489 | H21: 14 | I21: 0.9327180547 | K21: 14 | O21: 14
E22: 15 | F22: =AVERAGE(F19, F25) -> 0.02 | G22: =AVERAGE(G19, G25) -> 0.9754430987 | H22: 15 | I22: 0.9281006386 | K22: 15 | O22: 15
E23: 16 | F23: =F22*2/3+F25*1/3 -> 0.02 | G23: =G22*2/3+G25*1/3 -> 0.9738254484 | H23: 16 | I23: 0.9234832225 | K23: 16 | O23: 16
E24: 17 | F24: =F22*1/3+F25*2/3 -> 0.02 | G24: =G22*1/3+G25*2/3 -> 0.9722077982 | H24: 17 | I24: 0.9189115234 | K24: 17 | O24: 17
E25: 18 | F25: =AVERAGE(F19, F31) -> 0.02 | G25: =(1 - F25*SUM(G$13, G$19)/2) / (1+F25/2) -> 0.9705901479 | H25: 18 | I25: 0.9143398242 | K25: 18 | O25: 18
E26: 19 | F26: =F25*2/3+F28*1/3 -> 0.02 | G26: =G25*2/3+G28*1/3 -> 0.968988514 | H26: 19 | I26: 0.9098133895 | K26: 19 | O26: 19
E27: 20 | F27: =F25*1/3+F28*2/3 -> 0.02 | G27: =G25*1/3+G28*2/3 -> 0.9673868801 | H27: 20 | I27: 0.9052869547 | K27: 20 | O27: 20
E28: 21 | F28: =AVERAGE(F25, F31) -> 0.02 | G28: =AVERAGE(G25, G31) -> 0.9657852462 | H28: 21 | I28: 0.9008053361 | K28: 21 | O28: 21
E29: 22 | F29: =F28*2/3+F31*1/3 -> 0.02 | G29: =G28*2/3+G31*1/3 -> 0.9641836123 | H29: 22 | I29: 0.8963237175 | K29: 22 | O29: 22
E30: 23 | F30: =F28*1/3+F31*2/3 -> 0.02 | G30: =G28*1/3+G31*2/3 -> 0.9625819784 | H30: 23 | I30: 0.8918864714 | K30: 23 | O30: 23
E31: 24 | F31: =C10/100 -> 0.02 | G31: =(1 - F31*SUM(G$13, G$19, G$25)/2) / (1+F31/2) -> 0.9609803445 | H31: 24 | I31: 0.8874492253 | K31: 24 | O31: 24
E32: 25 | F32: =F31*2/3+F34*1/3 -> 0.02 | G32: =G31*2/3+G34*1/3 -> 0.9593945683 | H32: 25 | I32: 0.8830559123 | K32: 25 | O32: 25
E33: 26 | F33: =F31*1/3+F34*2/3 -> 0.02 | G33: =G31*1/3+G34*2/3 -> 0.9578087922 | H33: 26 | I33: 0.8786625993 | K33: 26 | O33: 26
E34: 27 | F34: =AVERAGE(F31, F37) -> 0.02 | G34: =AVERAGE(G31, G37) -> 0.956223016 | H34: 27 | I34: 0.8743127844 | K34: 27 | O34: 27
E35: 28 | F35: =F34*2/3+F37*1/3 -> 0.02 | G35: =G34*2/3+G37*1/3 -> 0.9546372399 | H35: 28 | I35: 0.8699629696 | K35: 28 | O35: 28
E36: 29 | F36: =F34*1/3+F37*2/3 -> 0.02 | G36: =G34*1/3+G37*2/3 -> 0.9530514638 | H36: 29 | I36: 0.8656562222 | K36: 29 | O36: 29
E37: 30 | F37: =AVERAGE(F31, F43) -> 0.02 | G37: =(1 - F37*SUM(G$13, G$19, G$25, G$31)/2) / (1+F37/2) -> 0.9514656876 | H37: 30 | I37: 0.8613494748 | K37: 30 | O37: 30
E38: 31 | F38: =F37*2/3+F40*1/3 -> 0.02 | G38: =G37*2/3+G40*1/3 -> 0.9498956122 | H38: 31 | I38: 0.8570853685 | K38: 31 | O38: 31
E39: 32 | F39: =F37*1/3+F40*2/3 -> 0.02 | G39: =G37*1/3+G40*2/3 -> 0.9483255368 | H39: 32 | I39: 0.8528212622 | K39: 32 | O39: 32
E40: 33 | F40: =AVERAGE(F37, F43) -> 0.02 | G40: =AVERAGE(G37, G43) -> 0.9467554614 | H40: 33 | I40: 0.8485993748 | K40: 33 | O40: 33
E41: 34 | F41: =F40*2/3+F43*1/3 -> 0.02 | G41: =G40*2/3+G43*1/3 -> 0.945185386 | H41: 34 | I41: 0.8443774873 | K41: 34 | O41: 34
E42: 35 | F42: =F40*1/3+F43*2/3 -> 0.02 | G42: =G40*1/3+G43*2/3 -> 0.9436153106 | H42: 35 | I42: 0.8401974008 | K42: 35 | O42: 35
E43: 36 | F43: =C11/100 -> 0.02 | G43: =(1 - F43*SUM(G$13, G$19, G$25, G$31, G$37)/2) / (1+F43/2) -> 0.9420452353 | H43: 36 | I43: 0.8360173142 | K43: 36 | O43: 36
E44: 37 | F44: =F43*2/3+F46*1/3 -> 0.02 | G44: =G43*2/3+G46*1/3 -> 0.9404907052 | H44: 37 | I44: 0.8318786146 | K44: 37 | O44: 37
E45: 38 | F45: =F43*1/3+F46*2/3 -> 0.02 | G45: =G43*1/3+G46*2/3 -> 0.9389361751 | H45: 38 | I45: 0.827739915 | K45: 38 | O45: 38
E46: 39 | F46: =AVERAGE(F43, F49) -> 0.02 | G46: =AVERAGE(G43, G49) -> 0.937381645 | H46: 39 | I46: 0.8236421927 | K46: 39 | O46: 39
E47: 40 | F47: =F46*2/3+F49*1/3 -> 0.02 | G47: =G46*2/3+G49*1/3 -> 0.9358271149 | H47: 40 | I47: 0.8195444703 | K47: 40 | O47: 40
E48: 41 | F48: =F46*1/3+F49*2/3 -> 0.02 | G48: =G46*1/3+G49*2/3 -> 0.9342725848 | H48: 41 | I48: 0.8154873195 | K48: 41 | O48: 41
E49: 42 | F49: =AVERAGE(F43, F55) -> 0.02 | G49: =(1 - F49*SUM(G$13, G$19, G$25, G$31, G$37, G$43)/2) / (1+F49/2) -> 0.9327180547 | H49: 42 | I49: 0.8114301687 | K49: 42 | O49: 42
E50: 43 | F50: =F49*2/3+F52*1/3 -> 0.02 | G50: =G49*2/3+G52*1/3 -> 0.931178916 | H50: 43 | I50: 0.8074131876 | K50: 43 | O50: 43
E51: 44 | F51: =F49*1/3+F52*2/3 -> 0.02 | G51: =G49*1/3+G52*2/3 -> 0.9296397773 | H51: 44 | I51: 0.8033962066 | K51: 44 | O51: 44
E52: 45 | F52: =AVERAGE(F49, F55) -> 0.02 | G52: =AVERAGE(G49, G55) -> 0.9281006386 | H52: 45 | I52: 0.7994189976 | K52: 45 | O52: 45
E53: 46 | F53: =F52*2/3+F55*1/3 -> 0.02 | G53: =G52*2/3+G55*1/3 -> 0.9265614999 | H53: 46 | I53: 0.7954417887 | K53: 46 | O53: 46
E54: 47 | F54: =F52*1/3+F55*2/3 -> 0.02 | G54: =G52*1/3+G55*2/3 -> 0.9250223612 | H54: 47 | I54: 0.7915039581 | K54: 47 | O54: 47
E55: 48 | F55: =C12/100 -> 0.02 | G55: =(1 - F55*SUM(G$13, G$19, G$25, G$31, G$37, G$43, G$49)/2) / (1+F55/2) -> 0.9234832225 | H55: 48 | I55: 0.7875661274 | K55: 48 | O55: 48
E56: 49 | F56: =F55*2/3+F58*1/3 -> 0.02 | G56: =G55*2/3+G58*1/3 -> 0.9219593228 | H56: 49 | I56: 0.7836672852 | K56: 49 | O56: 49
E57: 50 | F57: =F55*1/3+F58*2/3 -> 0.02 | G57: =G55*1/3+G58*2/3 -> 0.9204354231 | H57: 50 | I57: 0.779768443 | K57: 50 | O57: 50
E58: 51 | F58: =AVERAGE(F55, F61) -> 0.02 | G58: =AVERAGE(G55, G61) -> 0.9189115234 | H58: 51 | I58: 0.7759082032 | K58: 51 | O58: 51
E59: 52 | F59: =F58*2/3+F61*1/3 -> 0.02 | G59: =G58*2/3+G61*1/3 -> 0.9173876237 | H59: 52 | I59: 0.7720479634 | K59: 52 | O59: 52
E60: 53 | F60: =F58*1/3+F61*2/3 -> 0.02 | G60: =G58*1/3+G61*2/3 -> 0.9158637239 | H60: 53 | I60: 0.7682259437 | K60: 53 | O60: 53
E61: 54 | F61: =AVERAGE(F55, F67) -> 0.02 | G61: =(1 - F61*SUM(G$13, G$19, G$25, G$31, G$37, G$43, G$49, G$55)/2) / (1+F61/2) -> 0.9143398242 | H61: 54 | I61: 0.7644039241 | K61: 54 | O61: 54
E62: 55 | F62: =F61*2/3+F64*1/3 -> 0.02 | G62: =G61*2/3+G64*1/3 -> 0.9128310126 | H62: 55 | I62: 0.7606197463 | K62: 55 | O62: 55
E63: 56 | F63: =F61*1/3+F64*2/3 -> 0.02 | G63: =G61*1/3+G64*2/3 -> 0.9113222011 | H63: 56 | I63: 0.7568355684 | K63: 56 | O63: 56
E64: 57 | F64: =AVERAGE(F61, F67) -> 0.02 | G64: =AVERAGE(G61, G67) -> 0.9098133895 | H64: 57 | I64: 0.7530888577 | K64: 57 | O64: 57
E65: 58 | F65: =F64*2/3+F67*1/3 -> 0.02 | G65: =G64*2/3+G67*1/3 -> 0.9083045779 | H65: 58 | I65: 0.749342147 | K65: 58 | O65: 58
E66: 59 | F66: =F64*1/3+F67*2/3 -> 0.02 | G66: =G64*1/3+G67*2/3 -> 0.9067957663 | H66: 59 | I66: 0.7456325324 | K66: 59 | O66: 59
E67: 60 | F67: =C13/100 -> 0.02 | G67: =(1 - F67*SUM(G$13, G$19, G$25, G$31, G$37, G$43, G$49, G$55, G$61)/2) / (1+F67/2) -> 0.9052869547 | H67: 60 | I67: 0.7419229178 | K67: 60 | O67: 60
E68: 61 | F68: =F67*2/3+F70*1/3 -> 0.02 | G68: =G67*2/3+G70*1/3 -> 0.9037930818 | H68: 61 | I68: 0.7382500321 | K68: 61 | O68: 61
E69: 62 | F69: =F67*1/3+F70*2/3 -> 0.02 | G69: =G67*1/3+G70*2/3 -> 0.902299209 | H69: 62 | I69: 0.7345771463 | K69: 62 | O69: 62
E70: 63 | F70: =AVERAGE(F67, F73) -> 0.02 | G70: =AVERAGE(G67, G73) -> 0.9008053361 | H70: 63 | I70: 0.7309406258 | K70: 63 | O70: 63
E71: 64 | F71: =F70*2/3+F73*1/3 -> 0.02 | G71: =G70*2/3+G73*1/3 -> 0.8993114632 | H71: 64 | I71: 0.7273041053 | K71: 64 | O71: 64
E72: 65 | F72: =F70*1/3+F73*2/3 -> 0.02 | G72: =G70*1/3+G73*2/3 -> 0.8978175904 | H72: 65 | I72: =OFFSET($G$7, I$5*H72, 0) -> 0.7237035899 | K72: =E72 -> 65 | O72: =K72 -> 65
E73: =E72+1 -> 66 | F73: =AVERAGE(F67, F79) -> 0.02 | G73: =(1 - F73*SUM(G$13, G$19, G$25, G$31, G$37, G$43, G$49, G$55, G$61, G$67)/2) / (1+F73/2) -> 0.8963237175 | H73: =H72+1 -> 66 | I73: 0.7201030745 | K73: 66 | O73: 66
E74: 67 | F74: =F73*2/3+F76*1/3 -> 0.02 | G74: =G73*2/3+G76*1/3 -> 0.8948446355 | H74: 67 | I74: 0.7165382078 | K74: 67 | O74: 67
E75: 68 | F75: =F73*1/3+F76*2/3 -> 0.02 | G75: =G73*1/3+G76*2/3 -> 0.8933655534 | H75: 68 | I75: 0.7129733411 | K75: 68 | O75: 68
E76: 69 | F76: =AVERAGE(F73, F79) -> 0.02 | G76: =AVERAGE(G73, G79) -> 0.8918864714 | H76: 69 | I76: 0.7094437701 | K76: 69 | O76: 69
E77: 70 | F77: =F76*2/3+F79*1/3 -> 0.02 | G77: =G76*2/3+G79*1/3 -> 0.8904073893 | H77: 70 | I77: 0.7059141991 | K77: 70 | O77: 70
E78: 71 | F78: =F76*1/3+F79*2/3 -> 0.02 | G78: =G76*1/3+G79*2/3 -> 0.8889283073 | H78: 71 | I78: 0.7024195744 | K78: 71 | O78: 71
E79: 72 | F79: =AVERAGE(F67, F91) -> 0.02 | G79: =(1 - F79*SUM(G$13, G$19, G$25, G$31, G$37, G$43, G$49, G$55, G$61, G$67, G$73)/2) / (1+F79/2) -> 0.8874492253 | H79: 72 | I79: 0.6989249496 | K79: 72 | O79: 72
E80: 73 | F80: =F79*2/3+F82*1/3 -> 0.02 | G80: =G79*2/3+G82*1/3 -> 0.8859847876 | H80: 73 | I80: 0.6954649251 | K80: 73 | O80: 73
E81: 74 | F81: =F79*1/3+F82*2/3 -> 0.02 | G81: =G79*1/3+G82*2/3 -> 0.8845203499 | H81: 74 | I81: 0.6920049006 | K81: 74 | O81: 74
E82: 75 | F82: =AVERAGE(F79, F85) -> 0.02 | G82: =AVERAGE(G79, G85) -> 0.8830559123 | H82: 75 | I82: 0.6885791338 | K82: 75 | O82: 75
E83: 76 | F83: =F82*2/3+F85*1/3 -> 0.02 | G83: =G82*2/3+G85*1/3 -> 0.8815914746 | H83: 76 | I83: 0.685153367 | K83: 76 | O83: 76
E84: 77 | F84: =F82*1/3+F85*2/3 -> 0.02 | G84: =G82*1/3+G85*2/3 -> 0.8801270369 | H84: 77 | I84: 0.6817615186 | K84: 77 | O84: 77
E85: 78 | F85: =AVERAGE(F79, F91) -> 0.02 | G85: =(1 - F85*SUM(G$13, G$19, G$25, G$31, G$37, G$43, G$49, G$55, G$61, G$67, G$73, G$79)/2) / (1+F85/2) -> 0.8786625993 | H85: 78 | I85: 0.6783696702 | K85: 78 | O85: 78
E86: 79 | F86: =F85*2/3+F88*1/3 -> 0.02 | G86: =G85*2/3+G88*1/3 -> 0.877212661 | H86: 79 | I86: 0.6750114046 | K86: 79 | O86: 79
E87: 80 | F87: =F85*1/3+F88*2/3 -> 0.02 | G87: =G85*1/3+G88*2/3 -> 0.8757627227 | H87: 80 | I87: 0.6716531389 | K87: 80 | O87: 80
E88: 81 | F88: =AVERAGE(F85, F91) -> 0.02 | G88: =AVERAGE(G85, G91) -> 0.8743127844 | H88: 81 | I88: 0 | K88: 81 | O88: 81
E89: 82 | F89: =F88*2/3+F91*1/3 -> 0.02 | G89: =G88*2/3+G91*1/3 -> 0.8728628461 | H89: 82 | I89: 0 | K89: 82 | O89: 82
E90: 83 | F90: =F88*1/3+F91*2/3 -> 0.02 | G90: =G88*1/3+G91*2/3 -> 0.8714129079 | H90: 83 | I90: 0 | K90: 83 | O90: 83
E91: 84 | F91: =C14/100 -> 0.02 | G91: =(1 - F91*SUM(G$13, G$19, G$25, G$31, G$37, G$43, G$49, G$55, G$61, G$67, G$73, G$79, G$85)/2) / (1+F91/2) -> 0.8699629696 | H91: 84 | I91: 0 | K91: 84 | O91: 84
E92: 85 | F92: =F91*2/3+F94*1/3 -> 0.02 | G92: =G91*2/3+G94*1/3 -> 0.8685273871 | H92: 85 | I92: 0 | K92: 85 | O92: 85
E93: 86 | F93: =F91*1/3+F94*2/3 -> 0.02 | G93: =G91*1/3+G94*2/3 -> 0.8670918047 | H93: 86 | I93: 0 | K93: 86 | O93: 86
E94: 87 | F94: =AVERAGE(F91, F97) -> 0.02 | G94: =AVERAGE(G91, G97) -> 0.8656562222 | H94: 87 | I94: 0 | K94: 87 | O94: 87
E95: 88 | F95: =F94*2/3+F97*1/3 -> 0.02 | G95: =G94*2/3+G97*1/3 -> 0.8642206397 | H95: 88 | I95: 0 | K95: 88 | O95: 88
E96: 89 | F96: =F94*1/3+F97*2/3 -> 0.02 | G96: =G94*1/3+G97*2/3 -> 0.8627850573 | H96: 89 | I96: 0 | K96: 89 | O96: 89
E97: 90 | F97: =AVERAGE(F91, F103) -> 0.02 | G97: =(1 - F97*SUM(G$13, G$19, G$25, G$31, G$37, G$43, G$49, G$55, G$61, G$67, G$73, G$79, G$85, G$91)/2) / (1+F97/2) -> 0.8613494748 | H97: 90 | I97: 0 | K97: 90 | O97: 90
E98: 91 | F98: =F97*2/3+F100*1/3 -> 0.02 | G98: =G97*2/3+G100*1/3 -> 0.8599281061 | H98: 91 | I98: 0 | K98: 91 | O98: 91
E99: 92 | F99: =F97*1/3+F100*2/3 -> 0.02 | G99: =G97*1/3+G100*2/3 -> 0.8585067373 | H99: 92 | I99: 0 | K99: 92 | O99: 92
E100: 93 | F100: =AVERAGE(F97, F103) -> 0.02 | G100: =AVERAGE(G97, G103) -> 0.8570853685 | H100: 93 | I100: 0 | K100: 93 | O100: 93
E101: 94 | F101: =F100*2/3+F103*1/3 -> 0.02 | G101: =G100*2/3+G103*1/3 -> 0.8556639997 | H101: 94 | I101: 0 | K101: 94 | O101: 94
E102: 95 | F102: =F100*1/3+F103*2/3 -> 0.02 | G102: =G100*1/3+G103*2/3 -> 0.854242631 | H102: 95 | I102: 0 | K102: 95 | O102: 95
E103: 96 | F103: =C15/100 -> 0.02 | G103: =(1 - F103*SUM(G$13, G$19, G$25, G$31, G$37, G$43, G$49, G$55, G$61, G$67, G$73, G$79, G$85, G$91, G$97)/2) / (1+F103/2) -> 0.8528212622 | H103: 96 | I103: 0 | K103: 96 | O103: 96
E104: 97 | F104: =F103*2/3+F106*1/3 -> 0.02 | G104: =G103*2/3+G106*1/3 -> 0.8514139664 | K104: 97 | O104: 97
E105: 98 | F105: =F103*1/3+F106*2/3 -> 0.02 | G105: =G103*1/3+G106*2/3 -> 0.8500066706 | K105: 98 | O105: 98
E106: 99 | F106: =AVERAGE(F103, F109) -> 0.02 | G106: =AVERAGE(G103, G109) -> 0.8485993748 | K106: 99 | O106: 99
E107: 100 | F107: =F106*2/3+F109*1/3 -> 0.02 | G107: =G106*2/3+G109*1/3 -> 0.847192079 | K107: 100 | O107: 100
E108: 101 | F108: =F106*1/3+F109*2/3 -> 0.02 | G108: =G106*1/3+G109*2/3 -> 0.8457847831 | K108: 101 | O108: 101
E109: 102 | F109: =AVERAGE(F103, F115) -> 0.02 | G109: =(1 - F109*SUM(G$13, G$19, G$25, G$31, G$37, G$43, G$49, G$55, G$61, G$67, G$73, G$79, G$85, G$91, G$97, G$103)/2) / (1+F109/2) -> 0.8443774873 | K109: 102 | O109: 102
E110: 103 | F110: =F109*2/3+F112*1/3 -> 0.02 | G110: =G109*2/3+G112*1/3 -> 0.8429841251 | K110: 103 | O110: 103
E111: 104 | F111: =F109*1/3+F112*2/3 -> 0.02 | G111: =G109*1/3+G112*2/3 -> 0.841590763 | K111: 104 | O111: 104
E112: 105 | F112: =AVERAGE(F109, F115) -> 0.02 | G112: =AVERAGE(G109, G115) -> 0.8401974008 | K112: 105 | O112: 105
E113: 106 | F113: =F112*2/3+F115*1/3 -> 0.02 | G113: =G112*2/3+G115*1/3 -> 0.8388040386 | K113: 106 | O113: 106
E114: 107 | F114: =F112*1/3+F115*2/3 -> 0.02 | G114: =G112*1/3+G115*2/3 -> 0.8374106764 | K114: 107 | O114: 107
E115: 108 | F115: =C16/100 -> 0.02 | G115: =(1 - F115*SUM(G$13, G$19, G$25, G$31, G$37, G$43, G$49, G$55, G$61, G$67, G$73, G$79, G$85, G$91, G$97, G$103, G$109)/2) / (1+F115/2) -> 0.8360173142 | K115: 108 | O115: 108
E116: 109 | F116: =F115*2/3+F118*1/3 -> 0.02 | G116: =G115*2/3+G118*1/3 -> 0.8346377477 | K116: 109 | O116: 109
E117: 110 | F117: =F115*1/3+F118*2/3 -> 0.02 | G117: =G115*1/3+G118*2/3 -> 0.8332581811 | K117: 110 | O117: 110
E118: 111 | F118: =AVERAGE(F115, F121) -> 0.02 | G118: =AVERAGE(G115, G121) -> 0.8318786146 | K118: 111 | O118: 111
E119: 112 | F119: =F118*2/3+F121*1/3 -> 0.02 | G119: =G118*2/3+G121*1/3 -> 0.8304990481 | K119: 112 | O119: 112
E120: 113 | F120: =F118*1/3+F121*2/3 -> 0.02 | G120: =G118*1/3+G121*2/3 -> 0.8291194816 | K120: 113 | O120: 113
E121: 114 | F121: =AVERAGE(F115, F127) -> 0.02 | G121: =(1 - F121*SUM(G$13, G$19, G$25, G$31, G$37, G$43, G$49, G$55, G$61, G$67, G$73, G$79, G$85, G$91, G$97, G$103, G$109, G$115)/2) / (1+F121/2) -> 0.827739915 | K121: 114 | O121: 114
E122: 115 | F122: =F121*2/3+F124*1/3 -> 0.02 | G122: =G121*2/3+G124*1/3 -> 0.8263740076 | K122: 115 | O122: 115
E123: 116 | F123: =F121*1/3+F124*2/3 -> 0.02 | G123: =G121*1/3+G124*2/3 -> 0.8250081001 | K123: 116 | O123: 116
E124: 117 | F124: =AVERAGE(F121, F127) -> 0.02 | G124: =AVERAGE(G121, G127) -> 0.8236421927 | K124: 117 | O124: 117
E125: 118 | F125: =F124*2/3+F127*1/3 -> 0.02 | G125: =G124*2/3+G127*1/3 -> 0.8222762852 | K125: 118 | O125: 118
E126: 119 | F126: =F124*1/3+F127*2/3 -> 0.02 | G126: =G124*1/3+G127*2/3 -> 0.8209103778 | K126: 119 | O126: 119
E127: 120 | F127: =C17/100 -> 0.02 | G127: =(1 - F127*SUM(G$13, G$19, G$25, G$31, G$37, G$43, G$49, G$55, G$61, G$67, G$73, G$79, G$85, G$91, G$97, G$103, G$109, G$115, G$121)/2) / (1+F127/2) -> 0.8195444703 | K127: 120 | O127: 120
E128: 121 | F128: =F127*2/3+F130*1/3 -> 0.02 | G128: =G127*2/3+G130*1/3 -> 0.8181920867 | K128: 121 | O128: 121
E129: 122 | F129: =F127*1/3+F130*2/3 -> 0.02 | G129: =G127*1/3+G130*2/3 -> 0.8168397031 | K129: 122 | O129: 122
E130: 123 | F130: =AVERAGE(F127, F133) -> 0.02 | G130: =AVERAGE(G127, G133) -> 0.8154873195 | K130: 123 | O130: 123
E131: 124 | F131: =F130*2/3+F133*1/3 -> 0.02 | G131: =G130*2/3+G133*1/3 -> 0.8141349359 | K131: 124 | O131: 124
E132: 125 | F132: =F130*1/3+F133*2/3 -> 0.02 | G132: =G130*1/3+G133*2/3 -> 0.8127825523 | K132: 125 | O132: 125
E133: 126 | F133: =AVERAGE(F127, F139) -> 0.02 | G133: =(1 - F133*SUM(G$13, G$19, G$25, G$31, G$37, G$43, G$49, G$55, G$61, G$67, G$73, G$79, G$85, G$91, G$97, G$103, G$109, G$115, G$121, G$127)/2) / (1+F133/2) -> 0.8114301687 | K133: 126 | O133: 126
E134: 127 | F134: =F133*2/3+F136*1/3 -> 0.02 | G134: =G133*2/3+G136*1/3 -> 0.810091175 | K134: 127 | O134: 127
E135: 128 | F135: =F133*1/3+F136*2/3 -> 0.02 | G135: =G133*1/3+G136*2/3 -> 0.8087521813 | K135: 128 | O135: 128
E136: 129 | F136: =AVERAGE(F133, F139) -> 0.02 | G136: =AVERAGE(G133, G139) -> 0.8074131876 | K136: =E136 -> 129 | O136: =K136 -> 129
E137: =E136+1 -> 130 | F137: =F136*2/3+F139*1/3 -> 0.02 | G137: =G136*2/3+G139*1/3 -> 0.8060741939 | K137: 130 | O137: 130
E138: 131 | F138: =F136*1/3+F139*2/3 -> 0.02 | G138: =G136*1/3+G139*2/3 -> 0.8047352003 | K138: 131 | O138: 131
E139: 132 | F139: =F127*4/5 + F187*1/5 -> 0.02 | G139: =(1 - F139*SUM(G$13, G$19, G$25, G$31, G$37, G$43, G$49, G$55, G$61, G$67, G$73, G$79, G$85, G$91, G$97, G$103, G$109, G$115, G$121, G$127, G$133)/2) / (1+F139/2) -> 0.8033962066 | K139: 132 | O139: 132
E140: 133 | F140: =F139*2/3+F142*1/3 -> 0.02 | G140: =G139*2/3+G142*1/3 -> 0.8020704703 | K140: 133 | O140: 133
E141: 134 | F141: =F139*1/3+F142*2/3 -> 0.02 | G141: =G139*1/3+G142*2/3 -> 0.800744734 | K141: 134 | O141: 134
E142: 135 | F142: =AVERAGE(F139, F145) -> 0.02 | G142: =AVERAGE(G139, G145) -> 0.7994189976 | K142: 135 | O142: 135
E143: 136 | F143: =F142*2/3+F145*1/3 -> 0.02 | G143: =G142*2/3+G145*1/3 -> 0.7980932613 | K143: 136 | O143: 136
E144: 137 | F144: =F142*1/3+F145*2/3 -> 0.02 | G144: =G142*1/3+G145*2/3 -> 0.796767525 | K144: 137 | O144: 137
E145: 138 | F145: =AVERAGE(F139, F151) -> 0.02 | G145: =(1 - F145*SUM(G$13, G$19, G$25, G$31, G$37, G$43, G$49, G$55, G$61, G$67, G$73, G$79, G$85, G$91, G$97, G$103, G$109, G$115, G$121, G$127, G$133, G$139)/2) / (1+F145/2) -> 0.7954417887 | K145: 138 | O145: 138
E146: 139 | F146: =F145*2/3+F148*1/3 -> 0.02 | G146: =G145*2/3+G148*1/3 -> 0.7941291785 | K146: 139 | O146: 139
E147: 140 | F147: =F145*1/3+F148*2/3 -> 0.02 | G147: =G145*1/3+G148*2/3 -> 0.7928165683 | K147: 140 | O147: 140
E148: 141 | F148: =AVERAGE(F145, F151) -> 0.02 | G148: =AVERAGE(G145, G151) -> 0.7915039581 | K148: 141 | O148: 141
E149: 142 | F149: =F148*2/3+F151*1/3 -> 0.02 | G149: =G148*2/3+G151*1/3 -> 0.7901913478 | K149: 142 | O149: 142
E150: 143 | F150: =F148*1/3+F151*2/3 -> 0.02 | G150: =G148*1/3+G151*2/3 -> 0.7888787376 | K150: 143 | O150: 143
E151: 144 | F151: =F127*3/5 + F187*2/5 -> 0.02 | G151: =(1 - F151*SUM(G$13, G$19, G$25, G$31, G$37, G$43, G$49, G$55, G$61, G$67, G$73, G$79, G$85, G$91, G$97, G$103, G$109, G$115, G$121, G$127, G$133, G$139, G$145)/2) / (1+F$151/2) -> 0.7875661274 | K151: 144 | O151: 144
E152: 145 | F152: =F151*2/3+F154*1/3 -> 0.02 | G152: =G151*2/3+G154*1/3 -> 0.7862665134 | K152: 145 | O152: 145
E153: 146 | F153: =F151*1/3+F154*2/3 -> 0.02 | G153: =G151*1/3+G154*2/3 -> 0.7849668993 | K153: 146 | O153: 146
E154: 147 | F154: =AVERAGE(F151, F157) -> 0.02 | G154: =AVERAGE(G151, G157) -> 0.7836672852 | K154: 147 | O154: 147
E155: 148 | F155: =F154*2/3+F157*1/3 -> 0.02 | G155: =G154*2/3+G157*1/3 -> 0.7823676711 | K155: 148 | O155: 148
E156: 149 | F156: =F154*1/3+F157*2/3 -> 0.02 | G156: =G154*1/3+G157*2/3 -> 0.7810680571 | K156: 149 | O156: 149
E157: 150 | F157: =AVERAGE(F151, F163) -> 0.02 | G157: =(1 - F157*SUM(G$13, G$19, G$25, G$31, G$37, G$43, G$49, G$55, G$61, G$67, G$73, G$79, G$85, G$91, G$97, G$103, G$109, G$115, G$121, G$127, G$133, G$139, G$145, G$151)/2) / (1+F$151/2) -> 0.779768443 | K157: 150 | O157: 150
E158: 151 | F158: =F157*2/3+F160*1/3 -> 0.02 | G158: =G157*2/3+G160*1/3 -> 0.7784816964 | K158: 151 | O158: 151
E159: 152 | F159: =F157*1/3+F160*2/3 -> 0.02 | G159: =G157*1/3+G160*2/3 -> 0.7771949498 | K159: 152 | O159: 152
E160: 153 | F160: =AVERAGE(F157, F163) -> 0.02 | G160: =AVERAGE(G157, G163) -> 0.7759082032 | K160: 153 | O160: 153
E161: 154 | F161: =F160*2/3+F163*1/3 -> 0.02 | G161: =G160*2/3+G163*1/3 -> 0.7746214566 | K161: 154 | O161: 154
E162: 155 | F162: =F160*1/3+F163*2/3 -> 0.02 | G162: =G160*1/3+G163*2/3 -> 0.77333471 | K162: 155 | O162: 155
E163: 156 | F163: =F127*2/5 + F187*3/5 -> 0.02 | G163: =(1 - F163*SUM(G$13, G$19, G$25, G$31, G$37, G$43, G$49, G$55, G$61, G$67, G$73, G$79, G$85, G$91, G$97, G$103, G$109, G$115, G$121, G$127, G$133, G$139, G$145, G$151, G$157)/2) / (1+F$151/2) -> 0.7720479634 | K163: 156 | O163: 156
E164: 157 | F164: =F163*2/3+F166*1/3 -> 0.02 | G164: =G163*2/3+G166*1/3 -> 0.7707739568 | K164: 157 | O164: 157
E165: 158 | F165: =F163*1/3+F166*2/3 -> 0.02 | G165: =G163*1/3+G166*2/3 -> 0.7694999503 | K165: 158 | O165: 158
E166: 159 | F166: =AVERAGE(F163, F169) -> 0.02 | G166: =AVERAGE(G163, G169) -> 0.7682259437 | K166: 159 | O166: 159
E167: 160 | F167: =F166*2/3+F169*1/3 -> 0.02 | G167: =G166*2/3+G169*1/3 -> 0.7669519372 | K167: 160 | O167: 160
E168: 161 | F168: =F166*1/3+F169*2/3 -> 0.02 | G168: =G166*1/3+G169*2/3 -> 0.7656779307 | K168: 161 | O168: 161
E169: 162 | F169: =AVERAGE(F163, F175) -> 0.02 | G169: =(1 - F169*SUM(G$13, G$19, G$25, G$31, G$37, G$43, G$49, G$55, G$61, G$67, G$73, G$79, G$85, G$91, G$97, G$103, G$109, G$115, G$121, G$127, G$133, G$139, G$145, G$151, G$157, G$163)/2) / (1+F$151/2) -> 0.7644039241 | K169: 162 | O169: 162
E170: 163 | F170: =F169*2/3+F172*1/3 -> 0.02 | G170: =G169*2/3+G172*1/3 -> 0.7631425315 | K170: 163 | O170: 163
E171: 164 | F171: =F169*1/3+F172*2/3 -> 0.02 | G171: =G169*1/3+G172*2/3 -> 0.7618811389 | K171: 164 | O171: 164
E172: 165 | F172: =AVERAGE(F169, F175) -> 0.02 | G172: =AVERAGE(G169, G175) -> 0.7606197463 | K172: 165 | O172: 165
E173: 166 | F173: =F172*2/3+F175*1/3 -> 0.02 | G173: =G172*2/3+G175*1/3 -> 0.7593583537 | K173: 166 | O173: 166
E174: 167 | F174: =F172*1/3+F175*2/3 -> 0.02 | G174: =G172*1/3+G175*2/3 -> 0.758096961 | K174: 167 | O174: 167
E175: 168 | F175: =F127*1/5 + F187*4/5 -> 0.02 | G175: =(1 - F175*SUM(G$13, G$19, G$25, G$31, G$37, G$43, G$49, G$55, G$61, G$67, G$73, G$79, G$85, G$91, G$97, G$103, G$109, G$115, G$121, G$127, G$133, G$139, G$145, G$151, G$157, G$163, G$169)/2) / (1+F$151/2) -> 0.7568355684 | K175: 168 | O175: 168
E176: 169 | F176: =F175*2/3+F178*1/3 -> 0.02 | G176: =G175*2/3+G178*1/3 -> 0.7555866649 | K176: 169 | O176: 169
E177: 170 | F177: =F175*1/3+F178*2/3 -> 0.02 | G177: =G175*1/3+G178*2/3 -> 0.7543377613 | K177: 170 | O177: 170
E178: 171 | F178: =AVERAGE(F175, F181) -> 0.02 | G178: =AVERAGE(G175, G181) -> 0.7530888577 | K178: 171 | O178: 171
E179: 172 | F179: =F178*2/3+F181*1/3 -> 0.02 | G179: =G178*2/3+G181*1/3 -> 0.7518399541 | K179: 172 | O179: 172
E180: 173 | F180: =F178*1/3+F181*2/3 -> 0.02 | G180: =G178*1/3+G181*2/3 -> 0.7505910505 | K180: 173 | O180: 173
E181: 174 | F181: =AVERAGE(F175, F187) -> 0.02 | G181: =(1 - F181*SUM(G$13, G$19, G$25, G$31, G$37, G$43, G$49, G$55, G$61, G$67, G$73, G$79, G$85, G$91, G$97, G$103, G$109, G$115, G$121, G$127, G$133, G$139, G$145, G$151, G$157, G$163, G$169, G$175)/2) / (1+F$151/2) -> 0.749342147 | K181: 174 | O181: 174
E182: 175 | F182: =F181*2/3+F184*1/3 -> 0.02 | G182: =G181*2/3+G184*1/3 -> 0.7481056088 | K182: 175 | O182: 175
E183: 176 | F183: =F181*1/3+F184*2/3 -> 0.02 | G183: =G181*1/3+G184*2/3 -> 0.7468690706 | K183: 176 | O183: 176
E184: 177 | F184: =AVERAGE(F181, F187) -> 0.02 | G184: =AVERAGE(G181, G187) -> 0.7456325324 | K184: 177 | O184: 177
E185: 178 | F185: =F184*2/3+F187*1/3 -> 0.02 | G185: =G184*2/3+G187*1/3 -> 0.7443959942 | K185: 178 | O185: 178
E186: 179 | F186: =F184*1/3+F187*2/3 -> 0.02 | G186: =G184*1/3+G187*2/3 -> 0.743159456 | K186: 179 | O186: 179
E187: 180 | F187: =C18/100 -> 0.02 | G187: =(1 - F187*SUM(G$13, G$19, G$25, G$31, G$37, G$43, G$49, G$55, G$61, G$67, G$73, G$79, G$85, G$91, G$97, G$103, G$109, G$115, G$121, G$127, G$133, G$139, G$145, G$151, G$157, G$163, G$169, G$175, G$181)/2) / (1+F$151/2) -> 0.7419229178 | K187: 180 | O187: 180
E188: 181 | F188: =F187*2/3+F190*1/3 -> 0.02 | G188: =G187*2/3+G190*1/3 -> 0.7406986225 | K188: 181 | O188: 181
E189: 182 | F189: =F187*1/3+F190*2/3 -> 0.02 | G189: =G187*1/3+G190*2/3 -> 0.7394743273 | K189: 182 | O189: 182
E190: 183 | F190: =AVERAGE(F187, F193) -> 0.02 | G190: =AVERAGE(G187, G193) -> 0.7382500321 | K190: 183 | O190: 183
E191: 184 | F191: =F190*2/3+F193*1/3 -> 0.02 | G191: =G190*2/3+G193*1/3 -> 0.7370257368 | K191: 184 | O191: 184
E192: 185 | F192: =F190*1/3+F193*2/3 -> 0.02 | G192: =G190*1/3+G193*2/3 -> 0.7358014416 | K192: 185 | O192: 185
E193: 186 | F193: =AVERAGE(F187, F199) -> 0.02 | G193: =(1 - F193*SUM(G$13, G$19, G$25, G$31, G$37, G$43, G$49, G$55, G$61, G$67, G$73, G$79, G$85, G$91, G$97, G$103, G$109, G$115, G$121, G$127, G$133, G$139, G$145, G$151, G$157, G$163, G$169, G$175, G$181, G$187)/2) / (1+F$151/2) -> 0.7345771463 | K193: 186 | O193: 186
E194: 187 | F194: =F193*2/3+F196*1/3 -> 0.02 | G194: =G193*2/3+G196*1/3 -> 0.7333649728 | K194: 187 | O194: 187
E195: 188 | F195: =F193*1/3+F196*2/3 -> 0.02 | G195: =G193*1/3+G196*2/3 -> 0.7321527993 | K195: 188 | O195: 188
E196: 189 | F196: =AVERAGE(F193, F199) -> 0.02 | G196: =AVERAGE(G193, G199) -> 0.7309406258 | K196: 189 | O196: 189
E197: 190 | F197: =F196*2/3+F199*1/3 -> 0.02 | G197: =G196*2/3+G199*1/3 -> 0.7297284523 | K197: 190 | O197: 190
E198: 191 | F198: =F196*1/3+F199*2/3 -> 0.02 | G198: =G196*1/3+G199*2/3 -> 0.7285162788 | K198: 191 | O198: 191
E199: 192 | F199: =F187*4/5 + F247*1/5 -> 0.02 | G199: =(1 - F199*SUM(G$13, G$19, G$25, G$31, G$37, G$43, G$49, G$55, G$61, G$67, G$73, G$79, G$85, G$91, G$97, G$103, G$109, G$115, G$121, G$127, G$133, G$139, G$145, G$151, G$157, G$163, G$169, G$175, G$181, G$187, G$193)/2) / (1+F$151/2) -> 0.7273041053 | K199: 192 | O199: 192
E200: 193 | F200: =F199*2/3+F202*1/3 -> 0.02 | G200: =G199*2/3+G202*1/3 -> 0.7261039335 | K200: =E200 -> 193 | O200: =K200 -> 193
E201: =E200+1 -> 194 | F201: =F199*1/3+F202*2/3 -> 0.02 | G201: =G199*1/3+G202*2/3 -> 0.7249037617 | K201: 194 | O201: 194
E202: 195 | F202: =AVERAGE(F199, F205) -> 0.02 | G202: =AVERAGE(G199, G205) -> 0.7237035899 | K202: 195 | O202: 195
... 45 more rows

Sheet calc
B2: TAB: CMO CALCULATOR
B4: CMO Calculator objects | E4: CMO Functions
B6: Sample size | C6: 0 | E6: Function parameters
E7: arg-x | F7: loss-rate
E8: arg-y | F8: tranche-price
B9: Name | C9: =cmo!D4 -> PHHMC 2007-5 | E9: name-tranche | F9: =cmo!B16 -> A5.1
B10: CMO Object | C10: =_xll.AC.finance.cmo.model(cmo!D4, cmo!D6, cmo!D8, cmo!B11:I20) -> jeconkr.finance.FSTP.lib.model.cmo.CMO@Sun, 24 Jun 2018 12:50:59:765..6560790286919917282 | E10: =_xll.AC.data.map(E7:E9, F7:F9) -> java.util.LinkedHashMap@Sun, 24 Jun 2018 12:50:59:682..4133231790662887917
B11: Calculator | C11: =_xll.AC.finance.cmo.calc(calc!C10, yields!E4, cmo!H5, cmo!I5, cmo!H6, cmo!I6, C6) -> jeconkr.finance.FSTP.lib.model.cmo.calculator.CalculatorCMO@Sun, 24 Jun 2018 12:54:18:052..1666347281276317072
E12: Function object
E13: =_xll.AC.finance.cmo.F($C$11, E10) -> jeconkr.finance.FSTP.lib.model.cmo.factory.FactoryCMO$FunctionCMO@Sun, 24 Jun 2018 12:54:18:053..2071019729525657325
B14: =B9 -> Name
B15: =B10 -> CMO Object | E15: Function arguments
B16: Calculator | E16: =_xll.AC.data.list_lin_x(0.5%, 3%, 10) -> java.util.ArrayList@Sun, 24 Jun 2018 12:50:59:681..8095167022489556612
E18: Function values
B19: =B14 -> Name | E19: =_xll.AC.math.F.eval1(E13, E16, cmo!H5) -> 
B20: =B15 -> CMO Object
B21: Calculator | E21: Solution: | F21: =_xll.FS("F.solve", E13, 1, 0%, 4%, 0.1%, 10) -> #Unknown function: F.solve
E23: loss-rate | F23: =F9 & " price" -> A5.1 price
B24: =B19 -> Name | E24: =_xll.AC.data._get(E16, "", 0) -> 0.005 | F24: =_xll.AC.data._get(E19, "", 0) -> 0
B25: =B20 -> CMO Object | E25: 0.007777777778 | F25: 0
B26: Calculator | E26: 0.01055555556 | F26: 0
E27: 0.01333333333 | F27: 0
E28: 0.01611111111 | F28: 0
B29: =B24 -> Name | E29: 0.01888888889 | F29: 0
B30: =B25 -> CMO Object | E30: 0.02166666667 | F30: 0
B31: Calculator | E31: 0.02444444444 | F31: 0
E32: 0.02722222222 | F32: 0
E33: 0.03 | F33: 0

Sheet out
B2: TAB: CMO TRANCHE STRUCTURE OUTPUT | F2: =config!B10 -> ranking | G2: =config!B14 -> ranking-loss | J2: =F2 -> ranking | K2: =config!B15 -> ranking-amortization
F3: =config!B11 -> field | G3: =config!B16 -> cmo-structure | J3: =F3 -> field | K3: =G3 -> cmo-structure
F4: =config!B12 -> period | G4: 7 | J4: =F4 -> period | K4: =G4 -> 7
F5: Loss-ranking: | G5: =_xll.AC.data.map(F2:F4, G2:G4) -> java.util.LinkedHashMap@Sun, 24 Jun 2018 12:50:59:858..1562710132011837713 | J5: Amortization-ranking: | K5: =_xll.AC.data.map(J2:J4, K2:K4) -> java.util.LinkedHashMap@Sun, 24 Jun 2018 12:50:59:858..6900393333470424505
B7: =cmo!D4 -> PHHMC 2007-5
B9: Output object | C9: =_xll.AC.finance.cmo.get(calc!$C$10, G5) -> java.util.ArrayList@Sun, 24 Jun 2018 12:50:59:859..3894293974771873218 | F9: =_xll.AC.finance.cmo.get(calc!$C$10, K5) -> java.util.ArrayList@Sun, 24 Jun 2018 12:50:59:859..6882225664108132992
B10: Dimension | C10: =_xll.AC.data.size(C9, 1) -> 7 | D10: =_xll.AC.data.size(C9, 2) -> 2 | F10: =_xll.AC.data.size(F9, 1) -> 7 | G10: =_xll.AC.data.size(F9, 2) -> 3
B12: Loss ranking structure | F12: Amortization ranking structure | J12: =B12 -> Loss ranking structure | N12: =F12 -> Amortization ranking structure | R12: =J12 -> Loss ranking structure | V12: =N12 -> Amortization ranking structure
B13: =_xll.AC.data._get(C9, "", 0) -> B1-B6 | F13: =_xll.AC.data._get(F9, "", 0) -> A5.1
B14: A1-A5 | C14: A1[pr] | F14: A1-A3 | G14: A1[46.1%]
C15: A2[pr] | G15: A2-A3[53.9%] | H15: A2[pr]
C16: A3[pr] | H16: A3[pr]
C17: A4[pr] | F17: A4
C18: A5.1[pr] | F18: A5.2
C19: A5.2[pr] | F19: B1-B6
B25: =B12 -> Loss ranking structure | F25: =F12 -> Amortization ranking structure | J25: =B25 -> Loss ranking structure | N25: =F25 -> Amortization ranking structure

Sheet validate
B2: TAB: CMO STRUCTURE VALIDATION
B3: Validates (i) consistency of CMO child/parent balances; (ii) consistency of CMO balances with respect to losses / prepaid amortization ranking structure
B5: =cmo!D4 -> PHHMC 2007-5
B6: Logs | C6: =_xll.AC.finance.cmo.validate(calc!C11) -> java.util.ArrayList@Sun, 24 Jun 2018 12:54:18:056..8956914243305320219
B7: =_xll.AC.data.size(C6, 1) -> 305
B9: # | C9: log
B10: 1 | C10: =_xll.AC.data._get(C6, "", 0) -> Error: Tranche 'root' balance is not balanced in period 1: 256,510,761 not equal 692,347,783;
B11: =B10+1 -> 2 | C11: Error: Tranche 'root' balance is not balanced in period 2: 243,626,070 not equal 665,585,844;
B12: =B11+1 -> 3
B13: 4
B14: 5
B15: 6
B16: 7
B17: 8
B18: 9
B19: 10

Sheet config
B2: TAB: CONFIGURATION FILE | E2: Calculation enabled | G2: TRUE
B5: Test connection | C5: =_xll.AC.test.connection() -> host: home-pc; user: Konstantin Rybakov; key: null
B7: Keys to retrieve output objects | E7: Configuration parameters for output arrays
B9: Key | C9: Description | E9: Cell address | F9: Row count | G9: Col count | H9: Comment
B10: ranking | C10: Key for CMO ranking name | E10: =addressFla(out!B13) -> 'out'!$B$13 | F10: =out!C10 -> 7 | G10: =out!D10 -> 2 | H10: Loss ranking of CMO #1
B11: field | C11: Key for CMO field name | E11: =addressFla(out!F13) -> 'out'!$F$13 | F11: =out!F10 -> 7 | G11: =out!G10 -> 3 | H11: Prepaid amortization ranking of CMO #1
B12: period | C12: Key for the period value | E12: =addressFla(summary!C6) -> 'summary'!$C$6 | F12: =summary!V11 -> 8 | G12: =summary!W11 -> 18 | H12: Summary output for CMO #1
B13: tranche-name | C13: Name of the tranche, which field output is retrieved | E13: =addressFla('#1, $'!C10) -> '#1, $'!$C$10 | F13: ='#1, $'!F6 -> 60 | G13: ='#1, $'!E6 -> 4 | H13: Cash flows of Tranche #1 of CMO #1
B14: ranking-loss | C14: Ranking structure of the CMO tranches with respect to losses allocation | E14: =addressFla('#1, $'!H10) -> '#1, $'!$H$10 | F14: =F13 -> 60 | G14: 4 | H14: Cash flows of Tranche #2 of CMO #1
B15: ranking-amortization | C15: Ranking structure of the CMO tranches with respect to amortization allocation | E15: =addressFla('#1, $'!M10) -> '#1, $'!$M$10 | F15: 60 | G15: 4 | H15: Cash flows of Tranche #3 of CMO #1
B16: cmo-structure | C16: Structure of the CMO tranches | E16: =addressFla('#1, $'!R10) -> '#1, $'!$R$10 | F16: 60 | G16: 4 | H16: Cash flows of Tranche #4 of CMO #1
B17: cmo-balances | C17: Balances of the CMO tranches in a given period of time | E17: =addressFla(validate!C10) -> 'validate'!$C$10 | F17: =validate!B7 -> 305 | G17: 1 | H17: Validation output for CMO #1
B18: cmo-value-total | C18: Total payout of the CMO tranches
B19: cmo-value-npv | C19: NPV value of the CMO tranches
B20: tranche-balances | C20: Balances of a given CMO tranche (balance, losses, coupon, amortization planned amd prepaid)
B21: summary | C21: Summary of the CMO valuation
B22: tranches | C22: Names of tranches in the summary output

Sheet guide
B2: Package: CMO Available functions: 1. CMO cmo-object = cmo(name, coupon-rate, number-of-periods, loss/amortization-ranking-structure); The function creates an instance of CMO object Setting the ranking structure: 1. If the alocation weights are set for the tranches, the weights-based ranking is applied to determine allocation of balances; 2. If weights are not set, butranking is specified (each rank is described by an integer value), then hierarchial ranking is applied; 3. If neither weights nor hierarchial ranking is set, then the default pro-rata ranking is applied. 2. CalculatorCMO cmo-calculator = calc(cmo-object, discount-factors, loss-rate-mean, loss-rate-stdev, amort-rate-mean, amort-rate-stdev); The function creates an instance of the calculator and performes calculatins. Mean and standard deviation of loss rates are calculated based on ratios of historical losses to outstanding balances at the beginning of the period; Mean and standard deviation of prepaid amortization rates are calculated based on ratios of historical amortization adjusted for calculated planned amortization to outstanding balances at the end of the period but prior to prepaid amortization adjustment; Notes: Balance allocation order: 1. First losses are allocated to the tranches based on the loss-ranking structure; 2. Then coupon is paid based on outstanding balances; 3. Finally, amortization of the balances is performed (planned and prepaid);
